{"text_format":"1","workbook":"xlsx","n_sheets":2,"sheets":["Feuil1","Feuil2"],"not_rendered":{"charts":0,"images":1,"macros":1,"external_links":0,"defined_names":4,"comments":1,"pivot_tables":0},"unopened":[],"bounds":{"document_bytes":16777216,"sheet_cells":100000,"rows_first":2000,"rows_last":500,"rows_between":2000,"halvings":0,"cell_chars":16384,"cell_head_chars":4096},"cells_cut":0,"cells_raw":0,"read":"whole","date_system":"1900"}

{"sheet":"Feuil1","index":0,"n_rows":306,"n_cols":39,"rows_kept":306,"cut":false,"hidden":false,"merged":[[8,1,8,3],[4,19,4,20],[5,3,5,15],[0,0,0,24],[1,0,1,24],[2,0,2,6],[2,16,2,17],[8,4,8,6],[8,7,8,9],[8,10,8,12],[3,0,3,6],[2,18,2,24],[7,0,7,12],[8,19,8,21],[8,16,8,18],[8,22,8,24],[7,13,7,24],[8,13,8,15],[4,17,4,18],[21,5,21,6],[22,5,22,6],[23,5,23,6],[25,5,25,6],[26,7,26,8],[16,0,16,1],[16,5,16,7],[16,2,16,3],[16,8,16,9],[24,5,24,6],[22,7,22,8],[22,9,22,10],[21,7,21,8],[23,7,23,8],[23,9,23,10],[25,7,25,8],[25,9,25,10],[23,17,23,18],[24,17,24,18],[22,15,22,16],[23,23,23,24],[24,19,24,20],[23,11,23,12],[21,23,21,24],[20,7,20,8],[20,9,20,10],[20,11,20,12],[20,13,20,14],[20,15,20,16],[20,17,20,18],[19,21,20,22],[21,9,21,10],[21,11,21,12],[21,13,21,14],[21,15,21,16],[21,17,21,18],[21,19,21,20],[21,21,21,22],[24,7,24,8],[22,17,22,18],[22,19,22,20],[22,21,22,22],[22,11,22,12],[22,13,22,14],[22,23,22,24],[25,21,25,22],[25,23,25,24],[23,19,23,20],[24,21,24,22],[24,23,24,24],[23,21,23,22],[23,13,23,14],[23,15,23,16],[19,0,20,0],[16,12,16,15],[16,16,16,20],[18,0,18,24],[19,5,20,6],[20,19,20,20],[27,19,27,20],[27,21,27,22],[27,23,27,24],[19,7,19,14],[19,15,19,20],[19,23,20,24],[27,7,27,8],[27,9,27,10],[27,11,27,12],[27,13,27,14],[26,19,26,20],[26,1,26,4],[27,1,27,4],[25,11,25,12],[25,13,25,14],[25,15,25,16],[32,0,32,24],[33,9,33,12],[33,13,33,16],[33,17,33,24],[34,1,34,8],[35,1,35,8],[26,17,26,18],[24,15,24,16],[27,15,27,16],[24,9,24,10],[26,5,26,6],[27,5,27,6],[29,1,29,4],[27,17,27,18],[24,11,24,12],[24,13,24,14],[26,21,26,22],[26,23,26,24],[25,17,25,18],[25,19,25,20],[26,9,26,10],[26,11,26,12],[26,13,26,14],[26,15,26,16],[33,1,33,8],[36,13,36,16],[37,13,37,16],[39,0,43,0],[39,9,39,12],[40,9,40,12],[41,9,41,12],[42,9,42,12],[39,1,39,4],[40,1,40,4],[41,1,41,4],[42,1,42,4],[43,1,43,4],[37,1,37,8],[34,9,34,12],[35,9,35,12],[36,9,36,12],[37,9,37,12],[34,13,34,16],[35,13,35,16],[49,1,49,4],[50,1,50,4],[51,1,51,4],[52,1,52,4],[53,1,53,4],[54,1,54,4],[34,17,34,24],[35,17,35,24],[36,17,36,24],[36,1,36,8],[39,21,39,24],[40,21,40,24],[41,21,41,24],[42,21,42,24],[39,17,39,20],[40,17,40,20],[37,17,37,24],[39,13,39,16],[40,13,40,16],[41,13,41,16],[42,13,42,16],[50,5,50,6],[51,5,51,6],[52,5,52,6],[53,5,53,6],[54,5,54,6],[54,13,54,15],[79,1,79,2],[70,0,70,24],[71,0,76,2],[65,5,65,6],[67,5,67,6],[68,5,68,6],[66,7,66,8],[67,7,67,8],[68,7,68,8],[65,7,65,8],[66,5,66,6],[65,1,65,4],[66,1,66,4],[55,5,55,6],[56,5,56,6],[57,5,57,6],[58,5,58,6],[59,5,59,6],[61,5,61,6],[60,5,60,6],[55,1,55,4],[56,1,56,4],[57,1,57,4],[58,1,58,4],[59,1,59,4],[60,1,60,4],[61,1,61,4],[61,7,61,8],[62,7,62,8],[63,7,63,8],[64,7,64,8],[62,5,62,6],[56,9,56,12],[57,9,57,12],[58,9,58,12],[59,9,59,12],[60,9,60,12],[63,5,63,6],[64,5,64,6],[60,7,60,8],[57,7,57,8],[58,7,58,8],[59,7,59,8],[56,7,56,8],[60,13,60,15],[55,13,55,15],[56,13,56,15],[57,13,57,15],[58,13,58,15],[59,13,59,15],[48,7,48,8],[49,7,49,8],[50,7,50,8],[48,13,48,15],[49,13,49,15],[50,13,50,15],[51,13,51,15],[52,13,52,15],[53,13,53,15],[48,9,48,12],[49,9,49,12],[50,9,50,12],[51,9,51,12],[52,9,52,12],[53,9,53,12],[54,9,54,12],[55,9,55,12],[51,7,51,8],[63,13,63,15],[64,13,64,15],[65,9,65,12],[61,9,61,12],[62,9,62,12],[63,9,63,12],[64,9,64,12],[65,13,65,15],[61,13,61,15],[62,13,62,15],[64,19,64,21],[65,19,65,21],[61,22,61,24],[63,22,63,24],[64,22,64,24],[65,22,65,24],[66,16,66,18],[54,16,54,18],[55,16,55,18],[56,16,56,18],[57,16,57,18],[58,16,58,18],[59,16,59,18],[65,16,65,18],[61,16,61,18],[62,16,62,18],[54,19,54,21],[60,19,60,21],[59,19,59,21],[58,19,58,21],[62,19,62,21],[63,19,63,21],[55,19,55,21],[56,19,56,21],[77,0,78,2],[72,3,72,8],[73,3,73,8],[74,3,74,8],[75,3,75,8],[76,3,76,8],[77,3,77,8],[78,3,78,8],[49,22,49,24],[50,22,50,24],[51,22,51,24],[52,22,52,24],[53,22,53,24],[62,22,62,24],[63,16,63,18],[64,16,64,18],[54,22,54,24],[55,22,55,24],[56,22,56,24],[57,22,57,24],[58,22,58,24],[61,19,61,21],[60,16,60,18],[66,22,66,24],[68,16,68,18],[66,13,66,15],[68,13,68,15],[67,9,67,12],[68,9,68,12],[71,22,74,24],[71,13,74,15],[66,19,66,21],[67,19,67,21],[68,19,68,21],[67,22,67,24],[68,22,68,24],[66,9,66,12],[77,22,78,24],[75,10,76,12],[75,13,76,15],[75,16,76,18],[75,19,76,21],[75,22,76,24],[77,10,78,12],[77,13,78,15],[77,16,78,18],[77,19,78,21],[28,9,28,10],[28,21,28,22],[28,23,28,24],[30,13,30,14],[30,15,30,16],[30,17,30,18],[60,22,60,24],[59,22,59,24],[48,22,48,24],[30,21,30,22],[30,23,30,24],[48,19,48,21],[49,19,49,21],[50,19,50,21],[51,19,51,21],[52,19,52,21],[53,19,53,21],[57,19,57,21],[48,16,48,18],[49,16,49,18],[50,16,50,18],[51,16,51,18],[52,16,52,18],[53,16,53,18],[28,19,28,20],[30,5,30,6],[71,16,72,21],[71,10,74,12],[82,4,82,24],[28,5,28,6],[28,11,28,12],[28,13,28,14],[88,4,88,18],[30,19,30,20],[73,16,74,18],[73,19,74,21],[71,3,71,8],[67,16,67,18],[81,1,81,3],[82,1,82,3],[28,15,28,16],[28,17,28,18],[30,7,30,8],[30,9,30,10],[30,11,30,12],[81,4,81,24],[67,13,67,15],[28,7,28,8],[89,25,94,25],[94,4,94,18],[80,0,80,24],[85,1,86,3],[85,0,86,0],[87,0,87,3],[88,0,94,3],[87,19,87,24],[88,19,88,24],[89,19,94,24],[87,4,87,18],[93,4,93,18],[83,4,83,24],[84,4,84,24],[85,4,85,24],[86,4,86,24],[90,4,90,18],[91,4,91,18],[92,4,92,18],[83,1,83,3],[84,1,84,3],[89,4,89,18],[67,1,67,4],[68,1,68,4],[48,1,48,4],[28,1,28,4],[30,1,30,4],[19,1,20,4],[21,1,21,4],[22,1,22,4],[23,1,23,4],[24,1,24,4],[25,1,25,4],[62,1,62,4],[63,1,63,4],[64,1,64,4],[47,0,47,24],[52,7,52,8],[53,7,53,8],[54,7,54,8],[55,7,55,8],[48,5,48,6],[49,5,49,6],[41,17,41,20],[42,17,42,20]]}
["الجمهورية الجزائرية الديمقراطية الشعبية"]
["وزارة التربية الوطنية"]
["مديرية التربية لولاية الاغواط",null,null,null,null,null,null,null,null,null,null,null,null,null,null,null,"التاريخ",null,{"$f":"TODAY()","v":"2022-10-20"}]
["متوسطة: سماعيني معمر تاجرونة "]
[null,null,null,null,null,null,null,null,null,null,null,null,null,null,null,null,null,"الرقم"]
[null,null,null,"التقرير اليومي لمستشار التربية",null,null,null,null,null,null,null,null,null,null,null,null,null,null,null,null,null,null,null,null,null,null,null,null,null,null,"رقم","الاسم و اللقب ","اللقب","الاسم","تاريخ الازدياد","القسم مركب","السنة","القسم","نظام التمدرس"]
[]
["التلاميذ المسجلون",null,null,null,null,null,null,null,null,null,null,null,null,"التلاميذ الغائبون"]
["نظام","داخلي",null,null,"نصف داخلي",null,null,"خارجي",null,null,"المجموع",null,null,"داخلي",null,null,"نصف داخلي",null,null,"خارجي",null,null,"المجموع"]
["الجنس","ذ","إ","مج","ذ","إ","مج","ذ","إ","مج","ذ","إ","مج","ذ","إ","مج","ذ","إ","مج","ذ","إ","مج","ذ","إ","مج"]
["4م",null,null,{"$f":"SUM(B11:C11)","v":0},21,25,{"$f":"SUM(E11:F11)","v":46},5,3,{"$f":"SUM(E11+F11+H11+I11)","v":54},{"$f":"B11+E11+H11","v":26},28,{"$f":"SUM(K11:L11)","v":54},null,null,{"$f":"SUM(N11:O11)","v":0},null,null,{"$f":"SUM(Q11:R11)","v":0},null,null,{"$f":"SUM(T11:U11)","v":0},{"$f":"N11+T11+Q11","v":0},0,{"$f":"SUM(W11:X11)","v":0}]
["3م",null,null,{"$f":"SUM(B12:C12)","v":0},23,37,{"$f":"SUM(E12:F12)","v":60},1,2,{"$f":"SUM(E12+F12+H12+I12)","v":63},24,39,{"$f":"SUM(K12:L12)","v":63},null,null,{"$f":"SUM(N12:O12)","v":0},null,null,{"$f":"SUM(Q12:R12)","v":0},null,null,{"$f":"SUM(T12:U12)","v":0},0,0,{"$f":"SUM(W12:X12)","v":0}]
["2م",null,null,{"$f":"SUM(B13:C13)","v":0},35,38,{"$f":"SUM(E13:F13)","v":73},7,1,{"$f":"SUM(E13+F13+H13+I13)","v":81},42,39,{"$f":"SUM(K13:L13)","v":81},null,null,{"$f":"SUM(N13:O13)","v":0},null,null,{"$f":"SUM(Q13:R13)","v":0},null,null,{"$f":"SUM(T13:U13)","v":0},0,0,{"$f":"SUM(W13:X13)","v":0}]
["1م",null,null,{"$f":"SUM(B14:C14)","v":0},29,42,{"$f":"SUM(E14:F14)","v":71},20,3,{"$f":"SUM(E14+F14+H14+I14)","v":94},49,45,{"$f":"SUM(K14:L14)","v":94},null,null,{"$f":"SUM(N14:O14)","v":0},null,null,{"$f":"SUM(Q14:R14)","v":0},null,null,{"$f":"SUM(T14:U14)","v":0},0,0,{"$f":"SUM(W14:X14)","v":0},null,null,null,null,null,"رقم","الاسم و اللقب ","اللقب","الاسم","تاريخ الازدياد","القسم مركب","السنة","القسم","نظام التمدرس"]
["مج",{"$f":"SUM(B11:B14)","v":0},{"$f":"SUM(C11:C14)","v":0},{"$f":"SUM(B15:C15)","v":0},{"$f":"SUM(E11:E14)","v":108},{"$f":"SUM(F11:F14)","v":142},{"$f":"SUM(E15:F15)","v":250},{"$f":"SUM(H11:H14)","v":33},{"$f":"SUM(I11:I14)","v":9},{"$f":"SUM(H15:I15)","v":42},{"$f":"SUM(K11:K14)","v":141},{"$f":"SUM(L11:L14)","v":151},{"$f":"SUM(M11:M14)","v":292},{"$f":"SUM(N11:N14)","v":0},{"$f":"SUM(O11:O14)","v":0},{"$f":"SUM(N15:O15)","v":0},{"$f":"SUM(Q11:Q14)","v":0},{"$f":"SUM(R11:R14)","v":0},{"$f":"SUM(Q15:R15)","v":0},{"$f":"SUM(T11:T14)","v":0},{"$f":"SUM(U11:U14)","v":0},{"$f":"SUM(T15:U15)","v":0},{"$f":"SUM(W11:W14)","v":0},{"$f":"SUM(X11:X14)","v":0},{"$f":"SUM(Y11:Y14)","v":0},null,null,{"$f":"OFFSET($AC$15,,,COUNTIF(AC:AC,\"*\"))","v":"شنافي محمد الحبيب"},{"$f":"IFERROR(VLOOKUP(ROWS($AC$15:AC15),AD15:AF306,3,FALSE),\"\")","v":"شنافي محمد الحبيب"},{"$f":"IF(ISNUMBER(SEARCH($B$50,AF15)),MAX(AD14:AD14)+1,0)","v":0},1,"بوبكري ابراهيم","بوبكري","ابراهيم","2010-10-20","أولى 1","أولى",1,"نصف داخلي"]
[null,null,null,null,null,null,null,null,null,null,null,null,null,null,null,null,null,null,null,null,null,null,null,null,null,null,null,null,{"$f":"IFERROR(VLOOKUP(ROWS($AC$15:AC16),AD16:AF307,3,FALSE),\"\")","v":"فتيتح ابراهيم"},{"$f":"IF(ISNUMBER(SEARCH($B$50,AF16)),MAX(AD15:AD15)+1,0)","v":0},2,"شنافي مصطفى","شنافي","مصطفى","2008-03-05","أولى 1","أولى",1,"نصف داخلي"]
[null,null,null,null,null,null,null,null,null,null,null,null,"نسبة الغياب",null,null,null,{"$f":"Y15*100/M15","v":0},null,null,null,null,null,null,null,null,null,null,null,{"$f":"IFERROR(VLOOKUP(ROWS($AC$15:AC17),AD17:AF308,3,FALSE),\"\")","v":"سعداوي عبد المحسن"},1,3,"شنافي محمد الحبيب","شنافي","محمد الحبيب","2011-03-14","أولى 1","أولى",1,"نصف داخلي"]
[null,null,null,null,null,null,null,null,null,null,null,null,null,null,null,null,null,null,null,null,null,null,null,null,null,null,null,null,{"$f":"IFERROR(VLOOKUP(ROWS($AC$15:AC18),AD18:AF309,3,FALSE),\"\")","v":"أولاد حمادي ميلود"},2,4,"فتيتح ابراهيم","فتيتح","ابراهيم","2008-02-02","أولى 1","أولى",1,"خارجي"]
["غيابات و تأخرات الأساتذة",null,null,null,null,null,null,null,null,null,null,null,null,null,null,null,null,null,null,null,null,null,null,null,null,null,null,null,{"$f":"IFERROR(VLOOKUP(ROWS($AC$15:AC19),AD19:AF310,3,FALSE),\"\")","v":"ثعلابي حبيب سيف الدين"},0,5,"سعداوي يونس","سعداوي","يونس","2008-12-13","أولى 1","أولى",1,"خارجي"]
["الرقم","اللقب و الاسم ",null,null,null,"المادة",null,"الفترة الصباحية",null,null,null,null,null,null,null,"الفترة المسائية",null,null,null,null,null,"الساعات",null,"السبب",null,null,null,null,{"$f":"IFERROR(VLOOKUP(ROWS($AC$15:AC20),AD20:AF311,3,FALSE),\"\")","v":""},1,6,"حساني محمد عريف","حساني","محمد عريف","2008-10-19","أولى 1","أولى",1,"خارجي"]
[null,null,null,null,null,null,null,"09*08",null,"10*09",null,"11*10",null,"12*11",null,"15*14",null,"16*15",null,"17*16",null,null,null,null,null,null,null,null,{"$f":"IFERROR(VLOOKUP(ROWS($AC$15:AC21),AD21:AF312,3,FALSE),\"\")","v":""},0,7,"طيفوري زينب","طيفوري","زينب","2010-06-20","أولى 1","أولى",1,"نصف داخلي"]
[{"$f":"IF(B22>0,1,\" \")","v":" "},null,null,null,null,{"$f":"IF(B22=\"\",\"\",VLOOKUP(B22,Feuil2!D4:F24,2,0))","v":""},null,{"$f":"IF(B22=\"\",\"\",VLOOKUP(B22,Feuil2!P5:W26,2,0))","v":""},null,{"$f":"IF(B22=\"\",\"\",VLOOKUP(B22,Feuil2!P5:W26,3,0))","v":""},null,{"$f":"IF(B22=\"\",\"\",VLOOKUP(B22,Feuil2!P5:W26,4,0))","v":""},null,{"$f":"IF(B22=\"\",\"\",VLOOKUP(B22,Feuil2!P5:W26,5,0))","v":""},null,{"$f":"IF(B22=\"\",\"\",VLOOKUP(B22,Feuil2!P5:W26,6,0))","v":""},null,{"$f":"IF(B22=\"\",\"\",VLOOKUP(B22,Feuil2!P5:W26,7,0))","v":""},null,{"$f":"IF(B22=\"\",\"\",VLOOKUP(B22,Feuil2!P5:W26,8,0))","v":""},null,null,null,null,null,null,null,null,{"$f":"IFERROR(VLOOKUP(ROWS($AC$15:AC22),AD22:AF313,3,FALSE),\"\")","v":""},0,8,"مضميط خديجة","مضميط","خديجة","2011-07-08","أولى 1","أولى",1,"نصف داخلي"]
[{"$f":"IF(B23>0,A22+1,\" \")","v":" "},null,null,null,null,{"$f":"IF(B23=\"\",\"\",VLOOKUP(B23,Feuil2!D5:F24,2,0))","v":""},null,{"$f":"IF(B23=\"\",\"\",VLOOKUP(B23,Feuil2!P6:W27,2,0))","v":""},null,{"$f":"IF(B23=\"\",\"\",VLOOKUP(B23,Feuil2!P6:W27,3,0))","v":""},null,{"$f":"IF(B23=\"\",\"\",VLOOKUP(B23,Feuil2!P6:W27,4,0))","v":""},null,{"$f":"IF(B23=\"\",\"\",VLOOKUP(B23,Feuil2!P6:W27,5,0))","v":""},null,{"$f":"IF(B23=\"\",\"\",VLOOKUP(B23,Feuil2!P6:W27,6,0))","v":""},null,{"$f":"IF(B23=\"\",\"\",VLOOKUP(B23,Feuil2!P6:W27,7,0))","v":""},null,{"$f":"IF(B23=\"\",\"\",VLOOKUP(B23,Feuil2!P6:W27,8,0))","v":""},null,null,null,null,null,null,null,null,{"$f":"IFERROR(VLOOKUP(ROWS($AC$15:AC23),AD23:AF314,3,FALSE),\"\")","v":""},1,9,"سماعيني محمد سيف الاسلام","سماعيني","محمد سيف الاسلام","2007-09-20","أولى 1","أولى",1,"خارجي"]
[{"$f":"IF(B24>0,#REF!+1,\" \")","v":" "},null,null,null,null,{"$f":"IF(B24=\"\",\"\",VLOOKUP(B24,Feuil2!D7:F26,2,0))","v":""},null,{"$f":"IF(B24=\"\",\"\",VLOOKUP(B24,Feuil2!P8:W29,2,0))","v":""},null,{"$f":"IF(B24=\"\",\"\",VLOOKUP(B24,Feuil2!P8:W29,3,0))","v":""},null,{"$f":"IF(B24=\"\",\"\",VLOOKUP(B24,Feuil2!P8:W29,4,0))","v":""},null,{"$f":"IF(B24=\"\",\"\",VLOOKUP(B24,Feuil2!P8:W29,5,0))","v":""},null,{"$f":"IF(B24=\"\",\"\",VLOOKUP(B24,Feuil2!P8:W29,6,0))","v":""},null,{"$f":"IF(B24=\"\",\"\",VLOOKUP(B24,Feuil2!P8:W29,7,0))","v":""},null,{"$f":"IF(B24=\"\",\"\",VLOOKUP(B24,Feuil2!P8:W29,8,0))","v":""},null,null,null,null,null,null,null,null,{"$f":"IFERROR(VLOOKUP(ROWS($AC$15:AC24),AD24:AF315,3,FALSE),\"\")","v":""},0,10,"سهلي دعاء مريم","سهلي","دعاء مريم","2011-11-02","أولى 1","أولى",1,"نصف داخلي"]
[{"$f":"IF(B25>0,A24+1,\" \")","v":" "},null,null,null,null,{"$f":"IF(B25=\"\",\"\",VLOOKUP(B25,Feuil2!D8:F27,2,0))","v":""},null,{"$f":"IF(B25=\"\",\"\",VLOOKUP(B25,Feuil2!P9:W30,2,0))","v":""},null,{"$f":"IF(B25=\"\",\"\",VLOOKUP(B25,Feuil2!P9:W30,3,0))","v":""},null,{"$f":"IF(B25=\"\",\"\",VLOOKUP(B25,Feuil2!P9:W30,4,0))","v":""},null,{"$f":"IF(B25=\"\",\"\",VLOOKUP(B25,Feuil2!P9:W30,5,0))","v":""},null,{"$f":"IF(B25=\"\",\"\",VLOOKUP(B25,Feuil2!P9:W30,6,0))","v":""},null,{"$f":"IF(B25=\"\",\"\",VLOOKUP(B25,Feuil2!P9:W30,7,0))","v":""},null,{"$f":"IF(B25=\"\",\"\",VLOOKUP(B25,Feuil2!P9:W30,8,0))","v":""},null,null,null,null,null,null,null,null,{"$f":"IFERROR(VLOOKUP(ROWS($AC$15:AC25),AD25:AF316,3,FALSE),\"\")","v":""},0,11,"شنافي اية","شنافي","اية","2011-03-06","أولى 1","أولى",1,"نصف داخلي"]
[" ",null,null,null,null,{"$f":"IF(B26=\"\",\"\",VLOOKUP(B26,Feuil2!D9:F28,2,0))","v":""},null,{"$f":"IF(B26=\"\",\"\",VLOOKUP(B26,Feuil2!P10:W31,2,0))","v":""},null,{"$f":"IF(B26=\"\",\"\",VLOOKUP(B26,Feuil2!P10:W31,3,0))","v":""},null,{"$f":"IF(B26=\"\",\"\",VLOOKUP(B26,Feuil2!P10:W31,4,0))","v":""},null,{"$f":"IF(B26=\"\",\"\",VLOOKUP(B26,Feuil2!P10:W31,5,0))","v":""},null,{"$f":"IF(B26=\"\",\"\",VLOOKUP(B26,Feuil2!P10:W31,6,0))","v":""},null,{"$f":"IF(B26=\"\",\"\",VLOOKUP(B26,Feuil2!P10:W31,7,0))","v":""},null,{"$f":"IF(B26=\"\",\"\",VLOOKUP(B26,Feuil2!P10:W31,8,0))","v":""},null,null,null,null,null,null,null,null,{"$f":"IFERROR(VLOOKUP(ROWS($AC$15:AC26),AD26:AF317,3,FALSE),\"\")","v":""},0,12,"جعفري سيدي عومر","جعفري","سيدي عومر","2009-04-15","أولى 1","أولى",1,"خارجي"]
[" ",null,null,null,null,{"$f":"IF(B27=\"\",\"\",VLOOKUP(B27,Feuil2!D10:F29,2,0))","v":""},null,{"$f":"IF(B27=\"\",\"\",VLOOKUP(B27,Feuil2!P11:W32,2,0))","v":""},null,{"$f":"IF(B27=\"\",\"\",VLOOKUP(B27,Feuil2!P11:W32,3,0))","v":""},null,{"$f":"IF(B27=\"\",\"\",VLOOKUP(B27,Feuil2!P11:W32,4,0))","v":""},null,{"$f":"IF(B27=\"\",\"\",VLOOKUP(B27,Feuil2!P11:W32,5,0))","v":""},null,{"$f":"IF(B27=\"\",\"\",VLOOKUP(B27,Feuil2!P11:W32,6,0))","v":""},null,{"$f":"IF(B27=\"\",\"\",VLOOKUP(B27,Feuil2!P11:W32,7,0))","v":""},null,{"$f":"IF(B27=\"\",\"\",VLOOKUP(B27,Feuil2!P11:W32,8,0))","v":""},null,null,null,null,null,null,null,null,{"$f":"IFERROR(VLOOKUP(ROWS($AC$15:AC27),AD27:AF318,3,FALSE),\"\")","v":""},0,13,"سهلي ابوبكر الصديق","سهلي","ابوبكر الصديق","2011-12-28","أولى 1","أولى",1,"نصف داخلي"]
[" ",null,null,null,null,{"$f":"IF(B28=\"\",\"\",VLOOKUP(B28,Feuil2!D11:F30,2,0))","v":""},null,{"$f":"IF(B28=\"\",\"\",VLOOKUP(B28,Feuil2!P12:W33,2,0))","v":""},null,{"$f":"IF(B28=\"\",\"\",VLOOKUP(B28,Feuil2!P12:W33,3,0))","v":""},null,{"$f":"IF(B28=\"\",\"\",VLOOKUP(B28,Feuil2!P12:W33,4,0))","v":""},null,{"$f":"IF(B28=\"\",\"\",VLOOKUP(B28,Feuil2!P12:W33,5,0))","v":""},null,{"$f":"IF(B28=\"\",\"\",VLOOKUP(B28,Feuil2!P12:W33,6,0))","v":""},null,{"$f":"IF(B28=\"\",\"\",VLOOKUP(B28,Feuil2!P12:W33,7,0))","v":""},null,{"$f":"IF(B28=\"\",\"\",VLOOKUP(B28,Feuil2!P12:W33,8,0))","v":""},null,null,null,null,null,null,null,null,{"$f":"IFERROR(VLOOKUP(ROWS($AC$15:AC28),AD28:AF319,3,FALSE),\"\")","v":""},1,14,"فتيتة محمد","فتيتة","محمد","2010-05-15","أولى 1","أولى",1,"نصف داخلي"]
[" ",null,null,null,null,{"$f":"IF(B29=\"\",\"\",VLOOKUP(B29,Feuil2!D12:F31,2,0))","v":""},null,{"$f":"IF(B29=\"\",\"\",VLOOKUP(B29,Feuil2!P13:W34,2,0))","v":""},null,{"$f":"IF(B29=\"\",\"\",VLOOKUP(B29,Feuil2!P13:W34,3,0))","v":""},null,{"$f":"IF(B29=\"\",\"\",VLOOKUP(B29,Feuil2!P13:W34,4,0))","v":""},null,{"$f":"IF(B29=\"\",\"\",VLOOKUP(B29,Feuil2!P13:W34,5,0))","v":""},null,{"$f":"IF(B29=\"\",\"\",VLOOKUP(B29,Feuil2!P13:W34,6,0))","v":""},null,{"$f":"IF(B29=\"\",\"\",VLOOKUP(B29,Feuil2!P13:W34,7,0))","v":""},null,{"$f":"IF(B29=\"\",\"\",VLOOKUP(B29,Feuil2!P13:W34,8,0))","v":""},null,null,null,null,null,null,null,null,{"$f":"IFERROR(VLOOKUP(ROWS($AC$15:AC29),AD29:AF320,3,FALSE),\"\")","v":""},0,15,"شنافي مباركة","شنافي","مباركة","2010-10-09","أولى 1","أولى",1,"خارجي"]
[" ",null,null,null,null,null,null,null,null,null,null,null,null,null,null,null,null,null,null,null,null,null,null,null,null,null,null,null,{"$f":"IFERROR(VLOOKUP(ROWS($AC$15:AC30),AD30:AF321,3,FALSE),\"\")","v":""},0,16,"سعداوي سفيان نور الدين","سعداوي","سفيان نور الدين","2011-04-23","أولى 1","أولى",1,"نصف داخلي"]
[" ",null,null,null,null,{"$f":"IF(B31=\"\",\"\",VLOOKUP(B31,Feuil2!D13:F32,2,0))","v":""},null,{"$f":"IF(B31=\"\",\"\",VLOOKUP(B31,Feuil2!P14:W35,2,0))","v":""},null,{"$f":"IF(B31=\"\",\"\",VLOOKUP(B31,Feuil2!P14:W35,3,0))","v":""},null,{"$f":"IF(B31=\"\",\"\",VLOOKUP(B31,Feuil2!P14:W35,4,0))","v":""},null,{"$f":"IF(B31=\"\",\"\",VLOOKUP(B31,Feuil2!P14:W35,5,0))","v":""},null,{"$f":"IF(B31=\"\",\"\",VLOOKUP(B31,Feuil2!P14:W35,6,0))","v":""},null,{"$f":"IF(B31=\"\",\"\",VLOOKUP(B31,Feuil2!P14:W35,7,0))","v":""},null,{"$f":"IF(B31=\"\",\"\",VLOOKUP(B31,Feuil2!P14:W35,8,0))","v":""},null,null,null,null,null,null,null,null,{"$f":"IFERROR(VLOOKUP(ROWS($AC$15:AC31),AD31:AF322,3,FALSE),\"\")","v":""},1,17,"قرمان محمد عبد السلام","قرمان","محمد عبد السلام","2011-09-24","أولى 1","أولى",1,"نصف داخلي"]
[null,null,null,null,null,null,null,null,null,null,null,null,null,null,null,null,null,null,null,null,null,null,null,null,null,null,null,null,{"$f":"IFERROR(VLOOKUP(ROWS($AC$15:AC32),AD32:AF323,3,FALSE),\"\")","v":""},2,18,"سماعيني احمد عبد الرزاق","سماعيني","احمد عبد الرزاق","2009-06-01","أولى 1","أولى",1,"نصف داخلي"]
["غيابات وتأخرات المشرفين التربويين",null,null,null,null,null,null,null,null,null,null,null,null,null,null,null,null,null,null,null,null,null,null,null,null,null,null,null,{"$f":"IFERROR(VLOOKUP(ROWS($AC$15:AC33),AD33:AF324,3,FALSE),\"\")","v":""},3,19,"سعداوي عبد المحسن","سعداوي","عبد المحسن","2011-12-19","أولى 1","أولى",1,"نصف داخلي"]
["الرقم","اللقب و الاسم ",null,null,null,null,null,null,null,"التوقيت",null,null,null,"سبب الغياب",null,null,null,"الملاحظات",null,null,null,null,null,null,null,null,null,null,{"$f":"IFERROR(VLOOKUP(ROWS($AC$15:AC34),AD34:AF325,3,FALSE),\"\")","v":""},4,20,"أولاد حمادي ميلود","أولاد حمادي","ميلود","2009-04-29","أولى 1","أولى",1,"خارجي"]
[{"$f":"IF(B35>0,1,\" \")","v":1},"طيفوري محمد",null,null,null,null,null,null,null,null,null,null,null,null,null,null,null,null,null,null,null,null,null,null,null,null,null,null,{"$f":"IFERROR(VLOOKUP(ROWS($AC$15:AC35),AD35:AF326,3,FALSE),\"\")","v":""},0,21,"شنافي عبد القادر","شنافي","عبد القادر","2011-03-29","أولى 1","أولى",1,"نصف داخلي"]
[{"$f":"IF(B36>0,A35+1,\" \")","v":" "},null,null,null,null,null,null,null,null,null,null,null,null,null,null,null,null,null,null,null,null,null,null,null,null,null,null,null,{"$f":"IFERROR(VLOOKUP(ROWS($AC$15:AC36),AD36:AF327,3,FALSE),\"\")","v":""},1,22,"طيفوري احمد المخطار","طيفوري","احمد المخطار","2011-04-19","أولى 1","أولى",1,"نصف داخلي"]
[{"$f":"IF(B37>0,A36+1,\" \")","v":" "},null,null,null,null,null,null,null,null,null,null,null,null,null,null,null,null,null,null,null,null,null,null,null,null,null,null,null,{"$f":"IFERROR(VLOOKUP(ROWS($AC$15:AC37),AD37:AF328,3,FALSE),\"\")","v":""},2,23,"امحمدي نور الهدى","امحمدي","نور الهدى","2011-11-17","أولى 1","أولى",1,"نصف داخلي"]
[{"$f":"IF(B38>0,A37+1,\" \")","v":" "},null,null,null,null,null,null,null,null,null,null,null,null,null,null,null,null,null,null,null,null,null,null,null,null,null,null,null,{"$f":"IFERROR(VLOOKUP(ROWS($AC$15:AC38),AD38:AF329,3,FALSE),\"\")","v":""},3,24,"قرمان محمد عبد السلام","قرمان","محمد عبد السلام","2007-06-11","أولى 1","أولى",1,"خارجي"]
[null,null,null,null,null,null,null,null,null,null,null,null,null,null,null,null,null,null,null,null,null,null,null,null,null,null,null,null,{"$f":"IFERROR(VLOOKUP(ROWS($AC$15:AC39),AD39:AF330,3,FALSE),\"\")","v":""},0,25,"مخطاري مروة","مخطاري","مروة","2008-09-01","أولى 1","أولى",1,"نصف داخلي"]
[null,null,null,null,null,"ذ","إ","مج",null,"مجموع الغيابات",null,null,null,"الحاضرون",null,null,null,"الغائبون",null,null,null,"نسبة الغياب",null,null,null,null,null,null,{"$f":"IFERROR(VLOOKUP(ROWS($AC$15:AC40),AD40:AF331,3,FALSE),\"\")","v":""},0,26,"شاشي عائشة","شاشي","عائشة","2011-05-26","أولى 1","أولى",1,"نصف داخلي"]
[null,"الدخول في اول اكتوبر",null,null,null,{"$f":"K15","v":141},{"$f":"L15","v":151},{"$f":"F41+G41","v":292},null,"الأساتذة",null,null,null,null,null,null,null,null,null,null,null,{"$f":"R41*100/N41","v":{"$error":"#DIV/0!"}},null,null,null,null,null,null,{"$f":"IFERROR(VLOOKUP(ROWS($AC$15:AC41),AD41:AF332,3,FALSE),\"\")","v":""},1,27,"حساني جمانة","حساني","جمانة","2011-01-24","أولى 1","أولى",1,"نصف داخلي"]
[null,"الخروج",null,null,null,null,null,{"$f":"F42+G42","v":0},null,"المساعدون",null,null,null,null,null,null,null,null,null,null,null,{"$f":"R42*100/N42","v":{"$error":"#DIV/0!"}},null,null,null,null,null,null,{"$f":"IFERROR(VLOOKUP(ROWS($AC$15:AC42),AD42:AF333,3,FALSE),\"\")","v":""},0,28,"شنافي رهف فاطمة الزهراء","شنافي","رهف فاطمة الزهراء","2012-01-30","أولى 1","أولى",1,"نصف داخلي"]
[null,"الدخول ",null,null,null,null,null,{"$f":"F43+G43","v":0},null,"التلاميذ",null,null,null,null,null,null,null,null,null,null,null,{"$f":"R43*100/N43","v":{"$error":"#DIV/0!"}},null,null,null,null,null,null,{"$f":"IFERROR(VLOOKUP(ROWS($AC$15:AC43),AD43:AF334,3,FALSE),\"\")","v":""},0,29,"سماعيني سعيدة","سماعيني","سعيدة","2011-10-09","أولى 1","أولى",1,"نصف داخلي"]
[null,"التعداد الحالي",null,null,null,{"$f":"K15","v":141},{"$f":"L15","v":151},{"$f":"M15","v":292},null,null,null,null,null,null,null,null,null,null,null,null,null,null,null,null,null,null,null,null,{"$f":"IFERROR(VLOOKUP(ROWS($AC$15:AC44),AD44:AF335,3,FALSE),\"\")","v":""},0,30,"شنافي رفيقة","شنافي","رفيقة","2012-01-30","أولى 1","أولى",1,"نصف داخلي"]
[null,null,null,null,null,null,null,null,null,null,null,null,null,null,null,null,null,null,null,null,null,null,null,null,null,null,null,null,{"$f":"IFERROR(VLOOKUP(ROWS($AC$15:AC45),AD45:AF336,3,FALSE),\"\")","v":""},0,31,"بدراني مريم","بدراني","مريم","2011-01-01","أولى 1","أولى",1,"نصف داخلي"]
[null,null,null,null,null,null,null,null,null,null,null,null,null,null,null,null,null,null,null,null,null,null,null,null,null,null,null,null,{"$f":"IFERROR(VLOOKUP(ROWS($AC$15:AC46),AD46:AF337,3,FALSE),\"\")","v":""},0,32,"سالمي جهاد","سالمي","جهاد","2011-08-06","أولى 2","أولى",2,"نصف داخلي"]
[null,null,null,null,null,null,null,null,null,null,null,null,null,null,null,null,null,null,null,null,null,null,null,null,null,null,null,null,{"$f":"IFERROR(VLOOKUP(ROWS($AC$15:AC47),AD47:AF338,3,FALSE),\"\")","v":""},1,33,"هيزومي احمد اسلام","هيزومي","احمد اسلام","2011-08-23","أولى 2","أولى",2,"نصف داخلي"]
["التلاميذ الغائبون",null,null,null,null,null,null,null,null,null,null,null,null,null,null,null,null,null,null,null,null,null,null,null,null,null,null,null,{"$f":"IFERROR(VLOOKUP(ROWS($AC$15:AC48),AD48:AF339,3,FALSE),\"\")","v":""},2,34,"قرمان عبد المحسن","قرمان","عبد المحسن","2011-06-29","أولى 2","أولى",2,"نصف داخلي"]
["رقم التلميذ","اللقب و الاسم ",null,null,null,"القسم",null,"الصفة",null,"تاريخ الغياب",null,null,null,"اشعار1",null,null,"اشعار2",null,null,"اعذار",null,null,"سبب الغياب",null,null,null,null,null,{"$f":"IFERROR(VLOOKUP(ROWS($AC$15:AC49),AD49:AF340,3,FALSE),\"\")","v":""},3,35,"أمحمدي إيناس إكرام","أمحمدي","إيناس إكرام","2010-12-12","أولى 2","أولى",2,"خارجي"]
[1,"ح",null,null,null,{"$f":"IF(A50=\"\",\"\",VLOOKUP(A50,Feuil2!C27:K319,6,FALSE))","v":"أولى 1"},null,{"$f":"IF(A50=\"\",\"\",VLOOKUP($A$50,Feuil2!$C$27:$K$319,9,0))","v":"نصف داخلي"},null,null,null,null,null,null,null,null,null,null,null,null,null,null,"غير مبرر",null,null,null,null,null,{"$f":"IFERROR(VLOOKUP(ROWS($AC$15:AC50),AD50:AF341,3,FALSE),\"\")","v":""},0,36,"نقاز طه ياسين","نقاز","طه ياسين","2011-02-20","أولى 2","أولى",2,"نصف داخلي"]
[null,{"$f":"IF(A51=\"\",\"\",VLOOKUP(A51,Feuil2!$C$27:$K$319,2,FALSE))","v":""},null,null,null,{"$f":"IF(A51=\"\",\"\",VLOOKUP(A51,Feuil2!C28:K320,6,FALSE))","v":""},null,{"$f":"IF(A51=\"\",\"\",VLOOKUP($A$50,Feuil2!$C$27:$K$319,9,0))","v":""},null,null,null,null,null,null,null,null,null,null,null,null,null,null,null,null,null,null,null,null,{"$f":"IFERROR(VLOOKUP(ROWS($AC$15:AC51),AD51:AF342,3,FALSE),\"\")","v":""},0,37,"سعداوي نبيلة","سعداوي","نبيلة","2011-01-19","أولى 2","أولى",2,"نصف داخلي"]
[null,{"$f":"IF(A52=\"\",\"\",VLOOKUP(A52,Feuil2!$C$27:$K$319,2,FALSE))","v":""},null,null,null,{"$f":"IF(A52=\"\",\"\",VLOOKUP(A52,Feuil2!C29:K321,6,FALSE))","v":""},null,{"$f":"IF(A52=\"\",\"\",VLOOKUP($A$50,Feuil2!$C$27:$K$319,9,0))","v":""},null,null,null,null,null,null,null,null,null,null,null,null,null,null,null,null,null,null,null,null,{"$f":"IFERROR(VLOOKUP(ROWS($AC$15:AC52),AD52:AF343,3,FALSE),\"\")","v":""},0,38,"سماعيني هاجر","سماعيني","هاجر","2011-03-30","أولى 2","أولى",2,"نصف داخلي"]
[null,{"$f":"IF(A53=\"\",\"\",VLOOKUP(A53,Feuil2!$C$27:$K$319,2,FALSE))","v":""},null,null,null,{"$f":"IF(A53=\"\",\"\",VLOOKUP(A53,Feuil2!C30:K322,6,FALSE))","v":""},null,{"$f":"IF(A53=\"\",\"\",VLOOKUP($A$50,Feuil2!$C$27:$K$319,9,0))","v":""},null,null,null,null,null,null,null,null,null,null,null,null,null,null,null,null,null,null,null,null,{"$f":"IFERROR(VLOOKUP(ROWS($AC$15:AC53),AD53:AF344,3,FALSE),\"\")","v":""},0,39,"شنافي رقية","شنافي","رقية","2011-02-08","أولى 2","أولى",2,"نصف داخلي"]
[null,{"$f":"IF(A54=\"\",\"\",VLOOKUP(A54,Feuil2!$C$27:$K$319,2,FALSE))","v":""},null,null,null,{"$f":"IF(A54=\"\",\"\",VLOOKUP(A54,Feuil2!C31:K323,6,FALSE))","v":""},null,{"$f":"IF(A54=\"\",\"\",VLOOKUP($A$50,Feuil2!$C$27:$K$319,9,0))","v":""},null,null,null,null,null,null,null,null,null,null,null,null,null,null,null,null,null,null,null,null,{"$f":"IFERROR(VLOOKUP(ROWS($AC$15:AC54),AD54:AF345,3,FALSE),\"\")","v":""},0,40,"مخطاري اسلام","مخطاري","اسلام","2011-10-27","أولى 2","أولى",2,"نصف داخلي"]
[null,{"$f":"IF(A55=\"\",\"\",VLOOKUP(A55,Feuil2!$C$27:$K$319,2,FALSE))","v":""},null,null,null,{"$f":"IF(A55=\"\",\"\",VLOOKUP(A55,Feuil2!C32:K324,6,FALSE))","v":""},null,{"$f":"IF(A55=\"\",\"\",VLOOKUP($A$50,Feuil2!$C$27:$K$319,9,0))","v":""},null,null,null,null,null,null,null,null,null,null,null,null,null,null,null,null,null,null,null,null,{"$f":"IFERROR(VLOOKUP(ROWS($AC$15:AC55),AD55:AF346,3,FALSE),\"\")","v":""},0,41,"طيبي علي رضا","طيبي","علي رضا","2011-02-07","أولى 2","أولى",2,"خارجي"]
[null,{"$f":"IF(A56=\"\",\"\",VLOOKUP(A56,Feuil2!$C$27:$K$319,2,FALSE))","v":""},null,null,null,{"$f":"IF(A56=\"\",\"\",VLOOKUP(A56,Feuil2!C33:K325,6,FALSE))","v":""},null,{"$f":"IF(A56=\"\",\"\",VLOOKUP($A$50,Feuil2!$C$27:$K$319,9,0))","v":""},null,null,null,null,null,null,null,null,null,null,null,null,null,null,null,null,null,null,null,null,{"$f":"IFERROR(VLOOKUP(ROWS($AC$15:AC56),AD56:AF347,3,FALSE),\"\")","v":""},0,42,"مشارة عبد القادر","مشارة","عبد القادر","2011-03-06","أولى 2","أولى",2,"نصف داخلي"]
[null,{"$f":"IF(A57=\"\",\"\",VLOOKUP(A57,Feuil2!$C$27:$K$319,2,FALSE))","v":""},null,null,null,{"$f":"IF(A57=\"\",\"\",VLOOKUP(A57,Feuil2!C34:K326,6,FALSE))","v":""},null,{"$f":"IF(A57=\"\",\"\",VLOOKUP($A$50,Feuil2!$C$27:$K$319,9,0))","v":""},null,null,null,null,null,null,null,null,null,null,null,null,null,null,null,null,null,null,null,null,{"$f":"IFERROR(VLOOKUP(ROWS($AC$15:AC57),AD57:AF348,3,FALSE),\"\")","v":""},0,43,"سماعيني اشرف","سماعيني","اشرف","2011-04-13","أولى 2","أولى",2,"نصف داخلي"]
[{"$f":"IF(B58>0,A57+1,\" \")","v":" "},{"$f":"IF(A58=\"\",\"\",VLOOKUP(A58,Feuil2!$C$27:$K$319,2,FALSE))","v":""},null,null,null,{"$f":"IF(A58=\"\",\"\",VLOOKUP(A58,Feuil2!C35:K327,6,FALSE))","v":""},null,{"$f":"IF(A58=\"\",\"\",VLOOKUP($A$50,Feuil2!$C$27:$K$319,9,0))","v":""},null,null,null,null,null,null,null,null,null,null,null,null,null,null,null,null,null,null,null,null,{"$f":"IFERROR(VLOOKUP(ROWS($AC$15:AC58),AD58:AF349,3,FALSE),\"\")","v":""},1,44,"شنافي محمد اسامة","شنافي","محمد اسامة","2011-08-01","أولى 2","أولى",2,"نصف داخلي"]
[" ",{"$f":"IF(A59=\"\",\"\",VLOOKUP(A59,Feuil2!$C$27:$K$319,2,FALSE))","v":""},null,null,null,{"$f":"IF(A59=\"\",\"\",VLOOKUP(A59,Feuil2!C36:K328,6,FALSE))","v":""},null,{"$f":"IF(A59=\"\",\"\",VLOOKUP($A$50,Feuil2!$C$27:$K$319,9,0))","v":""},null,null,null,null,null,null,null,null,null,null,null,null,null,null,null,null,null,null,null,null,{"$f":"IFERROR(VLOOKUP(ROWS($AC$15:AC59),AD59:AF350,3,FALSE),\"\")","v":""},0,45,"سهلي عبد الصمد","سهلي","عبد الصمد","2011-08-01","أولى 2","أولى",2,"نصف داخلي"]
[" ",{"$f":"IF(A60=\"\",\"\",VLOOKUP(A60,Feuil2!$C$27:$K$319,2,FALSE))","v":""},null,null,null,{"$f":"IF(A60=\"\",\"\",VLOOKUP(A60,Feuil2!C37:K329,6,FALSE))","v":""},null,{"$f":"IF(A60=\"\",\"\",VLOOKUP($A$50,Feuil2!$C$27:$K$319,9,0))","v":""},null,null,null,null,null,null,null,null,null,null,null,null,null,null,null,null,null,null,null,null,{"$f":"IFERROR(VLOOKUP(ROWS($AC$15:AC60),AD60:AF351,3,FALSE),\"\")","v":""},1,46,"بكي الصحبي عبد الكريم","بكي","الصحبي عبد الكريم","2011-08-03","أولى 2","أولى",2,"نصف داخلي"]
[" ",{"$f":"IF(A61=\"\",\"\",VLOOKUP(A61,Feuil2!$C$27:$K$319,2,FALSE))","v":""},null,null,null,{"$f":"IF(A61=\"\",\"\",VLOOKUP(A61,Feuil2!C38:K330,6,FALSE))","v":""},null,{"$f":"IF(A61=\"\",\"\",VLOOKUP($A$50,Feuil2!$C$27:$K$319,9,0))","v":""},null,null,null,null,null,null,null,null,null,null,null,null,null,null,null,null,null,null,null,null,{"$f":"IFERROR(VLOOKUP(ROWS($AC$15:AC61),AD61:AF352,3,FALSE),\"\")","v":""},2,47,"ماحي محمد عماد الدين","ماحي","محمد عماد الدين","2011-09-06","أولى 2","أولى",2,"نصف داخلي"]
[" ",{"$f":"IF(A62=\"\",\"\",VLOOKUP(A62,Feuil2!$C$27:$K$319,2,FALSE))","v":""},null,null,null,{"$f":"IF(A62=\"\",\"\",VLOOKUP(A62,Feuil2!C39:K331,6,FALSE))","v":""},null,{"$f":"IF(A62=\"\",\"\",VLOOKUP($A$50,Feuil2!$C$27:$K$319,9,0))","v":""},null,null,null,null,null,null,null,null,null,null,null,null,null,null,null,null,null,null,null,null,{"$f":"IFERROR(VLOOKUP(ROWS($AC$15:AC62),AD62:AF353,3,FALSE),\"\")","v":""},0,48,"سهلي مباركة","سهلي","مباركة","2012-03-11","أولى 2","أولى",2,"نصف داخلي"]
[" ",{"$f":"IF(A63=\"\",\"\",VLOOKUP(A63,Feuil2!$C$27:$K$319,2,FALSE))","v":""},null,null,null,{"$f":"IF(A63=\"\",\"\",VLOOKUP(A63,Feuil2!C40:K332,6,FALSE))","v":""},null,{"$f":"IF(A63=\"\",\"\",VLOOKUP($A$50,Feuil2!$C$27:$K$319,9,0))","v":""},null,null,null,null,null,null,null,null,null,null,null,null,null,null,null,null,null,null,null,null,{"$f":"IFERROR(VLOOKUP(ROWS($AC$15:AC63),AD63:AF354,3,FALSE),\"\")","v":""},1,49,"ماحي يوسف","ماحي","يوسف","2009-08-24","أولى 2","أولى",2,"خارجي"]
[" ",{"$f":"IF(A64=\"\",\"\",VLOOKUP(A64,Feuil2!$C$27:$K$319,2,FALSE))","v":""},null,null,null,{"$f":"IF(A64=\"\",\"\",VLOOKUP(A64,Feuil2!C41:K333,6,FALSE))","v":""},null,{"$f":"IF(A64=\"\",\"\",VLOOKUP($A$50,Feuil2!$C$27:$K$319,9,0))","v":""},null,null,null,null,null,null,null,null,null,null,null,null,null,null,null,null,null,null,null,null,{"$f":"IFERROR(VLOOKUP(ROWS($AC$15:AC64),AD64:AF355,3,FALSE),\"\")","v":""},0,50,"شنافي مصطفى أمين","شنافي","مصطفى أمين","2008-09-04","أولى 2","أولى",2,"خارجي"]
[" ",{"$f":"IF(A65=\"\",\"\",VLOOKUP(A65,Feuil2!$C$27:$K$319,2,FALSE))","v":""},null,null,null,{"$f":"IF(A65=\"\",\"\",VLOOKUP(A65,Feuil2!C42:K334,6,FALSE))","v":""},null,{"$f":"IF(A65=\"\",\"\",VLOOKUP($A$50,Feuil2!$C$27:$K$319,9,0))","v":""},null,null,null,null,null,null,null,null,null,null,null,null,null,null,null,null,null,null,null,null,{"$f":"IFERROR(VLOOKUP(ROWS($AC$15:AC65),AD65:AF356,3,FALSE),\"\")","v":""},0,51,"بوقرارة ويصال","بوقرارة","ويصال","2010-04-01","أولى 2","أولى",2,"نصف داخلي"]
[" ",{"$f":"IF(A66=\"\",\"\",VLOOKUP(A66,Feuil2!$C$27:$K$319,2,FALSE))","v":""},null,null,null,{"$f":"IF(A66=\"\",\"\",VLOOKUP(A66,Feuil2!C43:K335,6,FALSE))","v":""},null,{"$f":"IF(A66=\"\",\"\",VLOOKUP($A$50,Feuil2!$C$27:$K$319,9,0))","v":""},null,null,null,null,null,null,null,null,null,null,null,null,null,null,null,null,null,null,null,null,{"$f":"IFERROR(VLOOKUP(ROWS($AC$15:AC66),AD66:AF357,3,FALSE),\"\")","v":""},0,52,"قرمان نصرالله","قرمان","نصرالله","2006-09-16","أولى 2","أولى",2,"خارجي"]
[" ",{"$f":"IF(A67=\"\",\"\",VLOOKUP(A67,Feuil2!$C$27:$K$319,2,FALSE))","v":""},null,null,null,{"$f":"IF(A67=\"\",\"\",VLOOKUP(A67,Feuil2!C44:K336,6,FALSE))","v":""},null,{"$f":"IF(A67=\"\",\"\",VLOOKUP($A$50,Feuil2!$C$27:$K$319,9,0))","v":""},null,null,null,null,null,null,null,null,null,null,null,null,null,null,null,null,null,null,null,null,{"$f":"IFERROR(VLOOKUP(ROWS($AC$15:AC67),AD67:AF358,3,FALSE),\"\")","v":""},0,53,"شنافي اسراء","شنافي","اسراء","2011-07-03","أولى 2","أولى",2,"نصف داخلي"]
[" ",{"$f":"IF(A68=\"\",\"\",VLOOKUP(A68,Feuil2!$C$27:$K$319,2,FALSE))","v":""},null,null,null,{"$f":"IF(A68=\"\",\"\",VLOOKUP(A68,Feuil2!C45:K337,6,FALSE))","v":""},null,{"$f":"IF(A68=\"\",\"\",VLOOKUP($A$50,Feuil2!$C$27:$K$319,9,0))","v":""},null,null,null,null,null,null,null,null,null,null,null,null,null,null,null,null,null,null,null,null,{"$f":"IFERROR(VLOOKUP(ROWS($AC$15:AC68),AD68:AF359,3,FALSE),\"\")","v":""},0,54,"بوبكري ابوبكرالصديق","بوبكري","ابوبكرالصديق","2011-06-08","أولى 2","أولى",2,"نصف داخلي"]
[" ",{"$f":"IF(A69=\"\",\"\",VLOOKUP(A69,Feuil2!$C$27:$K$319,2,FALSE))","v":""},null,null,null,{"$f":"IF(A69=\"\",\"\",VLOOKUP(A69,Feuil2!C46:K338,6,FALSE))","v":""},null,{"$f":"IF(A69=\"\",\"\",VLOOKUP($A$50,Feuil2!$C$27:$K$319,9,0))","v":""},null,null,null,null,null,null,null,null,null,null,null,null,null,null,null,null,null,null,null,{"$f":"COUNTIF(A68:A88,A69)","v":0},{"$f":"IFERROR(VLOOKUP(ROWS($AC$15:AC69),AD69:AF360,3,FALSE),\"\")","v":""},0,55,"بوهني اميمة","بوهني","اميمة","2011-05-08","أولى 2","أولى",2,"نصف داخلي"]
[null,null,null,null,null,null,null,null,null,null,null,null,null,null,null,null,null,null,null,null,null,null,null,null,null,null,null,null,{"$f":"IFERROR(VLOOKUP(ROWS($AC$15:AC70),AD70:AF361,3,FALSE),\"\")","v":""},0,56,"سعداوي نور الهدى","سعداوي","نور الهدى","2011-09-04","أولى 2","أولى",2,"نصف داخلي"]
["المطعم  ** الوجبة ** التاطير **  تعداد التلاميذ",null,null,null,null,null,null,null,null,null,null,null,null,null,null,null,null,null,null,null,null,null,null,null,null,null,null,null,{"$f":"IFERROR(VLOOKUP(ROWS($AC$15:AC71),AD71:AF362,3,FALSE),\"\")","v":""},0,57,"سهلي سعدودة فاطمة الزهراء","سهلي","سعدودة فاطمة الزهراء","2011-11-02","أولى 2","أولى",2,"نصف داخلي"]
["المرافق",null,null,"فتح الشهية",null,null,null,null,null,null,"المطعم",null,null,"الفطور",null,null,"الغذاء",null,null,null,null,null,"العشاء",null,null,null,null,null,{"$f":"IFERROR(VLOOKUP(ROWS($AC$15:AC72),AD72:AF363,3,FALSE),\"\")","v":""},0,58,"سهلي مروى","سهلي","مروى","2011-09-28","أولى 2","أولى",2,"نصف داخلي"]
[null,null,null,"…......................................",null,null,null,null,null,null,null,null,null,null,null,null,null,null,null,null,null,null,null,null,null,null,null,null,{"$f":"IFERROR(VLOOKUP(ROWS($AC$15:AC73),AD73:AF364,3,FALSE),\"\")","v":""},0,59,"شنافي وئام","شنافي","وئام","2011-05-02","أولى 2","أولى",2,"نصف داخلي"]
[null,null,null,"الوجبة الرئيسية",null,null,null,null,null,null,null,null,null,null,null,null,"داخلي",null,null,"ن داخلي",null,null,null,null,null,null,null,null,{"$f":"IFERROR(VLOOKUP(ROWS($AC$15:AC74),AD74:AF365,3,FALSE),\"\")","v":""},0,60,"قرمان سندس فاطمة الزهراء","قرمان","سندس فاطمة الزهراء","2011-01-30","أولى 2","أولى",2,"نصف داخلي"]
[null,null,null,"…......................................",null,null,null,null,null,null,null,null,null,null,null,null,null,null,null,null,null,null,null,null,null,null,null,null,{"$f":"IFERROR(VLOOKUP(ROWS($AC$15:AC75),AD75:AF366,3,FALSE),\"\")","v":""},0,61,"شنافي يمينة","شنافي","يمينة","2009-12-19","أولى 2","أولى",2,"نصف داخلي"]
[null,null,null,"التحلية",null,null,null,null,null,null,"الحضور",null,null,null,null,null,null,null,null,null,null,null,null,null,null,null,null,null,{"$f":"IFERROR(VLOOKUP(ROWS($AC$15:AC76),AD76:AF367,3,FALSE),\"\")","v":""},0,62,"سعداوي اسراء","سعداوي","اسراء","2011-04-22","أولى 2","أولى",2,"نصف داخلي"]
[null,null,null,"…......................................",null,null,null,null,null,null,null,null,null,null,null,null,null,null,null,null,null,null,null,null,null,null,null,null,{"$f":"IFERROR(VLOOKUP(ROWS($AC$15:AC77),AD77:AF368,3,FALSE),\"\")","v":""},0,63,"مشارة سليمان عبد الجبار","مشارة","سليمان عبد الجبار","2011-08-07","أولى 3","أولى",3,"خارجي"]
["التاطير",null,null,null,null,null,null,null,null,null,"الغياب",null,null,null,null,null,null,null,null,null,null,null,null,null,null,null,null,null,{"$f":"IFERROR(VLOOKUP(ROWS($AC$15:AC78),AD78:AF369,3,FALSE),\"\")","v":""},0,64,"شنافي خالد","شنافي","خالد","2011-08-20","أولى 3","أولى",3,"نصف داخلي"]
[null,null,null,null,null,null,null,null,null,null,null,null,null,null,null,null,null,null,null,null,null,null,null,null,null,null,null,null,{"$f":"IFERROR(VLOOKUP(ROWS($AC$15:AC79),AD79:AF370,3,FALSE),\"\")","v":""},0,65,"سماعيني لعرج عزيز","سماعيني","لعرج عزيز","2011-01-03","أولى 3","أولى",3,"نصف داخلي"]
[null,null,null,null,null,null,null,null,null,null,null,null,null,null,null,null,null,null,null,null,null,null,null,null,null,null,null,null,{"$f":"IFERROR(VLOOKUP(ROWS($AC$15:AC80),AD80:AF371,3,FALSE),\"\")","v":""},{"$f":"IF(ISNUMBER(SEARCH($B$50,AF80)),MAX(AD79:AD79)+1,0)","v":1},66,"أمحمدي عبد القادر","أمحمدي","عبد القادر","2009-01-08","أولى 3","أولى",3,"خارجي"]
["ملاحظات و اقتراحات مستشار التربية",null,null,null,null,null,null,null,null,null,null,null,null,null,null,null,null,null,null,null,null,null,null,null,null,null,null,null,{"$f":"IFERROR(VLOOKUP(ROWS($AC$15:AC81),AD81:AF372,3,FALSE),\"\")","v":""},0,67,"سماعيني مصطفى","سماعيني","مصطفى","2009-11-17","أولى 3","أولى",3,"نصف داخلي"]
[1,"النظافة",null,null,"…..........................................................................................................................",null,null,null,null,null,null,null,null,null,null,null,null,null,null,null,null,null,null,null,null,null,null,null,{"$f":"IFERROR(VLOOKUP(ROWS($AC$15:AC82),AD82:AF373,3,FALSE),\"\")","v":""},1,68,"امحمدي محمد","امحمدي","محمد","2011-07-05","أولى 3","أولى",3,"نصف داخلي"]
[2,"الاتلافات",null,null,"…..........................................................................................................................",null,null,null,null,null,null,null,null,null,null,null,null,null,null,null,null,null,null,null,null,null,null,null,{"$f":"IFERROR(VLOOKUP(ROWS($AC$15:AC83),AD83:AF374,3,FALSE),\"\")","v":""},0,69,"سماعيني يوسف","سماعيني","يوسف","2010-10-04","أولى 3","أولى",3,"نصف داخلي"]
[3,"الزيارات",null,null,"…..........................................................................................................................",null,null,null,null,null,null,null,null,null,null,null,null,null,null,null,null,null,null,null,null,null,null,null,{"$f":"IFERROR(VLOOKUP(ROWS($AC$15:AC84),AD84:AF375,3,FALSE),\"\")","v":""},1,70,"أمحمدي طه الأمين","أمحمدي","طه الأمين","2010-03-06","أولى 3","أولى",3,"خارجي"]
[4,"العيادة",null,null,"............... اسم المريض ................القسم ............المرافق ............    س الذهاب ............س الاياب",null,null,null,null,null,null,null,null,null,null,null,null,null,null,null,null,null,null,null,null,null,null,null,{"$f":"IFERROR(VLOOKUP(ROWS($AC$15:AC85),AD85:AF376,3,FALSE),\"\")","v":""},0,71,"بدراني هاجر","بدراني","هاجر","2011-12-11","أولى 3","أولى",3,"نصف داخلي"]
[5,"ملاحظات",null,null,"…........................................................................................................................",null,null,null,null,null,null,null,null,null,null,null,null,null,null,null,null,null,null,null,null,null,null,null,{"$f":"IFERROR(VLOOKUP(ROWS($AC$15:AC86),AD86:AF377,3,FALSE),\"\")","v":""},0,72,"سهلي ايمان","سهلي","ايمان","2011-01-01","أولى 3","أولى",3,"نصف داخلي"]
[null,null,null,null,"…........................................................................................................................",null,null,null,null,null,null,null,null,null,null,null,null,null,null,null,null,null,null,null,null,null,null,null,{"$f":"IFERROR(VLOOKUP(ROWS($AC$15:AC87),AD87:AF378,3,FALSE),\"\")","v":""},1,73,"بعيط عبد الرحمان اسلام","بعيط","عبد الرحمان اسلام","2011-02-25","أولى 3","أولى",3,"نصف داخلي"]
["مستشار التربية",null,null,null,"ملاحظات مدير المؤسسة",null,null,null,null,null,null,null,null,null,null,null,null,null,null,"المدير",null,null,null,null,null,null,null,null,{"$f":"IFERROR(VLOOKUP(ROWS($AC$15:AC88),AD88:AF379,3,FALSE),\"\")","v":""},0,74,"سعداوي خضرة","سعداوي","خضرة","2006-05-03","أولى 3","أولى",3,"نصف داخلي"]
["الامضاء",null,null,null,-1,null,null,null,null,null,null,null,null,null,null,null,null,null,null,"التاريخ:",null,null,null,null,null,null,null,null,{"$f":"IFERROR(VLOOKUP(ROWS($AC$15:AC89),AD89:AF380,3,FALSE),\"\")","v":""},0,75,"سماعيني عيدة","سماعيني","عيدة","2011-02-01","أولى 3","أولى",3,"نصف داخلي"]
[null,null,null,null,-2,null,null,null,null,null,null,null,null,null,null,null,null,null,null,"الامضاء",null,null,null,null,null,null,null,null,{"$f":"IFERROR(VLOOKUP(ROWS($AC$15:AC90),AD90:AF381,3,FALSE),\"\")","v":""},0,76,"شنافي جودة","شنافي","جودة","2010-01-01","أولى 3","أولى",3,"نصف داخلي"]
[null,null,null,null,-3,null,null,null,null,null,null,null,null,null,null,null,null,null,null,null,null,null,null,null,null,null,null,null,{"$f":"IFERROR(VLOOKUP(ROWS($AC$15:AC91),AD91:AF382,3,FALSE),\"\")","v":""},1,77,"شنافي محمد الأمين","شنافي","محمد الأمين","2007-11-24","أولى 3","أولى",3,"خارجي"]
[null,null,null,null,-4,null,null,null,null,null,null,null,null,null,null,null,null,null,null,null,null,null,null,null,null,null,null,null,{"$f":"IFERROR(VLOOKUP(ROWS($AC$15:AC92),AD92:AF383,3,FALSE),\"\")","v":""},0,78,"سماعيني سمية","سماعيني","سمية","2011-08-22","أولى 3","أولى",3,"نصف داخلي"]
[null,null,null,null,-5,null,null,null,null,null,null,null,null,null,null,null,null,null,null,null,null,null,null,null,null,null,null,null,{"$f":"IFERROR(VLOOKUP(ROWS($AC$15:AC93),AD93:AF384,3,FALSE),\"\")","v":""},0,79,"سعداوي فاطمة الزهراء","سعداوي","فاطمة الزهراء","2011-07-03","أولى 3","أولى",3,"نصف داخلي"]
[null,null,null,null,null,null,null,null,null,null,null,null,null,null,null,null,null,null,null,null,null,null,null,null,null,null,null,null,{"$f":"IFERROR(VLOOKUP(ROWS($AC$15:AC94),AD94:AF385,3,FALSE),\"\")","v":""},0,80,"بعيط فاطمة الزهراء","بعيط","فاطمة الزهراء","2011-06-16","أولى 3","أولى",3,"نصف داخلي"]
[null,null,null,null,null,null,null,null,null,null,null,null,null,null,null,null,null,null,null,null,null,null,null,null,null,null,null,null,{"$f":"IFERROR(VLOOKUP(ROWS($AC$15:AC95),AD95:AF386,3,FALSE),\"\")","v":""},1,81,"سهلي محمد الياس","سهلي","محمد الياس","2011-04-09","أولى 3","أولى",3,"نصف داخلي"]
[null,null,null,null,null,null,null,null,null,null,null,null,null,null,null,null,null,null,null,null,null,null,null,null,null,null,null,null,{"$f":"IFERROR(VLOOKUP(ROWS($AC$15:AC96),AD96:AF387,3,FALSE),\"\")","v":""},0,82,"بوبكري هديل","بوبكري","هديل","2011-02-16","أولى 3","أولى",3,"نصف داخلي"]
[null,null,null,null,null,null,null,null,null,null,null,null,null,null,null,null,null,null,null,null,null,null,null,null,null,null,null,null,{"$f":"IFERROR(VLOOKUP(ROWS($AC$15:AC97),AD97:AF388,3,FALSE),\"\")","v":""},0,83,"بوبكري نجوى","بوبكري","نجوى","2011-05-02","أولى 3","أولى",3,"نصف داخلي"]
[null,null,null,null,null,null,null,null,null,null,null,null,null,null,null,null,null,null,null,null,null,null,null,null,null,null,null,null,{"$f":"IFERROR(VLOOKUP(ROWS($AC$15:AC98),AD98:AF389,3,FALSE),\"\")","v":""},0,84,"بدراني عبد السعيد","بدراني","عبد السعيد","2008-08-28","أولى 3","أولى",3,"خارجي"]
[null,null,null,null,null,null,null,null,null,null,null,null,null,null,null,null,null,null,null,null,null,null,null,null,null,null,null,null,{"$f":"IFERROR(VLOOKUP(ROWS($AC$15:AC99),AD99:AF390,3,FALSE),\"\")","v":""},0,85,"سعداوي نوية","سعداوي","نوية","2010-07-13","أولى 3","أولى",3,"خارجي"]
[null,null,null,null,null,null,null,null,null,null,null,null,null,null,null,null,null,null,null,null,null,null,null,null,null,null,null,null,{"$f":"IFERROR(VLOOKUP(ROWS($AC$15:AC100),AD100:AF391,3,FALSE),\"\")","v":""},1,86,"مخلوفي محمود","مخلوفي","محمود","2005-11-26","أولى 3","أولى",3,"نصف داخلي"]
[null,null,null,null,null,null,null,null,null,null,null,null,null,null,null,null,null,null,null,null,null,null,null,null,null,null,null,null,{"$f":"IFERROR(VLOOKUP(ROWS($AC$15:AC101),AD101:AF392,3,FALSE),\"\")","v":""},0,87,"نقاز علي","نقاز","علي","2006-11-29","أولى 3","أولى",3,"خارجي"]
[null,null,null,null,null,null,null,null,null,null,null,null,null,null,null,null,null,null,null,null,null,null,null,null,null,null,null,null,{"$f":"IFERROR(VLOOKUP(ROWS($AC$15:AC102),AD102:AF393,3,FALSE),\"\")","v":""},0,88,"شنافي شيماء","شنافي","شيماء","2011-06-01","أولى 3","أولى",3,"نصف داخلي"]
[null,null,null,null,null,null,null,null,null,null,null,null,null,null,null,null,null,null,null,null,null,null,null,null,null,null,null,null,{"$f":"IFERROR(VLOOKUP(ROWS($AC$15:AC103),AD103:AF394,3,FALSE),\"\")","v":""},1,89,"سماعيني رزيقة حنان","سماعيني","رزيقة حنان","2011-03-16","أولى 3","أولى",3,"نصف داخلي"]
[null,null,null,null,null,null,null,null,null,null,null,null,null,null,null,null,null,null,null,null,null,null,null,null,null,null,null,null,{"$f":"IFERROR(VLOOKUP(ROWS($AC$15:AC104),AD104:AF395,3,FALSE),\"\")","v":""},0,90,"كعيفص ميمونة","كعيفص","ميمونة","2012-03-07","أولى 3","أولى",3,"نصف داخلي"]
[null,null,null,null,null,null,null,null,null,null,null,null,null,null,null,null,null,null,null,null,null,null,null,null,null,null,null,null,{"$f":"IFERROR(VLOOKUP(ROWS($AC$15:AC105),AD105:AF396,3,FALSE),\"\")","v":""},1,91,"ماحي سعيدة","ماحي","سعيدة","2012-03-14","أولى 3","أولى",3,"نصف داخلي"]
[null,null,null,null,null,null,null,null,null,null,null,null,null,null,null,null,null,null,null,null,null,null,null,null,null,null,null,null,{"$f":"IFERROR(VLOOKUP(ROWS($AC$15:AC106),AD106:AF397,3,FALSE),\"\")","v":""},0,92,"مخطاري امينة","مخطاري","امينة","2011-07-06","أولى 3","أولى",3,"نصف داخلي"]
[null,null,null,null,null,null,null,null,null,null,null,null,null,null,null,null,null,null,null,null,null,null,null,null,null,null,null,null,{"$f":"IFERROR(VLOOKUP(ROWS($AC$15:AC107),AD107:AF398,3,FALSE),\"\")","v":""},1,93,"لوباقي محمد صفي الدين","لوباقي","محمد صفي الدين","2006-06-28","أولى 3","أولى",3,"خارجي"]
[null,null,null,null,null,null,null,null,null,null,null,null,null,null,null,null,null,null,null,null,null,null,null,null,null,null,null,null,{"$f":"IFERROR(VLOOKUP(ROWS($AC$15:AC108),AD108:AF399,3,FALSE),\"\")","v":""},0,94,"سعداوي عبد الرزاق","سعداوي","عبد الرزاق","2011-11-24","أولى 3","أولى",3,"نصف داخلي"]
[null,null,null,null,null,null,null,null,null,null,null,null,null,null,null,null,null,null,null,null,null,null,null,null,null,null,null,null,{"$f":"IFERROR(VLOOKUP(ROWS($AC$15:AC109),AD109:AF400,3,FALSE),\"\")","v":""},0,95,"شنافي امينة","شنافي","امينة","2007-06-29","ثانية 1","ثانية",1,"نصف داخلي"]
[null,null,null,null,null,null,null,null,null,null,null,null,null,null,null,null,null,null,null,null,null,null,null,null,null,null,null,null,{"$f":"IFERROR(VLOOKUP(ROWS($AC$15:AC110),AD110:AF401,3,FALSE),\"\")","v":""},0,96,"صديقي بوبكر","صديقي","بوبكر","2010-10-17","ثانية 1","ثانية",1,"نصف داخلي"]
[null,null,null,null,null,null,null,null,null,null,null,null,null,null,null,null,null,null,null,null,null,null,null,null,null,null,null,null,{"$f":"IFERROR(VLOOKUP(ROWS($AC$15:AC111),AD111:AF402,3,FALSE),\"\")","v":""},1,97,"شنافي محمد","شنافي","محمد","2010-11-01","ثانية 1","ثانية",1,"نصف داخلي"]
[null,null,null,null,null,null,null,null,null,null,null,null,null,null,null,null,null,null,null,null,null,null,null,null,null,null,null,null,{"$f":"IFERROR(VLOOKUP(ROWS($AC$15:AC112),AD112:AF403,3,FALSE),\"\")","v":""},0,98,"سماعيني خديجة","سماعيني","خديجة","2008-12-06","ثانية 1","ثانية",1,"نصف داخلي"]
[null,null,null,null,null,null,null,null,null,null,null,null,null,null,null,null,null,null,null,null,null,null,null,null,null,null,null,null,{"$f":"IFERROR(VLOOKUP(ROWS($AC$15:AC113),AD113:AF404,3,FALSE),\"\")","v":""},1,99,"محمدي محمد عبد الصمد","محمدي","محمد عبد الصمد","2010-10-08","ثانية 1","ثانية",1,"نصف داخلي"]
[null,null,null,null,null,null,null,null,null,null,null,null,null,null,null,null,null,null,null,null,null,null,null,null,null,null,null,null,{"$f":"IFERROR(VLOOKUP(ROWS($AC$15:AC114),AD114:AF405,3,FALSE),\"\")","v":""},0,100,"سماعيني فاطمة الزهرة","سماعيني","فاطمة الزهرة","2010-09-22","ثانية 1","ثانية",1,"نصف داخلي"]
[null,null,null,null,null,null,null,null,null,null,null,null,null,null,null,null,null,null,null,null,null,null,null,null,null,null,null,null,{"$f":"IFERROR(VLOOKUP(ROWS($AC$15:AC115),AD115:AF406,3,FALSE),\"\")","v":""},0,101,"جليد عبد الرزاق","جليد","عبد الرزاق","2010-10-29","ثانية 1","ثانية",1,"نصف داخلي"]
[null,null,null,null,null,null,null,null,null,null,null,null,null,null,null,null,null,null,null,null,null,null,null,null,null,null,null,null,{"$f":"IFERROR(VLOOKUP(ROWS($AC$15:AC116),AD116:AF407,3,FALSE),\"\")","v":""},1,102,"بدراني حورية","بدراني","حورية","2009-12-30","ثانية 1","ثانية",1,"نصف داخلي"]
[null,null,null,null,null,null,null,null,null,null,null,null,null,null,null,null,null,null,null,null,null,null,null,null,null,null,null,null,{"$f":"IFERROR(VLOOKUP(ROWS($AC$15:AC117),AD117:AF408,3,FALSE),\"\")","v":""},2,103,"امحمدي اية حبيبة","امحمدي","اية حبيبة","2008-07-26","ثانية 1","ثانية",1,"نصف داخلي"]
[null,null,null,null,null,null,null,null,null,null,null,null,null,null,null,null,null,null,null,null,null,null,null,null,null,null,null,null,{"$f":"IFERROR(VLOOKUP(ROWS($AC$15:AC118),AD118:AF409,3,FALSE),\"\")","v":""},0,104,"سماعيني اسماعيل رضوان","سماعيني","اسماعيل رضوان","2010-11-04","ثانية 1","ثانية",1,"نصف داخلي"]
[null,null,null,null,null,null,null,null,null,null,null,null,null,null,null,null,null,null,null,null,null,null,null,null,null,null,null,null,{"$f":"IFERROR(VLOOKUP(ROWS($AC$15:AC119),AD119:AF410,3,FALSE),\"\")","v":""},0,105,"عمران نور هان","عمران","نور هان","2011-01-27","ثانية 1","ثانية",1,"نصف داخلي"]
[null,null,null,null,null,null,null,null,null,null,null,null,null,null,null,null,null,null,null,null,null,null,null,null,null,null,null,null,{"$f":"IFERROR(VLOOKUP(ROWS($AC$15:AC120),AD120:AF411,3,FALSE),\"\")","v":""},0,106,"بعيط نور الهدى","بعيط","نور الهدى","2010-09-16","ثانية 1","ثانية",1,"نصف داخلي"]
[null,null,null,null,null,null,null,null,null,null,null,null,null,null,null,null,null,null,null,null,null,null,null,null,null,null,null,null,{"$f":"IFERROR(VLOOKUP(ROWS($AC$15:AC121),AD121:AF412,3,FALSE),\"\")","v":""},0,107,"سهلي ابراهيم الخليل","سهلي","ابراهيم الخليل","2010-01-04","ثانية 1","ثانية",1,"نصف داخلي"]
[null,null,null,null,null,null,null,null,null,null,null,null,null,null,null,null,null,null,null,null,null,null,null,null,null,null,null,null,{"$f":"IFERROR(VLOOKUP(ROWS($AC$15:AC122),AD122:AF413,3,FALSE),\"\")","v":""},1,108,"سماعيني محمد إلياس","سماعيني","محمد إلياس","2010-05-19","ثانية 1","ثانية",1,"نصف داخلي"]
[null,null,null,null,null,null,null,null,null,null,null,null,null,null,null,null,null,null,null,null,null,null,null,null,null,null,null,null,{"$f":"IFERROR(VLOOKUP(ROWS($AC$15:AC123),AD123:AF414,3,FALSE),\"\")","v":""},2,109,"درغال محمد فارس","درغال","محمد فارس","2009-02-23","ثانية 1","ثانية",1,"نصف داخلي"]
[null,null,null,null,null,null,null,null,null,null,null,null,null,null,null,null,null,null,null,null,null,null,null,null,null,null,null,null,{"$f":"IFERROR(VLOOKUP(ROWS($AC$15:AC124),AD124:AF415,3,FALSE),\"\")","v":""},3,110,"سهلي أحمد عبد الفتاح","سهلي","أحمد عبد الفتاح","2009-12-03","ثانية 1","ثانية",1,"نصف داخلي"]
[null,null,null,null,null,null,null,null,null,null,null,null,null,null,null,null,null,null,null,null,null,null,null,null,null,null,null,null,{"$f":"IFERROR(VLOOKUP(ROWS($AC$15:AC125),AD125:AF416,3,FALSE),\"\")","v":""},0,111,"سماعيني شافية","سماعيني","شافية","2010-10-02","ثانية 1","ثانية",1,"نصف داخلي"]
[null,null,null,null,null,null,null,null,null,null,null,null,null,null,null,null,null,null,null,null,null,null,null,null,null,null,null,null,{"$f":"IFERROR(VLOOKUP(ROWS($AC$15:AC126),AD126:AF417,3,FALSE),\"\")","v":""},0,112,"داودي آية","داودي","آية","2010-05-20","ثانية 1","ثانية",1,"نصف داخلي"]
[null,null,null,null,null,null,null,null,null,null,null,null,null,null,null,null,null,null,null,null,null,null,null,null,null,null,null,null,{"$f":"IFERROR(VLOOKUP(ROWS($AC$15:AC127),AD127:AF418,3,FALSE),\"\")","v":""},0,113,"داودي نسرين","داودي","نسرين","2010-05-20","ثانية 1","ثانية",1,"نصف داخلي"]
[null,null,null,null,null,null,null,null,null,null,null,null,null,null,null,null,null,null,null,null,null,null,null,null,null,null,null,null,{"$f":"IFERROR(VLOOKUP(ROWS($AC$15:AC128),AD128:AF419,3,FALSE),\"\")","v":""},0,114,"شنافي السعيد","شنافي","السعيد","2008-12-12","ثانية 1","ثانية",1,"خارجي"]
[null,null,null,null,null,null,null,null,null,null,null,null,null,null,null,null,null,null,null,null,null,null,null,null,null,null,null,null,{"$f":"IFERROR(VLOOKUP(ROWS($AC$15:AC129),AD129:AF420,3,FALSE),\"\")","v":""},0,115,"مخطاري عماد","مخطاري","عماد","2007-10-31","ثانية 1","ثانية",1,"نصف داخلي"]
[null,null,null,null,null,null,null,null,null,null,null,null,null,null,null,null,null,null,null,null,null,null,null,null,null,null,null,null,{"$f":"IFERROR(VLOOKUP(ROWS($AC$15:AC130),AD130:AF421,3,FALSE),\"\")","v":""},1,116,"مخطاري احمد","مخطاري","احمد","2009-11-09","ثانية 1","ثانية",1,"نصف داخلي"]
[null,null,null,null,null,null,null,null,null,null,null,null,null,null,null,null,null,null,null,null,null,null,null,null,null,null,null,null,{"$f":"IFERROR(VLOOKUP(ROWS($AC$15:AC131),AD131:AF422,3,FALSE),\"\")","v":""},2,117,"حساني إلياس","حساني","إلياس","2009-08-29","ثانية 1","ثانية",1,"نصف داخلي"]
[null,null,null,null,null,null,null,null,null,null,null,null,null,null,null,null,null,null,null,null,null,null,null,null,null,null,null,null,{"$f":"IFERROR(VLOOKUP(ROWS($AC$15:AC132),AD132:AF423,3,FALSE),\"\")","v":""},3,118,"حساني ضحى","حساني","ضحى","2009-02-04","ثانية 1","ثانية",1,"نصف داخلي"]
[null,null,null,null,null,null,null,null,null,null,null,null,null,null,null,null,null,null,null,null,null,null,null,null,null,null,null,null,{"$f":"IFERROR(VLOOKUP(ROWS($AC$15:AC133),AD133:AF424,3,FALSE),\"\")","v":""},4,119,"زرارقة محمدالأمين","زرارقة","محمدالأمين","2010-08-19","ثانية 1","ثانية",1,"نصف داخلي"]
[null,null,null,null,null,null,null,null,null,null,null,null,null,null,null,null,null,null,null,null,null,null,null,null,null,null,null,null,{"$f":"IFERROR(VLOOKUP(ROWS($AC$15:AC134),AD134:AF425,3,FALSE),\"\")","v":""},0,120,"ذيب عبد المجيد","ذيب","عبد المجيد","2008-11-01","ثانية 1","ثانية",1,"خارجي"]
[null,null,null,null,null,null,null,null,null,null,null,null,null,null,null,null,null,null,null,null,null,null,null,null,null,null,null,null,{"$f":"IFERROR(VLOOKUP(ROWS($AC$15:AC135),AD135:AF426,3,FALSE),\"\")","v":""},1,121,"حساني فاطيمة الزهراء","حساني","فاطيمة الزهراء","2011-03-30","ثانية 1","ثانية",1,"نصف داخلي"]
[null,null,null,null,null,null,null,null,null,null,null,null,null,null,null,null,null,null,null,null,null,null,null,null,null,null,null,null,{"$f":"IFERROR(VLOOKUP(ROWS($AC$15:AC136),AD136:AF427,3,FALSE),\"\")","v":""},0,122,"شنافي البشير","شنافي","البشير","2010-07-06","ثانية 1","ثانية",1,"نصف داخلي"]
[null,null,null,null,null,null,null,null,null,null,null,null,null,null,null,null,null,null,null,null,null,null,null,null,null,null,null,null,{"$f":"IFERROR(VLOOKUP(ROWS($AC$15:AC137),AD137:AF428,3,FALSE),\"\")","v":""},0,123,"بدراني خلود","بدراني","خلود","2011-02-13","ثانية 2","ثانية",2,"نصف داخلي"]
[null,null,null,null,null,null,null,null,null,null,null,null,null,null,null,null,null,null,null,null,null,null,null,null,null,null,null,null,{"$f":"IFERROR(VLOOKUP(ROWS($AC$15:AC138),AD138:AF429,3,FALSE),\"\")","v":""},0,124,"سعداوي مريم","سعداوي","مريم","2010-07-13","ثانية 2","ثانية",2,"نصف داخلي"]
[null,null,null,null,null,null,null,null,null,null,null,null,null,null,null,null,null,null,null,null,null,null,null,null,null,null,null,null,{"$f":"IFERROR(VLOOKUP(ROWS($AC$15:AC139),AD139:AF430,3,FALSE),\"\")","v":""},0,125,"نوي عطاء الله","نوي","عطاء الله","2011-02-01","ثانية 2","ثانية",2,"نصف داخلي"]
[null,null,null,null,null,null,null,null,null,null,null,null,null,null,null,null,null,null,null,null,null,null,null,null,null,null,null,null,{"$f":"IFERROR(VLOOKUP(ROWS($AC$15:AC140),AD140:AF431,3,FALSE),\"\")","v":""},0,126,"سعداوي الشيخ","سعداوي","الشيخ","2008-06-11","ثانية 2","ثانية",2,"خارجي"]
[null,null,null,null,null,null,null,null,null,null,null,null,null,null,null,null,null,null,null,null,null,null,null,null,null,null,null,null,{"$f":"IFERROR(VLOOKUP(ROWS($AC$15:AC141),AD141:AF432,3,FALSE),\"\")","v":""},1,127,"حساني علاء الدين","حساني","علاء الدين","2008-08-11","ثانية 2","ثانية",2,"نصف داخلي"]
[null,null,null,null,null,null,null,null,null,null,null,null,null,null,null,null,null,null,null,null,null,null,null,null,null,null,null,null,{"$f":"IFERROR(VLOOKUP(ROWS($AC$15:AC142),AD142:AF433,3,FALSE),\"\")","v":""},2,128,"بومقواس محمد الطاهر","بومقواس","محمد الطاهر","2009-02-21","ثانية 2","ثانية",2,"نصف داخلي"]
[null,null,null,null,null,null,null,null,null,null,null,null,null,null,null,null,null,null,null,null,null,null,null,null,null,null,null,null,{"$f":"IFERROR(VLOOKUP(ROWS($AC$15:AC143),AD143:AF434,3,FALSE),\"\")","v":""},3,129,"ماحي فضيلة","ماحي","فضيلة","2010-08-12","ثانية 2","ثانية",2,"نصف داخلي"]
[null,null,null,null,null,null,null,null,null,null,null,null,null,null,null,null,null,null,null,null,null,null,null,null,null,null,null,null,{"$f":"IFERROR(VLOOKUP(ROWS($AC$15:AC144),AD144:AF435,3,FALSE),\"\")","v":""},{"$f":"IF(ISNUMBER(SEARCH($B$50,AF144)),MAX(AD143:AD143)+1,0)","v":4},130,"بدراني محمد النذير","بدراني","محمد النذير","2008-07-26","ثانية 2","ثانية",2,"نصف داخلي"]
[null,null,null,null,null,null,null,null,null,null,null,null,null,null,null,null,null,null,null,null,null,null,null,null,null,null,null,null,{"$f":"IFERROR(VLOOKUP(ROWS($AC$15:AC145),AD145:AF436,3,FALSE),\"\")","v":""},0,131,"بعيط ميلود","بعيط","ميلود","2008-08-01","ثانية 2","ثانية",2,"نصف داخلي"]
[null,null,null,null,null,null,null,null,null,null,null,null,null,null,null,null,null,null,null,null,null,null,null,null,null,null,null,null,{"$f":"IFERROR(VLOOKUP(ROWS($AC$15:AC146),AD146:AF437,3,FALSE),\"\")","v":""},1,132,"حساني فاطنة","حساني","فاطنة","2010-01-10","ثانية 2","ثانية",2,"نصف داخلي"]
[null,null,null,null,null,null,null,null,null,null,null,null,null,null,null,null,null,null,null,null,null,null,null,null,null,null,null,null,{"$f":"IFERROR(VLOOKUP(ROWS($AC$15:AC147),AD147:AF438,3,FALSE),\"\")","v":""},2,133,"سعداوي سندس رحاب","سعداوي","سندس رحاب","2010-10-21","ثانية 2","ثانية",2,"نصف داخلي"]
[null,null,null,null,null,null,null,null,null,null,null,null,null,null,null,null,null,null,null,null,null,null,null,null,null,null,null,null,{"$f":"IFERROR(VLOOKUP(ROWS($AC$15:AC148),AD148:AF439,3,FALSE),\"\")","v":""},3,134,"سهلي محمد الحبيب","سهلي","محمد الحبيب","2010-08-11","ثانية 2","ثانية",2,"نصف داخلي"]
[null,null,null,null,null,null,null,null,null,null,null,null,null,null,null,null,null,null,null,null,null,null,null,null,null,null,null,null,{"$f":"IFERROR(VLOOKUP(ROWS($AC$15:AC149),AD149:AF440,3,FALSE),\"\")","v":""},0,135,"سعداوي فاطمة","سعداوي","فاطمة","2009-07-18","ثانية 2","ثانية",2,"نصف داخلي"]
[null,null,null,null,null,null,null,null,null,null,null,null,null,null,null,null,null,null,null,null,null,null,null,null,null,null,null,null,{"$f":"IFERROR(VLOOKUP(ROWS($AC$15:AC150),AD150:AF441,3,FALSE),\"\")","v":""},0,136,"سماعيني هشام","سماعيني","هشام","2010-11-19","ثانية 2","ثانية",2,"نصف داخلي"]
[null,null,null,null,null,null,null,null,null,null,null,null,null,null,null,null,null,null,null,null,null,null,null,null,null,null,null,null,{"$f":"IFERROR(VLOOKUP(ROWS($AC$15:AC151),AD151:AF442,3,FALSE),\"\")","v":""},1,137,"بعيط محمد جلول","بعيط","محمد جلول","2010-12-26","ثانية 2","ثانية",2,"نصف داخلي"]
[null,null,null,null,null,null,null,null,null,null,null,null,null,null,null,null,null,null,null,null,null,null,null,null,null,null,null,null,{"$f":"IFERROR(VLOOKUP(ROWS($AC$15:AC152),AD152:AF443,3,FALSE),\"\")","v":""},0,138,"بدراني إيمان","بدراني","إيمان","2010-06-24","ثانية 2","ثانية",2,"نصف داخلي"]
[null,null,null,null,null,null,null,null,null,null,null,null,null,null,null,null,null,null,null,null,null,null,null,null,null,null,null,null,{"$f":"IFERROR(VLOOKUP(ROWS($AC$15:AC153),AD153:AF444,3,FALSE),\"\")","v":""},1,139,"فتيتح إسماعيل","فتيتح","إسماعيل","2010-04-17","ثانية 2","ثانية",2,"نصف داخلي"]
[null,null,null,null,null,null,null,null,null,null,null,null,null,null,null,null,null,null,null,null,null,null,null,null,null,null,null,null,{"$f":"IFERROR(VLOOKUP(ROWS($AC$15:AC154),AD154:AF445,3,FALSE),\"\")","v":""},0,140,"بعيط أنفال","بعيط","أنفال","2008-11-17","ثانية 2","ثانية",2,"نصف داخلي"]
[null,null,null,null,null,null,null,null,null,null,null,null,null,null,null,null,null,null,null,null,null,null,null,null,null,null,null,null,{"$f":"IFERROR(VLOOKUP(ROWS($AC$15:AC155),AD155:AF446,3,FALSE),\"\")","v":""},1,141,"سهلي هيبة الرحمان","سهلي","هيبة الرحمان","2009-10-01","ثانية 2","ثانية",2,"نصف داخلي"]
[null,null,null,null,null,null,null,null,null,null,null,null,null,null,null,null,null,null,null,null,null,null,null,null,null,null,null,null,{"$f":"IFERROR(VLOOKUP(ROWS($AC$15:AC156),AD156:AF447,3,FALSE),\"\")","v":""},2,142,"سماعيني اسماعيل محمود","سماعيني","اسماعيل محمود","2010-09-18","ثانية 2","ثانية",2,"نصف داخلي"]
[null,null,null,null,null,null,null,null,null,null,null,null,null,null,null,null,null,null,null,null,null,null,null,null,null,null,null,null,{"$f":"IFERROR(VLOOKUP(ROWS($AC$15:AC157),AD157:AF448,3,FALSE),\"\")","v":""},3,143,"بن يوسف محمد","بن يوسف","محمد","2007-11-12","ثانية 2","ثانية",2,"خارجي"]
[null,null,null,null,null,null,null,null,null,null,null,null,null,null,null,null,null,null,null,null,null,null,null,null,null,null,null,null,{"$f":"IFERROR(VLOOKUP(ROWS($AC$15:AC158),AD158:AF449,3,FALSE),\"\")","v":""},0,144,"قرمان ملاك","قرمان","ملاك","2010-11-09","ثانية 2","ثانية",2,"نصف داخلي"]
[null,null,null,null,null,null,null,null,null,null,null,null,null,null,null,null,null,null,null,null,null,null,null,null,null,null,null,null,{"$f":"IFERROR(VLOOKUP(ROWS($AC$15:AC159),AD159:AF450,3,FALSE),\"\")","v":""},0,145,"سهلي رقية","سهلي","رقية","2010-09-07","ثانية 2","ثانية",2,"نصف داخلي"]
[null,null,null,null,null,null,null,null,null,null,null,null,null,null,null,null,null,null,null,null,null,null,null,null,null,null,null,null,{"$f":"IFERROR(VLOOKUP(ROWS($AC$15:AC160),AD160:AF451,3,FALSE),\"\")","v":""},1,146,"ماحي كوثر","ماحي","كوثر","2010-03-22","ثانية 2","ثانية",2,"نصف داخلي"]
[null,null,null,null,null,null,null,null,null,null,null,null,null,null,null,null,null,null,null,null,null,null,null,null,null,null,null,null,{"$f":"IFERROR(VLOOKUP(ROWS($AC$15:AC161),AD161:AF452,3,FALSE),\"\")","v":""},0,147,"بوبكري عبد الجليل الجيلالي","بوبكري","عبد الجليل الجيلالي","2009-12-04","ثانية 2","ثانية",2,"نصف داخلي"]
[null,null,null,null,null,null,null,null,null,null,null,null,null,null,null,null,null,null,null,null,null,null,null,null,null,null,null,null,{"$f":"IFERROR(VLOOKUP(ROWS($AC$15:AC162),AD162:AF453,3,FALSE),\"\")","v":""},0,148,"بومقواس عبد الكريم","بومقواس","عبد الكريم","2007-09-08","ثانية 2","ثانية",2,"خارجي"]
[null,null,null,null,null,null,null,null,null,null,null,null,null,null,null,null,null,null,null,null,null,null,null,null,null,null,null,null,{"$f":"IFERROR(VLOOKUP(ROWS($AC$15:AC163),AD163:AF454,3,FALSE),\"\")","v":""},0,149,"بعيط إيمان","بعيط","إيمان","2010-06-19","ثانية 2","ثانية",2,"نصف داخلي"]
[null,null,null,null,null,null,null,null,null,null,null,null,null,null,null,null,null,null,null,null,null,null,null,null,null,null,null,null,{"$f":"IFERROR(VLOOKUP(ROWS($AC$15:AC164),AD164:AF455,3,FALSE),\"\")","v":""},0,150,"قياس فاروق","قياس","فاروق","2006-09-11","ثانية 3","ثانية",3,"نصف داخلي"]
[null,null,null,null,null,null,null,null,null,null,null,null,null,null,null,null,null,null,null,null,null,null,null,null,null,null,null,null,{"$f":"IFERROR(VLOOKUP(ROWS($AC$15:AC165),AD165:AF456,3,FALSE),\"\")","v":""},0,151,"كعيفص سمية","كعيفص","سمية","2010-06-01","ثانية 3","ثانية",3,"نصف داخلي"]
[null,null,null,null,null,null,null,null,null,null,null,null,null,null,null,null,null,null,null,null,null,null,null,null,null,null,null,null,{"$f":"IFERROR(VLOOKUP(ROWS($AC$15:AC166),AD166:AF457,3,FALSE),\"\")","v":""},1,152,"شنافي ضحى","شنافي","ضحى","2010-01-06","ثانية 3","ثانية",3,"نصف داخلي"]
[null,null,null,null,null,null,null,null,null,null,null,null,null,null,null,null,null,null,null,null,null,null,null,null,null,null,null,null,{"$f":"IFERROR(VLOOKUP(ROWS($AC$15:AC167),AD167:AF458,3,FALSE),\"\")","v":""},0,153,"خملولي رشا","خملولي","رشا","2009-08-01","ثانية 3","ثانية",3,"نصف داخلي"]
[null,null,null,null,null,null,null,null,null,null,null,null,null,null,null,null,null,null,null,null,null,null,null,null,null,null,null,null,{"$f":"IFERROR(VLOOKUP(ROWS($AC$15:AC168),AD168:AF459,3,FALSE),\"\")","v":""},0,154,"سماعيني ياسمين رشا","سماعيني","ياسمين رشا","2010-01-02","ثانية 3","ثانية",3,"نصف داخلي"]
[null,null,null,null,null,null,null,null,null,null,null,null,null,null,null,null,null,null,null,null,null,null,null,null,null,null,null,null,{"$f":"IFERROR(VLOOKUP(ROWS($AC$15:AC169),AD169:AF460,3,FALSE),\"\")","v":""},0,155,"مخطاري منال","مخطاري","منال","2008-06-03","ثانية 3","ثانية",3,"خارجي"]
[null,null,null,null,null,null,null,null,null,null,null,null,null,null,null,null,null,null,null,null,null,null,null,null,null,null,null,null,{"$f":"IFERROR(VLOOKUP(ROWS($AC$15:AC170),AD170:AF461,3,FALSE),\"\")","v":""},1,156,"ماحي محمد جلال الدين","ماحي","محمد جلال الدين","2010-01-26","ثانية 3","ثانية",3,"نصف داخلي"]
[null,null,null,null,null,null,null,null,null,null,null,null,null,null,null,null,null,null,null,null,null,null,null,null,null,null,null,null,{"$f":"IFERROR(VLOOKUP(ROWS($AC$15:AC171),AD171:AF462,3,FALSE),\"\")","v":""},0,157,"جبالي سلسبيل","جبالي","سلسبيل","2010-07-12","ثانية 3","ثانية",3,"نصف داخلي"]
[null,null,null,null,null,null,null,null,null,null,null,null,null,null,null,null,null,null,null,null,null,null,null,null,null,null,null,null,{"$f":"IFERROR(VLOOKUP(ROWS($AC$15:AC172),AD172:AF463,3,FALSE),\"\")","v":""},0,158,"مخطاري فدوى","مخطاري","فدوى","2010-07-26","ثانية 3","ثانية",3,"نصف داخلي"]
[null,null,null,null,null,null,null,null,null,null,null,null,null,null,null,null,null,null,null,null,null,null,null,null,null,null,null,null,{"$f":"IFERROR(VLOOKUP(ROWS($AC$15:AC173),AD173:AF464,3,FALSE),\"\")","v":""},0,159,"شنافي خولة","شنافي","خولة","2010-11-03","ثانية 3","ثانية",3,"نصف داخلي"]
[null,null,null,null,null,null,null,null,null,null,null,null,null,null,null,null,null,null,null,null,null,null,null,null,null,null,null,null,{"$f":"IFERROR(VLOOKUP(ROWS($AC$15:AC174),AD174:AF465,3,FALSE),\"\")","v":""},0,160,"بعيط عبد الجليل","بعيط","عبد الجليل","2010-01-10","ثانية 3","ثانية",3,"نصف داخلي"]
[null,null,null,null,null,null,null,null,null,null,null,null,null,null,null,null,null,null,null,null,null,null,null,null,null,null,null,null,{"$f":"IFERROR(VLOOKUP(ROWS($AC$15:AC175),AD175:AF466,3,FALSE),\"\")","v":""},1,161,"ماحي مسعودة","ماحي","مسعودة","2010-02-22","ثانية 3","ثانية",3,"نصف داخلي"]
[null,null,null,null,null,null,null,null,null,null,null,null,null,null,null,null,null,null,null,null,null,null,null,null,null,null,null,null,{"$f":"IFERROR(VLOOKUP(ROWS($AC$15:AC176),AD176:AF467,3,FALSE),\"\")","v":""},2,162,"بدراني محمد الأمين","بدراني","محمد الأمين","2010-06-20","ثانية 3","ثانية",3,"نصف داخلي"]
[null,null,null,null,null,null,null,null,null,null,null,null,null,null,null,null,null,null,null,null,null,null,null,null,null,null,null,null,{"$f":"IFERROR(VLOOKUP(ROWS($AC$15:AC177),AD177:AF468,3,FALSE),\"\")","v":""},3,163,"مضميط عبد الرحمان","مضميط","عبد الرحمان","2010-02-14","ثانية 3","ثانية",3,"نصف داخلي"]
[null,null,null,null,null,null,null,null,null,null,null,null,null,null,null,null,null,null,null,null,null,null,null,null,null,null,null,null,{"$f":"IFERROR(VLOOKUP(ROWS($AC$15:AC178),AD178:AF469,3,FALSE),\"\")","v":""},0,164,"بدراني عبد الباسط","بدراني","عبد الباسط","2010-04-04","ثانية 3","ثانية",3,"نصف داخلي"]
[null,null,null,null,null,null,null,null,null,null,null,null,null,null,null,null,null,null,null,null,null,null,null,null,null,null,null,null,{"$f":"IFERROR(VLOOKUP(ROWS($AC$15:AC179),AD179:AF470,3,FALSE),\"\")","v":""},0,165,"شبيشب رياض سيف الدين","شبيشب","رياض سيف الدين","2010-09-25","ثانية 3","ثانية",3,"نصف داخلي"]
[null,null,null,null,null,null,null,null,null,null,null,null,null,null,null,null,null,null,null,null,null,null,null,null,null,null,null,null,{"$f":"IFERROR(VLOOKUP(ROWS($AC$15:AC180),AD180:AF471,3,FALSE),\"\")","v":""},1,166,"بعيط حسين محمد الامين","بعيط","حسين محمد الامين","2010-07-01","ثانية 3","ثانية",3,"نصف داخلي"]
[null,null,null,null,null,null,null,null,null,null,null,null,null,null,null,null,null,null,null,null,null,null,null,null,null,null,null,null,{"$f":"IFERROR(VLOOKUP(ROWS($AC$15:AC181),AD181:AF472,3,FALSE),\"\")","v":""},0,167,"كعيفص بلقاسم","كعيفص","بلقاسم","2009-01-23","ثانية 3","ثانية",3,"نصف داخلي"]
[null,null,null,null,null,null,null,null,null,null,null,null,null,null,null,null,null,null,null,null,null,null,null,null,null,null,null,null,{"$f":"IFERROR(VLOOKUP(ROWS($AC$15:AC182),AD182:AF473,3,FALSE),\"\")","v":""},0,168,"شنافي امينة","شنافي","امينة","2010-09-13","ثانية 3","ثانية",3,"نصف داخلي"]
[null,null,null,null,null,null,null,null,null,null,null,null,null,null,null,null,null,null,null,null,null,null,null,null,null,null,null,null,{"$f":"IFERROR(VLOOKUP(ROWS($AC$15:AC183),AD183:AF474,3,FALSE),\"\")","v":""},0,169,"بومقواس أمال","بومقواس","أمال","2010-12-09","ثانية 3","ثانية",3,"نصف داخلي"]
[null,null,null,null,null,null,null,null,null,null,null,null,null,null,null,null,null,null,null,null,null,null,null,null,null,null,null,null,{"$f":"IFERROR(VLOOKUP(ROWS($AC$15:AC184),AD184:AF475,3,FALSE),\"\")","v":""},0,170,"سهلي خالد عبد الرزاق","سهلي","خالد عبد الرزاق","2009-07-13","ثانية 3","ثانية",3,"خارجي"]
[null,null,null,null,null,null,null,null,null,null,null,null,null,null,null,null,null,null,null,null,null,null,null,null,null,null,null,null,{"$f":"IFERROR(VLOOKUP(ROWS($AC$15:AC185),AD185:AF476,3,FALSE),\"\")","v":""},0,171,"شنافي مسعودة","شنافي","مسعودة","2007-06-17","ثانية 3","ثانية",3,"نصف داخلي"]
[null,null,null,null,null,null,null,null,null,null,null,null,null,null,null,null,null,null,null,null,null,null,null,null,null,null,null,null,{"$f":"IFERROR(VLOOKUP(ROWS($AC$15:AC186),AD186:AF477,3,FALSE),\"\")","v":""},1,172,"ماحي بن يوسف","ماحي","بن يوسف","2009-05-05","ثانية 3","ثانية",3,"نصف داخلي"]
[null,null,null,null,null,null,null,null,null,null,null,null,null,null,null,null,null,null,null,null,null,null,null,null,null,null,null,null,{"$f":"IFERROR(VLOOKUP(ROWS($AC$15:AC187),AD187:AF478,3,FALSE),\"\")","v":""},2,173,"ماحي محمد","ماحي","محمد","2008-12-16","ثانية 3","ثانية",3,"خارجي"]
[null,null,null,null,null,null,null,null,null,null,null,null,null,null,null,null,null,null,null,null,null,null,null,null,null,null,null,null,{"$f":"IFERROR(VLOOKUP(ROWS($AC$15:AC188),AD188:AF479,3,FALSE),\"\")","v":""},0,174,"شنافي هنادي","شنافي","هنادي","2010-01-02","ثانية 3","ثانية",3,"نصف داخلي"]
[null,null,null,null,null,null,null,null,null,null,null,null,null,null,null,null,null,null,null,null,null,null,null,null,null,null,null,null,{"$f":"IFERROR(VLOOKUP(ROWS($AC$15:AC189),AD189:AF480,3,FALSE),\"\")","v":""},0,175,"طيبي هديل","طيبي","هديل","2010-10-09","ثانية 3","ثانية",3,"نصف داخلي"]
[null,null,null,null,null,null,null,null,null,null,null,null,null,null,null,null,null,null,null,null,null,null,null,null,null,null,null,null,{"$f":"IFERROR(VLOOKUP(ROWS($AC$15:AC190),AD190:AF481,3,FALSE),\"\")","v":""},0,176,"شبيشب وصال","شبيشب","وصال","2009-01-20","ثالثة 1","ثالثة",1,"نصف داخلي"]
[null,null,null,null,null,null,null,null,null,null,null,null,null,null,null,null,null,null,null,null,null,null,null,null,null,null,null,null,{"$f":"IFERROR(VLOOKUP(ROWS($AC$15:AC191),AD191:AF482,3,FALSE),\"\")","v":""},0,177,"شنافي فضيلة","شنافي","فضيلة","2009-07-04","ثالثة 1","ثالثة",1,"نصف داخلي"]
[null,null,null,null,null,null,null,null,null,null,null,null,null,null,null,null,null,null,null,null,null,null,null,null,null,null,null,null,{"$f":"IFERROR(VLOOKUP(ROWS($AC$15:AC192),AD192:AF483,3,FALSE),\"\")","v":""},0,178,"بدراني بشرى","بدراني","بشرى","2009-06-10","ثالثة 1","ثالثة",1,"نصف داخلي"]
[null,null,null,null,null,null,null,null,null,null,null,null,null,null,null,null,null,null,null,null,null,null,null,null,null,null,null,null,{"$f":"IFERROR(VLOOKUP(ROWS($AC$15:AC193),AD193:AF484,3,FALSE),\"\")","v":""},0,179,"جبالي ندى هويام","جبالي","ندى هويام","2009-03-10","ثالثة 1","ثالثة",1,"نصف داخلي"]
[null,null,null,null,null,null,null,null,null,null,null,null,null,null,null,null,null,null,null,null,null,null,null,null,null,null,null,null,{"$f":"IFERROR(VLOOKUP(ROWS($AC$15:AC194),AD194:AF485,3,FALSE),\"\")","v":""},0,180,"بن يوسف فاطنة","بن يوسف","فاطنة","2009-03-03","ثالثة 1","ثالثة",1,"نصف داخلي"]
[null,null,null,null,null,null,null,null,null,null,null,null,null,null,null,null,null,null,null,null,null,null,null,null,null,null,null,null,{"$f":"IFERROR(VLOOKUP(ROWS($AC$15:AC195),AD195:AF486,3,FALSE),\"\")","v":""},0,181,"سهلي كوثر","سهلي","كوثر","2009-07-17","ثالثة 1","ثالثة",1,"نصف داخلي"]
[null,null,null,null,null,null,null,null,null,null,null,null,null,null,null,null,null,null,null,null,null,null,null,null,null,null,null,null,{"$f":"IFERROR(VLOOKUP(ROWS($AC$15:AC196),AD196:AF487,3,FALSE),\"\")","v":""},1,182,"بومقواس ايمان هيبة الرحمان","بومقواس","ايمان هيبة الرحمان","2009-09-05","ثالثة 1","ثالثة",1,"نصف داخلي"]
[null,null,null,null,null,null,null,null,null,null,null,null,null,null,null,null,null,null,null,null,null,null,null,null,null,null,null,null,{"$f":"IFERROR(VLOOKUP(ROWS($AC$15:AC197),AD197:AF488,3,FALSE),\"\")","v":""},0,183,"جبالي آية","جبالي","آية","2009-04-05","ثالثة 1","ثالثة",1,"نصف داخلي"]
[null,null,null,null,null,null,null,null,null,null,null,null,null,null,null,null,null,null,null,null,null,null,null,null,null,null,null,null,{"$f":"IFERROR(VLOOKUP(ROWS($AC$15:AC198),AD198:AF489,3,FALSE),\"\")","v":""},0,184,"شنافي ابتسام نور اليقين","شنافي","ابتسام نور اليقين","2009-09-05","ثالثة 1","ثالثة",1,"نصف داخلي"]
[null,null,null,null,null,null,null,null,null,null,null,null,null,null,null,null,null,null,null,null,null,null,null,null,null,null,null,null,{"$f":"IFERROR(VLOOKUP(ROWS($AC$15:AC199),AD199:AF490,3,FALSE),\"\")","v":""},1,185,"بدراني حنان","بدراني","حنان","2009-09-30","ثالثة 1","ثالثة",1,"نصف داخلي"]
[null,null,null,null,null,null,null,null,null,null,null,null,null,null,null,null,null,null,null,null,null,null,null,null,null,null,null,null,{"$f":"IFERROR(VLOOKUP(ROWS($AC$15:AC200),AD200:AF491,3,FALSE),\"\")","v":""},0,186,"سعداوي بشرى","سعداوي","بشرى","2009-12-06","ثالثة 1","ثالثة",1,"نصف داخلي"]
[null,null,null,null,null,null,null,null,null,null,null,null,null,null,null,null,null,null,null,null,null,null,null,null,null,null,null,null,{"$f":"IFERROR(VLOOKUP(ROWS($AC$15:AC201),AD201:AF492,3,FALSE),\"\")","v":""},0,187,"خيش شهرزاد","خيش","شهرزاد","2009-12-20","ثالثة 1","ثالثة",1,"نصف داخلي"]
[null,null,null,null,null,null,null,null,null,null,null,null,null,null,null,null,null,null,null,null,null,null,null,null,null,null,null,null,{"$f":"IFERROR(VLOOKUP(ROWS($AC$15:AC202),AD202:AF493,3,FALSE),\"\")","v":""},0,188,"دهكل إيناس","دهكل","إيناس","2009-12-08","ثالثة 1","ثالثة",1,"نصف داخلي"]
[null,null,null,null,null,null,null,null,null,null,null,null,null,null,null,null,null,null,null,null,null,null,null,null,null,null,null,null,{"$f":"IFERROR(VLOOKUP(ROWS($AC$15:AC203),AD203:AF494,3,FALSE),\"\")","v":""},0,189,"طيبي فاطمة الزهراء","طيبي","فاطمة الزهراء","2010-03-27","ثالثة 1","ثالثة",1,"نصف داخلي"]
[null,null,null,null,null,null,null,null,null,null,null,null,null,null,null,null,null,null,null,null,null,null,null,null,null,null,null,null,{"$f":"IFERROR(VLOOKUP(ROWS($AC$15:AC204),AD204:AF495,3,FALSE),\"\")","v":""},1,190,"أمحمدي آية نور اليقين","أمحمدي","آية نور اليقين","2009-08-17","ثالثة 1","ثالثة",1,"نصف داخلي"]
[null,null,null,null,null,null,null,null,null,null,null,null,null,null,null,null,null,null,null,null,null,null,null,null,null,null,null,null,{"$f":"IFERROR(VLOOKUP(ROWS($AC$15:AC205),AD205:AF496,3,FALSE),\"\")","v":""},0,191,"بكي فاطيمة","بكي","فاطيمة","2008-08-06","ثالثة 1","ثالثة",1,"نصف داخلي"]
[null,null,null,null,null,null,null,null,null,null,null,null,null,null,null,null,null,null,null,null,null,null,null,null,null,null,null,null,{"$f":"IFERROR(VLOOKUP(ROWS($AC$15:AC206),AD206:AF497,3,FALSE),\"\")","v":""},0,192,"بدراني آية","بدراني","آية","2009-03-17","ثالثة 1","ثالثة",1,"نصف داخلي"]
[null,null,null,null,null,null,null,null,null,null,null,null,null,null,null,null,null,null,null,null,null,null,null,null,null,null,null,null,{"$f":"IFERROR(VLOOKUP(ROWS($AC$15:AC207),AD207:AF498,3,FALSE),\"\")","v":""},0,193,"خملولي شناف","خملولي","شناف","2008-04-01","ثالثة 1","ثالثة",1,"نصف داخلي"]
[null,null,null,null,null,null,null,null,null,null,null,null,null,null,null,null,null,null,null,null,null,null,null,null,null,null,null,null,{"$f":"IFERROR(VLOOKUP(ROWS($AC$15:AC208),AD208:AF499,3,FALSE),\"\")","v":""},{"$f":"IF(ISNUMBER(SEARCH($B$50,AF208)),MAX(AD207:AD207)+1,0)","v":1},194,"حساني محمد عبد الهادي","حساني","محمد عبد الهادي","2009-07-14","ثالثة 1","ثالثة",1,"نصف داخلي"]
[null,null,null,null,null,null,null,null,null,null,null,null,null,null,null,null,null,null,null,null,null,null,null,null,null,null,null,null,{"$f":"IFERROR(VLOOKUP(ROWS($AC$15:AC209),AD209:AF500,3,FALSE),\"\")","v":""},0,195,"شنافي جميلة","شنافي","جميلة","2008-12-10","ثالثة 1","ثالثة",1,"نصف داخلي"]
[null,null,null,null,null,null,null,null,null,null,null,null,null,null,null,null,null,null,null,null,null,null,null,null,null,null,null,null,{"$f":"IFERROR(VLOOKUP(ROWS($AC$15:AC210),AD210:AF501,3,FALSE),\"\")","v":""},0,196,"شنافي شناف","شنافي","شناف","2009-01-16","ثالثة 1","ثالثة",1,"نصف داخلي"]
[null,null,null,null,null,null,null,null,null,null,null,null,null,null,null,null,null,null,null,null,null,null,null,null,null,null,null,null,{"$f":"IFERROR(VLOOKUP(ROWS($AC$15:AC211),AD211:AF502,3,FALSE),\"\")","v":""},1,197,"سماعيني محمد طه","سماعيني","محمد طه","2009-05-23","ثالثة 1","ثالثة",1,"نصف داخلي"]
[null,null,null,null,null,null,null,null,null,null,null,null,null,null,null,null,null,null,null,null,null,null,null,null,null,null,null,null,{"$f":"IFERROR(VLOOKUP(ROWS($AC$15:AC212),AD212:AF503,3,FALSE),\"\")","v":""},0,198,"بوبكري صورية","بوبكري","صورية","2007-04-04","ثالثة 1","ثالثة",1,"خارجي"]
[null,null,null,null,null,null,null,null,null,null,null,null,null,null,null,null,null,null,null,null,null,null,null,null,null,null,null,null,{"$f":"IFERROR(VLOOKUP(ROWS($AC$15:AC213),AD213:AF504,3,FALSE),\"\")","v":""},0,199,"بدراني تقي الدين","بدراني","تقي الدين","2009-03-17","ثالثة 1","ثالثة",1,"نصف داخلي"]
[null,null,null,null,null,null,null,null,null,null,null,null,null,null,null,null,null,null,null,null,null,null,null,null,null,null,null,null,{"$f":"IFERROR(VLOOKUP(ROWS($AC$15:AC214),AD214:AF505,3,FALSE),\"\")","v":""},0,200,"سماعيني نور الدين","سماعيني","نور الدين","2009-08-20","ثالثة 1","ثالثة",1,"نصف داخلي"]
[null,null,null,null,null,null,null,null,null,null,null,null,null,null,null,null,null,null,null,null,null,null,null,null,null,null,null,null,{"$f":"IFERROR(VLOOKUP(ROWS($AC$15:AC215),AD215:AF506,3,FALSE),\"\")","v":""},0,201,"سهلي عبد الجبار","سهلي","عبد الجبار","2009-02-03","ثالثة 1","ثالثة",1,"نصف داخلي"]
[null,null,null,null,null,null,null,null,null,null,null,null,null,null,null,null,null,null,null,null,null,null,null,null,null,null,null,null,{"$f":"IFERROR(VLOOKUP(ROWS($AC$15:AC216),AD216:AF507,3,FALSE),\"\")","v":""},0,202,"شنافي ابراهيم","شنافي","ابراهيم","2007-08-25","ثالثة 1","ثالثة",1,"نصف داخلي"]
[null,null,null,null,null,null,null,null,null,null,null,null,null,null,null,null,null,null,null,null,null,null,null,null,null,null,null,null,{"$f":"IFERROR(VLOOKUP(ROWS($AC$15:AC217),AD217:AF508,3,FALSE),\"\")","v":""},0,203,"شبيشب مسعود","شبيشب","مسعود","2008-06-06","ثالثة 1","ثالثة",1,"نصف داخلي"]
[null,null,null,null,null,null,null,null,null,null,null,null,null,null,null,null,null,null,null,null,null,null,null,null,null,null,null,null,{"$f":"IFERROR(VLOOKUP(ROWS($AC$15:AC218),AD218:AF509,3,FALSE),\"\")","v":""},1,204,"سماعيني محمد الامين","سماعيني","محمد الامين","2007-05-02","ثالثة 1","ثالثة",1,"خارجي"]
[null,null,null,null,null,null,null,null,null,null,null,null,null,null,null,null,null,null,null,null,null,null,null,null,null,null,null,null,{"$f":"IFERROR(VLOOKUP(ROWS($AC$15:AC219),AD219:AF510,3,FALSE),\"\")","v":""},2,205,"بدراني سيد احمد بن يوسف","بدراني","سيد احمد بن يوسف","2008-06-15","ثالثة 1","ثالثة",1,"نصف داخلي"]
[null,null,null,null,null,null,null,null,null,null,null,null,null,null,null,null,null,null,null,null,null,null,null,null,null,null,null,null,{"$f":"IFERROR(VLOOKUP(ROWS($AC$15:AC220),AD220:AF511,3,FALSE),\"\")","v":""},3,206,"سماعيني محمد شيخ علي","سماعيني","محمد شيخ علي","2008-01-30","ثالثة 1","ثالثة",1,"نصف داخلي"]
[null,null,null,null,null,null,null,null,null,null,null,null,null,null,null,null,null,null,null,null,null,null,null,null,null,null,null,null,{"$f":"IFERROR(VLOOKUP(ROWS($AC$15:AC221),AD221:AF512,3,FALSE),\"\")","v":""},0,207,"طيفوري عائشة","طيفوري","عائشة","2009-07-05","ثالثة 2","ثالثة",2,"نصف داخلي"]
[null,null,null,null,null,null,null,null,null,null,null,null,null,null,null,null,null,null,null,null,null,null,null,null,null,null,null,null,{"$f":"IFERROR(VLOOKUP(ROWS($AC$15:AC222),AD222:AF513,3,FALSE),\"\")","v":""},0,208,"شنافي عثمان","شنافي","عثمان","2009-09-23","ثالثة 2","ثالثة",2,"نصف داخلي"]
[null,null,null,null,null,null,null,null,null,null,null,null,null,null,null,null,null,null,null,null,null,null,null,null,null,null,null,null,{"$f":"IFERROR(VLOOKUP(ROWS($AC$15:AC223),AD223:AF514,3,FALSE),\"\")","v":""},0,209,"شنافي لطفي قدور","شنافي","لطفي قدور","2009-06-20","ثالثة 2","ثالثة",2,"نصف داخلي"]
[null,null,null,null,null,null,null,null,null,null,null,null,null,null,null,null,null,null,null,null,null,null,null,null,null,null,null,null,{"$f":"IFERROR(VLOOKUP(ROWS($AC$15:AC224),AD224:AF515,3,FALSE),\"\")","v":""},1,210,"شنافي الحسين","شنافي","الحسين","2007-08-04","ثالثة 2","ثالثة",2,"نصف داخلي"]
[null,null,null,null,null,null,null,null,null,null,null,null,null,null,null,null,null,null,null,null,null,null,null,null,null,null,null,null,{"$f":"IFERROR(VLOOKUP(ROWS($AC$15:AC225),AD225:AF516,3,FALSE),\"\")","v":""},2,211,"أمحمدي نصر الله","أمحمدي","نصر الله","2006-09-25","ثالثة 2","ثالثة",2,"نصف داخلي"]
[null,null,null,null,null,null,null,null,null,null,null,null,null,null,null,null,null,null,null,null,null,null,null,null,null,null,null,null,{"$f":"IFERROR(VLOOKUP(ROWS($AC$15:AC226),AD226:AF517,3,FALSE),\"\")","v":""},3,212,"شنافي محمد بن يوسف","شنافي","محمد بن يوسف","2009-08-27","ثالثة 2","ثالثة",2,"نصف داخلي"]
[null,null,null,null,null,null,null,null,null,null,null,null,null,null,null,null,null,null,null,null,null,null,null,null,null,null,null,null,{"$f":"IFERROR(VLOOKUP(ROWS($AC$15:AC227),AD227:AF518,3,FALSE),\"\")","v":""},4,213,"سماعيني محمد العيد","سماعيني","محمد العيد","2009-11-28","ثالثة 2","ثالثة",2,"نصف داخلي"]
[null,null,null,null,null,null,null,null,null,null,null,null,null,null,null,null,null,null,null,null,null,null,null,null,null,null,null,null,{"$f":"IFERROR(VLOOKUP(ROWS($AC$15:AC228),AD228:AF519,3,FALSE),\"\")","v":""},0,214,"بن يوسف ابراهيم","بن يوسف","ابراهيم","2009-11-19","ثالثة 2","ثالثة",2,"نصف داخلي"]
[null,null,null,null,null,null,null,null,null,null,null,null,null,null,null,null,null,null,null,null,null,null,null,null,null,null,null,null,{"$f":"IFERROR(VLOOKUP(ROWS($AC$15:AC229),AD229:AF520,3,FALSE),\"\")","v":""},0,215,"بومقواس مصطفى","بومقواس","مصطفى","2009-10-27","ثالثة 2","ثالثة",2,"نصف داخلي"]
[null,null,null,null,null,null,null,null,null,null,null,null,null,null,null,null,null,null,null,null,null,null,null,null,null,null,null,null,{"$f":"IFERROR(VLOOKUP(ROWS($AC$15:AC230),AD230:AF521,3,FALSE),\"\")","v":""},1,216,"بدراني عبد الرحمان","بدراني","عبد الرحمان","2009-10-01","ثالثة 2","ثالثة",2,"نصف داخلي"]
[null,null,null,null,null,null,null,null,null,null,null,null,null,null,null,null,null,null,null,null,null,null,null,null,null,null,null,null,{"$f":"IFERROR(VLOOKUP(ROWS($AC$15:AC231),AD231:AF522,3,FALSE),\"\")","v":""},2,217,"سعداوي لخضر سايحي","سعداوي","لخضر سايحي","2008-12-01","ثالثة 2","ثالثة",2,"نصف داخلي"]
[null,null,null,null,null,null,null,null,null,null,null,null,null,null,null,null,null,null,null,null,null,null,null,null,null,null,null,null,{"$f":"IFERROR(VLOOKUP(ROWS($AC$15:AC232),AD232:AF523,3,FALSE),\"\")","v":""},3,218,"حساني عبد القادر","حساني","عبد القادر","2009-04-27","ثالثة 2","ثالثة",2,"نصف داخلي"]
[null,null,null,null,null,null,null,null,null,null,null,null,null,null,null,null,null,null,null,null,null,null,null,null,null,null,null,null,{"$f":"IFERROR(VLOOKUP(ROWS($AC$15:AC233),AD233:AF524,3,FALSE),\"\")","v":""},0,219,"نقاز ابتهال","نقاز","ابتهال","2009-09-10","ثالثة 2","ثالثة",2,"نصف داخلي"]
[null,null,null,null,null,null,null,null,null,null,null,null,null,null,null,null,null,null,null,null,null,null,null,null,null,null,null,null,{"$f":"IFERROR(VLOOKUP(ROWS($AC$15:AC234),AD234:AF525,3,FALSE),\"\")","v":""},1,220,"بحاج عفاف","بحاج","عفاف","2009-02-22","ثالثة 2","ثالثة",2,"نصف داخلي"]
[null,null,null,null,null,null,null,null,null,null,null,null,null,null,null,null,null,null,null,null,null,null,null,null,null,null,null,null,{"$f":"IFERROR(VLOOKUP(ROWS($AC$15:AC235),AD235:AF526,3,FALSE),\"\")","v":""},0,221,"بدراني رفيق","بدراني","رفيق","2005-05-06","ثالثة 2","ثالثة",2,"نصف داخلي"]
[null,null,null,null,null,null,null,null,null,null,null,null,null,null,null,null,null,null,null,null,null,null,null,null,null,null,null,null,{"$f":"IFERROR(VLOOKUP(ROWS($AC$15:AC236),AD236:AF527,3,FALSE),\"\")","v":""},0,222,"شنافي لطيفة","شنافي","لطيفة","2009-12-23","ثالثة 2","ثالثة",2,"نصف داخلي"]
[null,null,null,null,null,null,null,null,null,null,null,null,null,null,null,null,null,null,null,null,null,null,null,null,null,null,null,null,{"$f":"IFERROR(VLOOKUP(ROWS($AC$15:AC237),AD237:AF528,3,FALSE),\"\")","v":""},0,223,"سعداوي سندس","سعداوي","سندس","2008-08-16","ثالثة 2","ثالثة",2,"خارجي"]
[null,null,null,null,null,null,null,null,null,null,null,null,null,null,null,null,null,null,null,null,null,null,null,null,null,null,null,null,{"$f":"IFERROR(VLOOKUP(ROWS($AC$15:AC238),AD238:AF529,3,FALSE),\"\")","v":""},1,224,"سهلي حورية","سهلي","حورية","2009-06-09","ثالثة 2","ثالثة",2,"نصف داخلي"]
[null,null,null,null,null,null,null,null,null,null,null,null,null,null,null,null,null,null,null,null,null,null,null,null,null,null,null,null,{"$f":"IFERROR(VLOOKUP(ROWS($AC$15:AC239),AD239:AF530,3,FALSE),\"\")","v":""},2,225,"قرمان اية احسان","قرمان","اية احسان","2009-05-20","ثالثة 2","ثالثة",2,"نصف داخلي"]
[null,null,null,null,null,null,null,null,null,null,null,null,null,null,null,null,null,null,null,null,null,null,null,null,null,null,null,null,{"$f":"IFERROR(VLOOKUP(ROWS($AC$15:AC240),AD240:AF531,3,FALSE),\"\")","v":""},0,226,"شنافي بسملة","شنافي","بسملة","2009-05-12","ثالثة 2","ثالثة",2,"نصف داخلي"]
[null,null,null,null,null,null,null,null,null,null,null,null,null,null,null,null,null,null,null,null,null,null,null,null,null,null,null,null,{"$f":"IFERROR(VLOOKUP(ROWS($AC$15:AC241),AD241:AF532,3,FALSE),\"\")","v":""},0,227,"سهلي خديجة","سهلي","خديجة","2009-03-20","ثالثة 2","ثالثة",2,"نصف داخلي"]
[null,null,null,null,null,null,null,null,null,null,null,null,null,null,null,null,null,null,null,null,null,null,null,null,null,null,null,null,{"$f":"IFERROR(VLOOKUP(ROWS($AC$15:AC242),AD242:AF533,3,FALSE),\"\")","v":""},0,228,"قرمان هاجر","قرمان","هاجر","2009-01-26","ثالثة 2","ثالثة",2,"نصف داخلي"]
[null,null,null,null,null,null,null,null,null,null,null,null,null,null,null,null,null,null,null,null,null,null,null,null,null,null,null,null,{"$f":"IFERROR(VLOOKUP(ROWS($AC$15:AC243),AD243:AF534,3,FALSE),\"\")","v":""},0,229,"بدراني خديجة","بدراني","خديجة","2009-12-01","ثالثة 2","ثالثة",2,"نصف داخلي"]
[null,null,null,null,null,null,null,null,null,null,null,null,null,null,null,null,null,null,null,null,null,null,null,null,null,null,null,null,{"$f":"IFERROR(VLOOKUP(ROWS($AC$15:AC244),AD244:AF535,3,FALSE),\"\")","v":""},0,230,"سماعيني رؤية","سماعيني","رؤية","2009-10-14","ثالثة 2","ثالثة",2,"نصف داخلي"]
[null,null,null,null,null,null,null,null,null,null,null,null,null,null,null,null,null,null,null,null,null,null,null,null,null,null,null,null,{"$f":"IFERROR(VLOOKUP(ROWS($AC$15:AC245),AD245:AF536,3,FALSE),\"\")","v":""},0,231,"سهلي خديجة هديل","سهلي","خديجة هديل","2009-06-13","ثالثة 2","ثالثة",2,"نصف داخلي"]
[null,null,null,null,null,null,null,null,null,null,null,null,null,null,null,null,null,null,null,null,null,null,null,null,null,null,null,null,{"$f":"IFERROR(VLOOKUP(ROWS($AC$15:AC246),AD246:AF537,3,FALSE),\"\")","v":""},0,232,"بدراني خديجة","بدراني","خديجة","2009-03-08","ثالثة 2","ثالثة",2,"نصف داخلي"]
[null,null,null,null,null,null,null,null,null,null,null,null,null,null,null,null,null,null,null,null,null,null,null,null,null,null,null,null,{"$f":"IFERROR(VLOOKUP(ROWS($AC$15:AC247),AD247:AF538,3,FALSE),\"\")","v":""},0,233,"بدراني سرين","بدراني","سرين","2009-09-08","ثالثة 2","ثالثة",2,"نصف داخلي"]
[null,null,null,null,null,null,null,null,null,null,null,null,null,null,null,null,null,null,null,null,null,null,null,null,null,null,null,null,{"$f":"IFERROR(VLOOKUP(ROWS($AC$15:AC248),AD248:AF539,3,FALSE),\"\")","v":""},1,234,"ماحي فاطمة الزهراء","ماحي","فاطمة الزهراء","2009-06-24","ثالثة 2","ثالثة",2,"نصف داخلي"]
[null,null,null,null,null,null,null,null,null,null,null,null,null,null,null,null,null,null,null,null,null,null,null,null,null,null,null,null,{"$f":"IFERROR(VLOOKUP(ROWS($AC$15:AC249),AD249:AF540,3,FALSE),\"\")","v":""},2,235,"شنافي حنان","شنافي","حنان","2009-08-14","ثالثة 2","ثالثة",2,"نصف داخلي"]
[null,null,null,null,null,null,null,null,null,null,null,null,null,null,null,null,null,null,null,null,null,null,null,null,null,null,null,null,{"$f":"IFERROR(VLOOKUP(ROWS($AC$15:AC250),AD250:AF541,3,FALSE),\"\")","v":""},3,236,"براهيمي حورية رحاب","براهيمي","حورية رحاب","2009-05-03","ثالثة 2","ثالثة",2,"نصف داخلي"]
[null,null,null,null,null,null,null,null,null,null,null,null,null,null,null,null,null,null,null,null,null,null,null,null,null,null,null,null,{"$f":"IFERROR(VLOOKUP(ROWS($AC$15:AC251),AD251:AF542,3,FALSE),\"\")","v":""},0,237,"مضميط شيماء","مضميط","شيماء","2009-01-27","ثالثة 2","ثالثة",2,"نصف داخلي"]
[null,null,null,null,null,null,null,null,null,null,null,null,null,null,null,null,null,null,null,null,null,null,null,null,null,null,null,null,{"$f":"IFERROR(VLOOKUP(ROWS($AC$15:AC252),AD252:AF543,3,FALSE),\"\")","v":""},0,238,"شنافي ياسمين","شنافي","ياسمين","2009-06-05","ثالثة 2","ثالثة",2,"نصف داخلي"]
[null,null,null,null,null,null,null,null,null,null,null,null,null,null,null,null,null,null,null,null,null,null,null,null,null,null,null,null,{"$f":"IFERROR(VLOOKUP(ROWS($AC$15:AC253),AD253:AF544,3,FALSE),\"\")","v":""},1,239,"أولاد حمادي طاهر","أولاد حمادي","طاهر","2004-10-30","رابعة 1","رابعة",1,"خارجي"]
[null,null,null,null,null,null,null,null,null,null,null,null,null,null,null,null,null,null,null,null,null,null,null,null,null,null,null,null,{"$f":"IFERROR(VLOOKUP(ROWS($AC$15:AC254),AD254:AF545,3,FALSE),\"\")","v":""},0,240,"زرارقة عبد الرزاق","زرارقة","عبد الرزاق","2008-03-21","رابعة 1","رابعة",1,"نصف داخلي"]
[null,null,null,null,null,null,null,null,null,null,null,null,null,null,null,null,null,null,null,null,null,null,null,null,null,null,null,null,{"$f":"IFERROR(VLOOKUP(ROWS($AC$15:AC255),AD255:AF546,3,FALSE),\"\")","v":""},0,241,"بوبكري وليد","بوبكري","وليد","2008-07-22","رابعة 1","رابعة",1,"نصف داخلي"]
[null,null,null,null,null,null,null,null,null,null,null,null,null,null,null,null,null,null,null,null,null,null,null,null,null,null,null,null,{"$f":"IFERROR(VLOOKUP(ROWS($AC$15:AC256),AD256:AF547,3,FALSE),\"\")","v":""},1,242,"ماحي السعيد","ماحي","السعيد","2005-12-07","رابعة 1","رابعة",1,"نصف داخلي"]
[null,null,null,null,null,null,null,null,null,null,null,null,null,null,null,null,null,null,null,null,null,null,null,null,null,null,null,null,{"$f":"IFERROR(VLOOKUP(ROWS($AC$15:AC257),AD257:AF548,3,FALSE),\"\")","v":""},2,243,"حساني لطفي","حساني","لطفي","2005-01-29","رابعة 1","رابعة",1,"خارجي"]
[null,null,null,null,null,null,null,null,null,null,null,null,null,null,null,null,null,null,null,null,null,null,null,null,null,null,null,null,{"$f":"IFERROR(VLOOKUP(ROWS($AC$15:AC258),AD258:AF549,3,FALSE),\"\")","v":""},0,244,"سعداوي فيصل","سعداوي","فيصل","2006-02-23","رابعة 1","رابعة",1,"نصف داخلي"]
[null,null,null,null,null,null,null,null,null,null,null,null,null,null,null,null,null,null,null,null,null,null,null,null,null,null,null,null,{"$f":"IFERROR(VLOOKUP(ROWS($AC$15:AC259),AD259:AF550,3,FALSE),\"\")","v":""},0,245,"شنافي هشام","شنافي","هشام","2006-04-02","رابعة 1","رابعة",1,"نصف داخلي"]
[null,null,null,null,null,null,null,null,null,null,null,null,null,null,null,null,null,null,null,null,null,null,null,null,null,null,null,null,{"$f":"IFERROR(VLOOKUP(ROWS($AC$15:AC260),AD260:AF551,3,FALSE),\"\")","v":""},1,246,"سماعيني عبد الرحيم المخطار","سماعيني","عبد الرحيم المخطار","2006-11-04","رابعة 1","رابعة",1,"نصف داخلي"]
[null,null,null,null,null,null,null,null,null,null,null,null,null,null,null,null,null,null,null,null,null,null,null,null,null,null,null,null,{"$f":"IFERROR(VLOOKUP(ROWS($AC$15:AC261),AD261:AF552,3,FALSE),\"\")","v":""},0,247,"سهلي بلقاسم","سهلي","بلقاسم","2006-07-12","رابعة 1","رابعة",1,"خارجي"]
[null,null,null,null,null,null,null,null,null,null,null,null,null,null,null,null,null,null,null,null,null,null,null,null,null,null,null,null,{"$f":"IFERROR(VLOOKUP(ROWS($AC$15:AC262),AD262:AF553,3,FALSE),\"\")","v":""},1,248,"شنافي محمد","شنافي","محمد","2006-11-21","رابعة 1","رابعة",1,"نصف داخلي"]
[null,null,null,null,null,null,null,null,null,null,null,null,null,null,null,null,null,null,null,null,null,null,null,null,null,null,null,null,{"$f":"IFERROR(VLOOKUP(ROWS($AC$15:AC263),AD263:AF554,3,FALSE),\"\")","v":""},2,249,"سهلي محمد","سهلي","محمد","2008-12-02","رابعة 1","رابعة",1,"نصف داخلي"]
[null,null,null,null,null,null,null,null,null,null,null,null,null,null,null,null,null,null,null,null,null,null,null,null,null,null,null,null,{"$f":"IFERROR(VLOOKUP(ROWS($AC$15:AC264),AD264:AF555,3,FALSE),\"\")","v":""},0,250,"شنافي شناف","شنافي","شناف","2008-05-04","رابعة 1","رابعة",1,"نصف داخلي"]
[null,null,null,null,null,null,null,null,null,null,null,null,null,null,null,null,null,null,null,null,null,null,null,null,null,null,null,null,{"$f":"IFERROR(VLOOKUP(ROWS($AC$15:AC265),AD265:AF556,3,FALSE),\"\")","v":""},1,251,"بن الصحراوي فرح","بن الصحراوي","فرح","2009-03-14","رابعة 1","رابعة",1,"نصف داخلي"]
[null,null,null,null,null,null,null,null,null,null,null,null,null,null,null,null,null,null,null,null,null,null,null,null,null,null,null,null,{"$f":"IFERROR(VLOOKUP(ROWS($AC$15:AC266),AD266:AF557,3,FALSE),\"\")","v":""},0,252,"بكي شيماء","بكي","شيماء","2008-02-28","رابعة 1","رابعة",1,"نصف داخلي"]
[null,null,null,null,null,null,null,null,null,null,null,null,null,null,null,null,null,null,null,null,null,null,null,null,null,null,null,null,{"$f":"IFERROR(VLOOKUP(ROWS($AC$15:AC267),AD267:AF558,3,FALSE),\"\")","v":""},1,253,"خيش اية احسان","خيش","اية احسان","2008-07-23","رابعة 1","رابعة",1,"نصف داخلي"]
[null,null,null,null,null,null,null,null,null,null,null,null,null,null,null,null,null,null,null,null,null,null,null,null,null,null,null,null,{"$f":"IFERROR(VLOOKUP(ROWS($AC$15:AC268),AD268:AF559,3,FALSE),\"\")","v":""},0,254,"بكي نزيهة","بكي","نزيهة","2008-02-28","رابعة 1","رابعة",1,"نصف داخلي"]
[null,null,null,null,null,null,null,null,null,null,null,null,null,null,null,null,null,null,null,null,null,null,null,null,null,null,null,null,{"$f":"IFERROR(VLOOKUP(ROWS($AC$15:AC269),AD269:AF560,3,FALSE),\"\")","v":""},0,255,"قرمان سهام","قرمان","سهام","2005-11-02","رابعة 1","رابعة",1,"نصف داخلي"]
[null,null,null,null,null,null,null,null,null,null,null,null,null,null,null,null,null,null,null,null,null,null,null,null,null,null,null,null,{"$f":"IFERROR(VLOOKUP(ROWS($AC$15:AC270),AD270:AF561,3,FALSE),\"\")","v":""},0,256,"سعداوي سويعد","سعداوي","سويعد","2008-07-09","رابعة 1","رابعة",1,"نصف داخلي"]
[null,null,null,null,null,null,null,null,null,null,null,null,null,null,null,null,null,null,null,null,null,null,null,null,null,null,null,null,{"$f":"IFERROR(VLOOKUP(ROWS($AC$15:AC271),AD271:AF562,3,FALSE),\"\")","v":""},0,257,"سماعيني هجيرة","سماعيني","هجيرة","2008-02-10","رابعة 1","رابعة",1,"نصف داخلي"]
[null,null,null,null,null,null,null,null,null,null,null,null,null,null,null,null,null,null,null,null,null,null,null,null,null,null,null,null,{"$f":"IFERROR(VLOOKUP(ROWS($AC$15:AC272),AD272:AF563,3,FALSE),\"\")","v":""},{"$f":"IF(ISNUMBER(SEARCH($B$50,AF272)),MAX(AD271:AD271)+1,0)","v":1},258,"امحمدي نهاد","امحمدي","نهاد","2008-09-18","رابعة 1","رابعة",1,"نصف داخلي"]
[null,null,null,null,null,null,null,null,null,null,null,null,null,null,null,null,null,null,null,null,null,null,null,null,null,null,null,null,{"$f":"IFERROR(VLOOKUP(ROWS($AC$15:AC273),AD273:AF564,3,FALSE),\"\")","v":""},2,259,"فتيتح عائشة","فتيتح","عائشة","2008-03-31","رابعة 1","رابعة",1,"نصف داخلي"]
[null,null,null,null,null,null,null,null,null,null,null,null,null,null,null,null,null,null,null,null,null,null,null,null,null,null,null,null,{"$f":"IFERROR(VLOOKUP(ROWS($AC$15:AC274),AD274:AF565,3,FALSE),\"\")","v":""},0,260,"بوهني فاطمة الزهراء","بوهني","فاطمة الزهراء","2008-11-02","رابعة 1","رابعة",1,"نصف داخلي"]
[null,null,null,null,null,null,null,null,null,null,null,null,null,null,null,null,null,null,null,null,null,null,null,null,null,null,null,null,{"$f":"IFERROR(VLOOKUP(ROWS($AC$15:AC275),AD275:AF566,3,FALSE),\"\")","v":""},0,261,"شنافي إيمان","شنافي","إيمان","2007-02-09","رابعة 1","رابعة",1,"نصف داخلي"]
[null,null,null,null,null,null,null,null,null,null,null,null,null,null,null,null,null,null,null,null,null,null,null,null,null,null,null,null,{"$f":"IFERROR(VLOOKUP(ROWS($AC$15:AC276),AD276:AF567,3,FALSE),\"\")","v":""},0,262,"شنافي اطوار","شنافي","اطوار","2006-10-24","رابعة 1","رابعة",1,"خارجي"]
[null,null,null,null,null,null,null,null,null,null,null,null,null,null,null,null,null,null,null,null,null,null,null,null,null,null,null,null,{"$f":"IFERROR(VLOOKUP(ROWS($AC$15:AC277),AD277:AF568,3,FALSE),\"\")","v":""},0,263,"بلدي بشرى","بلدي","بشرى","2008-05-23","رابعة 1","رابعة",1,"نصف داخلي"]
[null,null,null,null,null,null,null,null,null,null,null,null,null,null,null,null,null,null,null,null,null,null,null,null,null,null,null,null,{"$f":"IFERROR(VLOOKUP(ROWS($AC$15:AC278),AD278:AF569,3,FALSE),\"\")","v":""},0,264,"سهلي فاطمة الزهرة","سهلي","فاطمة الزهرة","2008-04-26","رابعة 1","رابعة",1,"نصف داخلي"]
[null,null,null,null,null,null,null,null,null,null,null,null,null,null,null,null,null,null,null,null,null,null,null,null,null,null,null,null,{"$f":"IFERROR(VLOOKUP(ROWS($AC$15:AC279),AD279:AF570,3,FALSE),\"\")","v":""},0,265,"مخطاري بشرى","مخطاري","بشرى","2008-03-10","رابعة 2","رابعة",2,"نصف داخلي"]
[null,null,null,null,null,null,null,null,null,null,null,null,null,null,null,null,null,null,null,null,null,null,null,null,null,null,null,null,{"$f":"IFERROR(VLOOKUP(ROWS($AC$15:AC280),AD280:AF571,3,FALSE),\"\")","v":""},0,266,"مخلوفي عبد الاله","مخلوفي","عبد الاله","2006-12-10","رابعة 2","رابعة",2,"نصف داخلي"]
[null,null,null,null,null,null,null,null,null,null,null,null,null,null,null,null,null,null,null,null,null,null,null,null,null,null,null,null,{"$f":"IFERROR(VLOOKUP(ROWS($AC$15:AC281),AD281:AF572,3,FALSE),\"\")","v":""},1,267,"أمحمدي محمد الأمين","أمحمدي","محمد الأمين","2007-12-13","رابعة 2","رابعة",2,"نصف داخلي"]
[null,null,null,null,null,null,null,null,null,null,null,null,null,null,null,null,null,null,null,null,null,null,null,null,null,null,null,null,{"$f":"IFERROR(VLOOKUP(ROWS($AC$15:AC282),AD282:AF573,3,FALSE),\"\")","v":""},0,268,"سهلي أسماء","سهلي","أسماء","2008-06-29","رابعة 2","رابعة",2,"نصف داخلي"]
[null,null,null,null,null,null,null,null,null,null,null,null,null,null,null,null,null,null,null,null,null,null,null,null,null,null,null,null,{"$f":"IFERROR(VLOOKUP(ROWS($AC$15:AC283),AD283:AF574,3,FALSE),\"\")","v":""},1,269,"ذيب صلاح الدين","ذيب","صلاح الدين","2005-03-03","رابعة 2","رابعة",2,"خارجي"]
[null,null,null,null,null,null,null,null,null,null,null,null,null,null,null,null,null,null,null,null,null,null,null,null,null,null,null,null,{"$f":"IFERROR(VLOOKUP(ROWS($AC$15:AC284),AD284:AF575,3,FALSE),\"\")","v":""},2,270,"بدراني محمد ياسين","بدراني","محمد ياسين","2006-09-04","رابعة 2","رابعة",2,"نصف داخلي"]
[null,null,null,null,null,null,null,null,null,null,null,null,null,null,null,null,null,null,null,null,null,null,null,null,null,null,null,null,{"$f":"IFERROR(VLOOKUP(ROWS($AC$15:AC285),AD285:AF576,3,FALSE),\"\")","v":""},0,271,"شنافي ام الخير","شنافي","ام الخير","2008-05-22","رابعة 2","رابعة",2,"نصف داخلي"]
[null,null,null,null,null,null,null,null,null,null,null,null,null,null,null,null,null,null,null,null,null,null,null,null,null,null,null,null,{"$f":"IFERROR(VLOOKUP(ROWS($AC$15:AC286),AD286:AF577,3,FALSE),\"\")","v":""},1,272,"سماعيني رحاب نور الياقين","سماعيني","رحاب نور الياقين","2008-08-10","رابعة 2","رابعة",2,"نصف داخلي"]
[null,null,null,null,null,null,null,null,null,null,null,null,null,null,null,null,null,null,null,null,null,null,null,null,null,null,null,null,{"$f":"IFERROR(VLOOKUP(ROWS($AC$15:AC287),AD287:AF578,3,FALSE),\"\")","v":""},0,273,"سعداوي زكرياء","سعداوي","زكرياء","2005-12-26","رابعة 2","رابعة",2,"نصف داخلي"]
[null,null,null,null,null,null,null,null,null,null,null,null,null,null,null,null,null,null,null,null,null,null,null,null,null,null,null,null,{"$f":"IFERROR(VLOOKUP(ROWS($AC$15:AC288),AD288:AF579,3,FALSE),\"\")","v":""},0,274,"سماعيني علي","سماعيني","علي","2005-12-02","رابعة 2","رابعة",2,"نصف داخلي"]
[null,null,null,null,null,null,null,null,null,null,null,null,null,null,null,null,null,null,null,null,null,null,null,null,null,null,null,null,{"$f":"IFERROR(VLOOKUP(ROWS($AC$15:AC289),AD289:AF580,3,FALSE),\"\")","v":""},0,275,"سعداوي شيماء","سعداوي","شيماء","2007-12-19","رابعة 2","رابعة",2,"نصف داخلي"]
[null,null,null,null,null,null,null,null,null,null,null,null,null,null,null,null,null,null,null,null,null,null,null,null,null,null,null,null,{"$f":"IFERROR(VLOOKUP(ROWS($AC$15:AC290),AD290:AF581,3,FALSE),\"\")","v":""},0,276,"سهلي نوية","سهلي","نوية","2007-10-31","رابعة 2","رابعة",2,"نصف داخلي"]
[null,null,null,null,null,null,null,null,null,null,null,null,null,null,null,null,null,null,null,null,null,null,null,null,null,null,null,null,{"$f":"IFERROR(VLOOKUP(ROWS($AC$15:AC291),AD291:AF582,3,FALSE),\"\")","v":""},0,277,"سهلي رقية","سهلي","رقية","2008-02-06","رابعة 2","رابعة",2,"نصف داخلي"]
[null,null,null,null,null,null,null,null,null,null,null,null,null,null,null,null,null,null,null,null,null,null,null,null,null,null,null,null,{"$f":"IFERROR(VLOOKUP(ROWS($AC$15:AC292),AD292:AF583,3,FALSE),\"\")","v":""},0,278,"بدراني هديل فاطمة الزهراء","بدراني","هديل فاطمة الزهراء","2008-01-05","رابعة 2","رابعة",2,"نصف داخلي"]
[null,null,null,null,null,null,null,null,null,null,null,null,null,null,null,null,null,null,null,null,null,null,null,null,null,null,null,null,{"$f":"IFERROR(VLOOKUP(ROWS($AC$15:AC293),AD293:AF584,3,FALSE),\"\")","v":""},0,279,"سهلي آمنة","سهلي","آمنة","2008-09-28","رابعة 2","رابعة",2,"نصف داخلي"]
[null,null,null,null,null,null,null,null,null,null,null,null,null,null,null,null,null,null,null,null,null,null,null,null,null,null,null,null,{"$f":"IFERROR(VLOOKUP(ROWS($AC$15:AC294),AD294:AF585,3,FALSE),\"\")","v":""},1,280,"محمدي ايمان نور اليقين","محمدي","ايمان نور اليقين","2008-04-30","رابعة 2","رابعة",2,"نصف داخلي"]
[null,null,null,null,null,null,null,null,null,null,null,null,null,null,null,null,null,null,null,null,null,null,null,null,null,null,null,null,{"$f":"IFERROR(VLOOKUP(ROWS($AC$15:AC295),AD295:AF586,3,FALSE),\"\")","v":""},2,281,"حساني انيسة","حساني","انيسة","2008-03-02","رابعة 2","رابعة",2,"نصف داخلي"]
[null,null,null,null,null,null,null,null,null,null,null,null,null,null,null,null,null,null,null,null,null,null,null,null,null,null,null,null,{"$f":"IFERROR(VLOOKUP(ROWS($AC$15:AC296),AD296:AF587,3,FALSE),\"\")","v":""},3,282,"مخطاري فتيحة","مخطاري","فتيحة","2004-12-03","رابعة 2","رابعة",2,"خارجي"]
[null,null,null,null,null,null,null,null,null,null,null,null,null,null,null,null,null,null,null,null,null,null,null,null,null,null,null,null,{"$f":"IFERROR(VLOOKUP(ROWS($AC$15:AC297),AD297:AF588,3,FALSE),\"\")","v":""},4,283,"اولاد حمادي نعيمة","اولاد حمادي","نعيمة","2008-06-19","رابعة 2","رابعة",2,"نصف داخلي"]
[null,null,null,null,null,null,null,null,null,null,null,null,null,null,null,null,null,null,null,null,null,null,null,null,null,null,null,null,{"$f":"IFERROR(VLOOKUP(ROWS($AC$15:AC298),AD298:AF589,3,FALSE),\"\")","v":""},5,284,"ثعلابي حبيب سيف الدين","ثعلابي","حبيب سيف الدين","2008-05-28","رابعة 2","رابعة",2,"نصف داخلي"]
[null,null,null,null,null,null,null,null,null,null,null,null,null,null,null,null,null,null,null,null,null,null,null,null,null,null,null,null,{"$f":"IFERROR(VLOOKUP(ROWS($AC$15:AC299),AD299:AF590,3,FALSE),\"\")","v":""},0,285,"سعداوي طاهر","سعداوي","طاهر","2008-05-18","رابعة 2","رابعة",2,"نصف داخلي"]
[null,null,null,null,null,null,null,null,null,null,null,null,null,null,null,null,null,null,null,null,null,null,null,null,null,null,null,null,{"$f":"IFERROR(VLOOKUP(ROWS($AC$15:AC300),AD300:AF591,3,FALSE),\"\")","v":""},1,286,"سماعيني محمد الامين","سماعيني","محمد الامين","2008-05-24","رابعة 2","رابعة",2,"نصف داخلي"]
[null,null,null,null,null,null,null,null,null,null,null,null,null,null,null,null,null,null,null,null,null,null,null,null,null,null,null,null,{"$f":"IFERROR(VLOOKUP(ROWS($AC$15:AC301),AD301:AF592,3,FALSE),\"\")","v":""},0,287,"بعيط لخضر","بعيط","لخضر","2008-04-12","رابعة 2","رابعة",2,"نصف داخلي"]
[null,null,null,null,null,null,null,null,null,null,null,null,null,null,null,null,null,null,null,null,null,null,null,null,null,null,null,null,{"$f":"IFERROR(VLOOKUP(ROWS($AC$15:AC302),AD302:AF593,3,FALSE),\"\")","v":""},1,288,"شنافي محمد","شنافي","محمد","2008-03-15","رابعة 2","رابعة",2,"نصف داخلي"]
[null,null,null,null,null,null,null,null,null,null,null,null,null,null,null,null,null,null,null,null,null,null,null,null,null,null,null,null,{"$f":"IFERROR(VLOOKUP(ROWS($AC$15:AC303),AD303:AF594,3,FALSE),\"\")","v":""},2,289,"امحمدي كريم","امحمدي","كريم","2008-04-04","رابعة 2","رابعة",2,"نصف داخلي"]
[null,null,null,null,null,null,null,null,null,null,null,null,null,null,null,null,null,null,null,null,null,null,null,null,null,null,null,null,{"$f":"IFERROR(VLOOKUP(ROWS($AC$15:AC304),AD304:AF595,3,FALSE),\"\")","v":""},0,290,"بعيط عزالدين","بعيط","عزالدين","2007-01-30","رابعة 2","رابعة",2,"نصف داخلي"]
[null,null,null,null,null,null,null,null,null,null,null,null,null,null,null,null,null,null,null,null,null,null,null,null,null,null,null,null,{"$f":"IFERROR(VLOOKUP(ROWS($AC$15:AC305),AD305:AF596,3,FALSE),\"\")","v":""},1,291,"نوي محمد","نوي","محمد","2007-09-04","رابعة 2","رابعة",2,"خارجي"]
[null,null,null,null,null,null,null,null,null,null,null,null,null,null,null,null,null,null,null,null,null,null,null,null,null,null,null,null,{"$f":"IFERROR(VLOOKUP(ROWS($AC$15:AC306),AD306:AF597,3,FALSE),\"\")","v":""},2,292,"حساني كوثر","حساني","كوثر","2005-02-04","رابعة 2","رابعة",2,"خارجي"]

{"sheet":"Feuil2","index":1,"n_rows":319,"n_cols":23,"rows_kept":319,"cut":false,"hidden":false,"merged":[]}
[]
[]
[]
[null,null,null,"العابد مباركة ","عربية ","1م1",null,null,null,null,null,null,"مبرر ",null,null,{"$f":"IF(Q4=\"\",\"\",SUBTOTAL(3,$Q$4:Q4))","v":""}]
[null,null,null,"سهلي بوعلام ","عربية ","1م2",null,null,null,"دهكل أحمد","خارجي",null,"غير مبرر",null,null,null,"8--9","9--10","10--11","11--12","14--15","15--16","16--17"]
[null,null,null,"بدراني خديجة ","عربية ","1م3",null,null,null,"طيفوري محمد","نصف داخلي",null,"حضور الولي",null,null,"العابد مباركة "]
[null,null,null,"تهامي أم كلثوم","عربية ","2م1",null,null,null,"قمقام دربالي ",null,null,"استدعاء الولي",null,null,"سهلي بوعلام "]
[null,null,null,"سماعيني بن يوسف","رياضيات ","2م2",null,null,null,"صديقي الطاهر",null,null,"الذهاب للعيادة ",null,null,"بدراني خديجة "]
[null,null,null,"حساني عبد القادر ","رياضيات ","2م3",null,null,null,"أولاد حمادي عبد الرحمان",null,null,"وفاة قريب",null,null,"تهامي أم كلثوم"]
[null,null,null,"حساني فاطمة ","رياضيات ","3م1",null,null,null,"خيش فتيحة",null,null,"زفاف",null,null,"سماعيني بن يوسف"]
[null,null,null,"داودي ميلود","فيزياء","3م2",null,null,null,null,null,null,null,null,null,"حساني عبد القادر "]
[null,null,null,"طيبي عبد القادر ","فيزياء","4م1",null,null,null,null,null,null,null,null,null,"حساني فاطمة "]
[null,null,null,"حطاب رشيدة ","علوم طبيعية ","4م2",null,null,null,null,null,null,null,null,null,"داودي ميلود"]
[null,null,null,"مجدوب طلحة ","علوم طبيعية ",null,null,null,null,null,null,null,null,null,null,"طيبي عبد القادر "]
[null,null,null,"مغزي محمد ","لغة فرنسية",null,null,null,null,null,null,null,null,null,null,"حطاب رشيدة "]
[null,null,null,"كواهي يعقوب ","لغة فرنسية",null,null,null,null,null,null,null,null,null,null,"مجدوب طلحة "]
[null,null,null,"امحمدي بوشوشة ","لغة فرنسية",null,null,null,null,null,null,null,null,null,null,"مغزي محمد ","----","3م2","1م3","1م2","----","1م1","----"]
[null,null,null,"زريفي إبراهيم","لغة إنجليزية ",null,null,null,null,null,null,null,null,null,null,"كواهي يعقوب "]
[null,null,null,"محمدي مريم ","لغة إنجليزية ",null,null,null,null,null,null,null,null,null,null,"امحمدي بوشوشة "]
[null,null,null,"مشارة محمد ","إجتماعيات ",null,null,null,null,null,null,null,null,null,null,"زريفي إبراهيم"]
[null,null,null,"بدراني شريف","إجتماعيات ",null,null,null,null,null,null,null,null,null,null,"محمدي مريم "]
[null,null,null,"جليد الميلود","تربية فنية ",null,null,null,null,null,null,null,null,null,null,"مشارة محمد "]
[null,null,null,"قرمان البشير ","تربية بدنية ",null,null,null,null,null,null,null,null,null,null,"بدراني شريف"]
[null,null,null,"بوبكري رندة ","عربية ",null,null,null,null,null,null,null,null,null,null,"جليد الميلود"]
[null,null,null,null,null,null,null,null,null,null,null,null,null,null,null,"قرمان البشير "]
[null,null,null,null,null,null,null,null,null,null,null,null,null,null,null,"بوبكري رندة "]
[null,null,"رقم","الاسم و اللقب ","اللقب","الاسم","تاريخ الازدياد","القسم مركب","السنة","القسم","نظام التمدرس"]
[null,null,1,{"$f":"E28&\" \"&F28","v":"بوبكري ابراهيم"},"بوبكري","ابراهيم","2010-10-20",{"$f":"I28&\" \"&J28","v":"أولى 1"},"أولى",1,"نصف داخلي"]
[null,null,2,{"$f":"E29&\" \"&F29","v":"شنافي مصطفى"},"شنافي","مصطفى","2008-03-05",{"$f":"I29&\" \"&J29","v":"أولى 1"},"أولى",1,"نصف داخلي"]
[null,null,3,"شنافي محمد الحبيب","شنافي","محمد الحبيب","2011-03-14","أولى 1","أولى",1,"نصف داخلي"]
[null,null,4,"فتيتح ابراهيم","فتيتح","ابراهيم","2008-02-02","أولى 1","أولى",1,"خارجي"]
[null,null,5,"سعداوي يونس","سعداوي","يونس","2008-12-13","أولى 1","أولى",1,"خارجي"]
[null,null,6,"حساني محمد عريف","حساني","محمد عريف","2008-10-19","أولى 1","أولى",1,"خارجي"]
[null,null,7,"طيفوري زينب","طيفوري","زينب","2010-06-20","أولى 1","أولى",1,"نصف داخلي"]
[null,null,8,"مضميط خديجة","مضميط","خديجة","2011-07-08","أولى 1","أولى",1,"نصف داخلي"]
[null,null,9,"سماعيني محمد سيف الاسلام","سماعيني","محمد سيف الاسلام","2007-09-20","أولى 1","أولى",1,"خارجي"]
[null,null,10,"سهلي دعاء مريم","سهلي","دعاء مريم","2011-11-02","أولى 1","أولى",1,"نصف داخلي"]
[null,null,11,"شنافي اية","شنافي","اية","2011-03-06","أولى 1","أولى",1,"نصف داخلي"]
[null,null,12,"جعفري سيدي عومر","جعفري","سيدي عومر","2009-04-15","أولى 1","أولى",1,"خارجي"]
[null,null,13,"سهلي ابوبكر الصديق","سهلي","ابوبكر الصديق","2011-12-28","أولى 1","أولى",1,"نصف داخلي"]
[null,null,14,"فتيتة محمد","فتيتة","محمد","2010-05-15","أولى 1","أولى",1,"نصف داخلي"]
[null,null,15,"شنافي مباركة","شنافي","مباركة","2010-10-09","أولى 1","أولى",1,"خارجي",null,null,null,null,662233695]
[null,null,16,"سعداوي سفيان نور الدين","سعداوي","سفيان نور الدين","2011-04-23","أولى 1","أولى",1,"نصف داخلي"]
[null,null,17,"قرمان محمد عبد السلام","قرمان","محمد عبد السلام","2011-09-24","أولى 1","أولى",1,"نصف داخلي"]
[null,null,18,"سماعيني احمد عبد الرزاق","سماعيني","احمد عبد الرزاق","2009-06-01","أولى 1","أولى",1,"نصف داخلي"]
[null,null,19,"سعداوي عبد المحسن","سعداوي","عبد المحسن","2011-12-19","أولى 1","أولى",1,"نصف داخلي"]
[null,null,20,"أولاد حمادي ميلود","أولاد حمادي","ميلود","2009-04-29","أولى 1","أولى",1,"خارجي"]
[null,null,21,"شنافي عبد القادر","شنافي","عبد القادر","2011-03-29","أولى 1","أولى",1,"نصف داخلي"]
[null,null,22,"طيفوري احمد المخطار","طيفوري","احمد المخطار","2011-04-19","أولى 1","أولى",1,"نصف داخلي"]
[null,null,23,"امحمدي نور الهدى","امحمدي","نور الهدى","2011-11-17","أولى 1","أولى",1,"نصف داخلي"]
[null,null,24,"قرمان محمد عبد السلام","قرمان","محمد عبد السلام","2007-06-11","أولى 1","أولى",1,"خارجي"]
[null,null,25,"مخطاري مروة","مخطاري","مروة","2008-09-01","أولى 1","أولى",1,"نصف داخلي"]
[null,null,26,"شاشي عائشة","شاشي","عائشة","2011-05-26","أولى 1","أولى",1,"نصف داخلي"]
[null,null,27,"حساني جمانة","حساني","جمانة","2011-01-24","أولى 1","أولى",1,"نصف داخلي"]
[null,null,28,"شنافي رهف فاطمة الزهراء","شنافي","رهف فاطمة الزهراء","2012-01-30","أولى 1","أولى",1,"نصف داخلي"]
[null,null,29,"سماعيني سعيدة","سماعيني","سعيدة","2011-10-09","أولى 1","أولى",1,"نصف داخلي"]
[null,null,30,"شنافي رفيقة","شنافي","رفيقة","2012-01-30","أولى 1","أولى",1,"نصف داخلي"]
[null,null,31,"بدراني مريم","بدراني","مريم","2011-01-01","أولى 1","أولى",1,"نصف داخلي"]
[null,null,32,"سالمي جهاد","سالمي","جهاد","2011-08-06","أولى 2","أولى",2,"نصف داخلي"]
[null,null,33,"هيزومي احمد اسلام","هيزومي","احمد اسلام","2011-08-23","أولى 2","أولى",2,"نصف داخلي"]
[null,null,34,"قرمان عبد المحسن","قرمان","عبد المحسن","2011-06-29","أولى 2","أولى",2,"نصف داخلي"]
[null,null,35,"أمحمدي إيناس إكرام","أمحمدي","إيناس إكرام","2010-12-12","أولى 2","أولى",2,"خارجي"]
[null,null,36,"نقاز طه ياسين","نقاز","طه ياسين","2011-02-20","أولى 2","أولى",2,"نصف داخلي"]
[null,null,37,"سعداوي نبيلة","سعداوي","نبيلة","2011-01-19","أولى 2","أولى",2,"نصف داخلي"]
[null,null,38,"سماعيني هاجر","سماعيني","هاجر","2011-03-30","أولى 2","أولى",2,"نصف داخلي"]
[null,null,39,"شنافي رقية","شنافي","رقية","2011-02-08","أولى 2","أولى",2,"نصف داخلي"]
[null,null,40,"مخطاري اسلام","مخطاري","اسلام","2011-10-27","أولى 2","أولى",2,"نصف داخلي"]
[null,null,41,"طيبي علي رضا","طيبي","علي رضا","2011-02-07","أولى 2","أولى",2,"خارجي"]
[null,null,42,"مشارة عبد القادر","مشارة","عبد القادر","2011-03-06","أولى 2","أولى",2,"نصف داخلي"]
[null,null,43,"سماعيني اشرف","سماعيني","اشرف","2011-04-13","أولى 2","أولى",2,"نصف داخلي"]
[null,null,44,"شنافي محمد اسامة","شنافي","محمد اسامة","2011-08-01","أولى 2","أولى",2,"نصف داخلي"]
[null,null,45,"سهلي عبد الصمد","سهلي","عبد الصمد","2011-08-01","أولى 2","أولى",2,"نصف داخلي"]
[null,null,46,"بكي الصحبي عبد الكريم","بكي","الصحبي عبد الكريم","2011-08-03","أولى 2","أولى",2,"نصف داخلي"]
[null,null,47,"ماحي محمد عماد الدين","ماحي","محمد عماد الدين","2011-09-06","أولى 2","أولى",2,"نصف داخلي"]
[null,null,48,"سهلي مباركة","سهلي","مباركة","2012-03-11","أولى 2","أولى",2,"نصف داخلي"]
[null,null,49,"ماحي يوسف","ماحي","يوسف","2009-08-24","أولى 2","أولى",2,"خارجي"]
[null,null,50,"شنافي مصطفى أمين","شنافي","مصطفى أمين","2008-09-04","أولى 2","أولى",2,"خارجي"]
[null,null,51,"بوقرارة ويصال","بوقرارة","ويصال","2010-04-01","أولى 2","أولى",2,"نصف داخلي"]
[null,null,52,"قرمان نصرالله","قرمان","نصرالله","2006-09-16","أولى 2","أولى",2,"خارجي"]
[null,null,53,"شنافي اسراء","شنافي","اسراء","2011-07-03","أولى 2","أولى",2,"نصف داخلي"]
[null,null,54,"بوبكري ابوبكرالصديق","بوبكري","ابوبكرالصديق","2011-06-08","أولى 2","أولى",2,"نصف داخلي"]
[null,null,55,"بوهني اميمة","بوهني","اميمة","2011-05-08","أولى 2","أولى",2,"نصف داخلي"]
[null,null,56,"سعداوي نور الهدى","سعداوي","نور الهدى","2011-09-04","أولى 2","أولى",2,"نصف داخلي"]
[null,null,57,"سهلي سعدودة فاطمة الزهراء","سهلي","سعدودة فاطمة الزهراء","2011-11-02","أولى 2","أولى",2,"نصف داخلي"]
[null,null,58,"سهلي مروى","سهلي","مروى","2011-09-28","أولى 2","أولى",2,"نصف داخلي"]
[null,null,59,"شنافي وئام","شنافي","وئام","2011-05-02","أولى 2","أولى",2,"نصف داخلي"]
[null,null,60,"قرمان سندس فاطمة الزهراء","قرمان","سندس فاطمة الزهراء","2011-01-30","أولى 2","أولى",2,"نصف داخلي"]
[null,null,61,"شنافي يمينة","شنافي","يمينة","2009-12-19","أولى 2","أولى",2,"نصف داخلي"]
[null,null,62,"سعداوي اسراء","سعداوي","اسراء","2011-04-22","أولى 2","أولى",2,"نصف داخلي"]
[null,null,63,"مشارة سليمان عبد الجبار","مشارة","سليمان عبد الجبار","2011-08-07","أولى 3","أولى",3,"خارجي"]
[null,null,64,"شنافي خالد","شنافي","خالد","2011-08-20","أولى 3","أولى",3,"نصف داخلي"]
[null,null,65,"سماعيني لعرج عزيز","سماعيني","لعرج عزيز","2011-01-03","أولى 3","أولى",3,"نصف داخلي"]
[null,null,66,{"$f":"E93&\" \"&F93","v":"أمحمدي عبد القادر"},"أمحمدي","عبد القادر","2009-01-08",{"$f":"I93&\" \"&J93","v":"أولى 3"},"أولى",3,"خارجي"]
[null,null,67,"سماعيني مصطفى","سماعيني","مصطفى","2009-11-17","أولى 3","أولى",3,"نصف داخلي"]
[null,null,68,"امحمدي محمد","امحمدي","محمد","2011-07-05","أولى 3","أولى",3,"نصف داخلي"]
[null,null,69,"سماعيني يوسف","سماعيني","يوسف","2010-10-04","أولى 3","أولى",3,"نصف داخلي"]
[null,null,70,"أمحمدي طه الأمين","أمحمدي","طه الأمين","2010-03-06","أولى 3","أولى",3,"خارجي"]
[null,null,71,"بدراني هاجر","بدراني","هاجر","2011-12-11","أولى 3","أولى",3,"نصف داخلي"]
[null,null,72,"سهلي ايمان","سهلي","ايمان","2011-01-01","أولى 3","أولى",3,"نصف داخلي"]
[null,null,73,"بعيط عبد الرحمان اسلام","بعيط","عبد الرحمان اسلام","2011-02-25","أولى 3","أولى",3,"نصف داخلي"]
[null,null,74,"سعداوي خضرة","سعداوي","خضرة","2006-05-03","أولى 3","أولى",3,"نصف داخلي"]
[null,null,75,"سماعيني عيدة","سماعيني","عيدة","2011-02-01","أولى 3","أولى",3,"نصف داخلي"]
[null,null,76,"شنافي جودة","شنافي","جودة","2010-01-01","أولى 3","أولى",3,"نصف داخلي"]
[null,null,77,"شنافي محمد الأمين","شنافي","محمد الأمين","2007-11-24","أولى 3","أولى",3,"خارجي"]
[null,null,78,"سماعيني سمية","سماعيني","سمية","2011-08-22","أولى 3","أولى",3,"نصف داخلي"]
[null,null,79,"سعداوي فاطمة الزهراء","سعداوي","فاطمة الزهراء","2011-07-03","أولى 3","أولى",3,"نصف داخلي"]
[null,null,80,"بعيط فاطمة الزهراء","بعيط","فاطمة الزهراء","2011-06-16","أولى 3","أولى",3,"نصف داخلي"]
[null,null,81,"سهلي محمد الياس","سهلي","محمد الياس","2011-04-09","أولى 3","أولى",3,"نصف داخلي"]
[null,null,82,"بوبكري هديل","بوبكري","هديل","2011-02-16","أولى 3","أولى",3,"نصف داخلي"]
[null,null,83,"بوبكري نجوى","بوبكري","نجوى","2011-05-02","أولى 3","أولى",3,"نصف داخلي"]
[null,null,84,"بدراني عبد السعيد","بدراني","عبد السعيد","2008-08-28","أولى 3","أولى",3,"خارجي"]
[null,null,85,"سعداوي نوية","سعداوي","نوية","2010-07-13","أولى 3","أولى",3,"خارجي"]
[null,null,86,"مخلوفي محمود","مخلوفي","محمود","2005-11-26","أولى 3","أولى",3,"نصف داخلي"]
[null,null,87,"نقاز علي","نقاز","علي","2006-11-29","أولى 3","أولى",3,"خارجي"]
[null,null,88,"شنافي شيماء","شنافي","شيماء","2011-06-01","أولى 3","أولى",3,"نصف داخلي"]
[null,null,89,"سماعيني رزيقة حنان","سماعيني","رزيقة حنان","2011-03-16","أولى 3","أولى",3,"نصف داخلي"]
[null,null,90,"كعيفص ميمونة","كعيفص","ميمونة","2012-03-07","أولى 3","أولى",3,"نصف داخلي"]
[null,null,91,"ماحي سعيدة","ماحي","سعيدة","2012-03-14","أولى 3","أولى",3,"نصف داخلي"]
[null,null,92,"مخطاري امينة","مخطاري","امينة","2011-07-06","أولى 3","أولى",3,"نصف داخلي"]
[null,null,93,"لوباقي محمد صفي الدين","لوباقي","محمد صفي الدين","2006-06-28","أولى 3","أولى",3,"خارجي"]
[null,null,94,"سعداوي عبد الرزاق","سعداوي","عبد الرزاق","2011-11-24","أولى 3","أولى",3,"نصف داخلي"]
[null,null,95,"شنافي امينة","شنافي","امينة","2007-06-29","ثانية 1","ثانية",1,"نصف داخلي"]
[null,null,96,"صديقي بوبكر","صديقي","بوبكر","2010-10-17","ثانية 1","ثانية",1,"نصف داخلي"]
[null,null,97,"شنافي محمد","شنافي","محمد","2010-11-01","ثانية 1","ثانية",1,"نصف داخلي"]
[null,null,98,"سماعيني خديجة","سماعيني","خديجة","2008-12-06","ثانية 1","ثانية",1,"نصف داخلي"]
[null,null,99,"محمدي محمد عبد الصمد","محمدي","محمد عبد الصمد","2010-10-08","ثانية 1","ثانية",1,"نصف داخلي"]
[null,null,100,"سماعيني فاطمة الزهرة","سماعيني","فاطمة الزهرة","2010-09-22","ثانية 1","ثانية",1,"نصف داخلي"]
[null,null,101,"جليد عبد الرزاق","جليد","عبد الرزاق","2010-10-29","ثانية 1","ثانية",1,"نصف داخلي"]
[null,null,102,"بدراني حورية","بدراني","حورية","2009-12-30","ثانية 1","ثانية",1,"نصف داخلي"]
[null,null,103,"امحمدي اية حبيبة","امحمدي","اية حبيبة","2008-07-26","ثانية 1","ثانية",1,"نصف داخلي"]
[null,null,104,"سماعيني اسماعيل رضوان","سماعيني","اسماعيل رضوان","2010-11-04","ثانية 1","ثانية",1,"نصف داخلي"]
[null,null,105,"عمران نور هان","عمران","نور هان","2011-01-27","ثانية 1","ثانية",1,"نصف داخلي"]
[null,null,106,"بعيط نور الهدى","بعيط","نور الهدى","2010-09-16","ثانية 1","ثانية",1,"نصف داخلي"]
[null,null,107,"سهلي ابراهيم الخليل","سهلي","ابراهيم الخليل","2010-01-04","ثانية 1","ثانية",1,"نصف داخلي"]
[null,null,108,"سماعيني محمد إلياس","سماعيني","محمد إلياس","2010-05-19","ثانية 1","ثانية",1,"نصف داخلي"]
[null,null,109,"درغال محمد فارس","درغال","محمد فارس","2009-02-23","ثانية 1","ثانية",1,"نصف داخلي"]
[null,null,110,"سهلي أحمد عبد الفتاح","سهلي","أحمد عبد الفتاح","2009-12-03","ثانية 1","ثانية",1,"نصف داخلي"]
[null,null,111,"سماعيني شافية","سماعيني","شافية","2010-10-02","ثانية 1","ثانية",1,"نصف داخلي"]
[null,null,112,"داودي آية","داودي","آية","2010-05-20","ثانية 1","ثانية",1,"نصف داخلي"]
[null,null,113,"داودي نسرين","داودي","نسرين","2010-05-20","ثانية 1","ثانية",1,"نصف داخلي"]
[null,null,114,"شنافي السعيد","شنافي","السعيد","2008-12-12","ثانية 1","ثانية",1,"خارجي"]
[null,null,115,"مخطاري عماد","مخطاري","عماد","2007-10-31","ثانية 1","ثانية",1,"نصف داخلي"]
[null,null,116,"مخطاري احمد","مخطاري","احمد","2009-11-09","ثانية 1","ثانية",1,"نصف داخلي"]
[null,null,117,"حساني إلياس","حساني","إلياس","2009-08-29","ثانية 1","ثانية",1,"نصف داخلي"]
[null,null,118,"حساني ضحى","حساني","ضحى","2009-02-04","ثانية 1","ثانية",1,"نصف داخلي"]
[null,null,119,"زرارقة محمدالأمين","زرارقة","محمدالأمين","2010-08-19","ثانية 1","ثانية",1,"نصف داخلي"]
[null,null,120,"ذيب عبد المجيد","ذيب","عبد المجيد","2008-11-01","ثانية 1","ثانية",1,"خارجي"]
[null,null,121,"حساني فاطيمة الزهراء","حساني","فاطيمة الزهراء","2011-03-30","ثانية 1","ثانية",1,"نصف داخلي"]
[null,null,122,"شنافي البشير","شنافي","البشير","2010-07-06","ثانية 1","ثانية",1,"نصف داخلي"]
[null,null,123,"بدراني خلود","بدراني","خلود","2011-02-13","ثانية 2","ثانية",2,"نصف داخلي"]
[null,null,124,"سعداوي مريم","سعداوي","مريم","2010-07-13","ثانية 2","ثانية",2,"نصف داخلي"]
[null,null,125,"نوي عطاء الله","نوي","عطاء الله","2011-02-01","ثانية 2","ثانية",2,"نصف داخلي"]
[null,null,126,"سعداوي الشيخ","سعداوي","الشيخ","2008-06-11","ثانية 2","ثانية",2,"خارجي"]
[null,null,127,"حساني علاء الدين","حساني","علاء الدين","2008-08-11","ثانية 2","ثانية",2,"نصف داخلي"]
[null,null,128,"بومقواس محمد الطاهر","بومقواس","محمد الطاهر","2009-02-21","ثانية 2","ثانية",2,"نصف داخلي"]
[null,null,129,"ماحي فضيلة","ماحي","فضيلة","2010-08-12","ثانية 2","ثانية",2,"نصف داخلي"]
[null,null,130,{"$f":"E157&\" \"&F157","v":"بدراني محمد النذير"},"بدراني","محمد النذير","2008-07-26",{"$f":"I157&\" \"&J157","v":"ثانية 2"},"ثانية",2,"نصف داخلي"]
[null,null,131,"بعيط ميلود","بعيط","ميلود","2008-08-01","ثانية 2","ثانية",2,"نصف داخلي"]
[null,null,132,"حساني فاطنة","حساني","فاطنة","2010-01-10","ثانية 2","ثانية",2,"نصف داخلي"]
[null,null,133,"سعداوي سندس رحاب","سعداوي","سندس رحاب","2010-10-21","ثانية 2","ثانية",2,"نصف داخلي"]
[null,null,134,"سهلي محمد الحبيب","سهلي","محمد الحبيب","2010-08-11","ثانية 2","ثانية",2,"نصف داخلي"]
[null,null,135,"سعداوي فاطمة","سعداوي","فاطمة","2009-07-18","ثانية 2","ثانية",2,"نصف داخلي"]
[null,null,136,"سماعيني هشام","سماعيني","هشام","2010-11-19","ثانية 2","ثانية",2,"نصف داخلي"]
[null,null,137,"بعيط محمد جلول","بعيط","محمد جلول","2010-12-26","ثانية 2","ثانية",2,"نصف داخلي"]
[null,null,138,"بدراني إيمان","بدراني","إيمان","2010-06-24","ثانية 2","ثانية",2,"نصف داخلي"]
[null,null,139,"فتيتح إسماعيل","فتيتح","إسماعيل","2010-04-17","ثانية 2","ثانية",2,"نصف داخلي"]
[null,null,140,"بعيط أنفال","بعيط","أنفال","2008-11-17","ثانية 2","ثانية",2,"نصف داخلي"]
[null,null,141,"سهلي هيبة الرحمان","سهلي","هيبة الرحمان","2009-10-01","ثانية 2","ثانية",2,"نصف داخلي"]
[null,null,142,"سماعيني اسماعيل محمود","سماعيني","اسماعيل محمود","2010-09-18","ثانية 2","ثانية",2,"نصف داخلي"]
[null,null,143,"بن يوسف محمد","بن يوسف","محمد","2007-11-12","ثانية 2","ثانية",2,"خارجي"]
[null,null,144,"قرمان ملاك","قرمان","ملاك","2010-11-09","ثانية 2","ثانية",2,"نصف داخلي"]
[null,null,145,"سهلي رقية","سهلي","رقية","2010-09-07","ثانية 2","ثانية",2,"نصف داخلي"]
[null,null,146,"ماحي كوثر","ماحي","كوثر","2010-03-22","ثانية 2","ثانية",2,"نصف داخلي"]
[null,null,147,"بوبكري عبد الجليل الجيلالي","بوبكري","عبد الجليل الجيلالي","2009-12-04","ثانية 2","ثانية",2,"نصف داخلي"]
[null,null,148,"بومقواس عبد الكريم","بومقواس","عبد الكريم","2007-09-08","ثانية 2","ثانية",2,"خارجي"]
[null,null,149,"بعيط إيمان","بعيط","إيمان","2010-06-19","ثانية 2","ثانية",2,"نصف داخلي"]
[null,null,150,"قياس فاروق","قياس","فاروق","2006-09-11","ثانية 3","ثانية",3,"نصف داخلي"]
[null,null,151,"كعيفص سمية","كعيفص","سمية","2010-06-01","ثانية 3","ثانية",3,"نصف داخلي"]
[null,null,152,"شنافي ضحى","شنافي","ضحى","2010-01-06","ثانية 3","ثانية",3,"نصف داخلي"]
[null,null,153,"خملولي رشا","خملولي","رشا","2009-08-01","ثانية 3","ثانية",3,"نصف داخلي"]
[null,null,154,"سماعيني ياسمين رشا","سماعيني","ياسمين رشا","2010-01-02","ثانية 3","ثانية",3,"نصف داخلي"]
[null,null,155,"مخطاري منال","مخطاري","منال","2008-06-03","ثانية 3","ثانية",3,"خارجي"]
[null,null,156,"ماحي محمد جلال الدين","ماحي","محمد جلال الدين","2010-01-26","ثانية 3","ثانية",3,"نصف داخلي"]
[null,null,157,"جبالي سلسبيل","جبالي","سلسبيل","2010-07-12","ثانية 3","ثانية",3,"نصف داخلي"]
[null,null,158,"مخطاري فدوى","مخطاري","فدوى","2010-07-26","ثانية 3","ثانية",3,"نصف داخلي"]
[null,null,159,"شنافي خولة","شنافي","خولة","2010-11-03","ثانية 3","ثانية",3,"نصف داخلي"]
[null,null,160,"بعيط عبد الجليل","بعيط","عبد الجليل","2010-01-10","ثانية 3","ثانية",3,"نصف داخلي"]
[null,null,161,"ماحي مسعودة","ماحي","مسعودة","2010-02-22","ثانية 3","ثانية",3,"نصف داخلي"]
[null,null,162,"بدراني محمد الأمين","بدراني","محمد الأمين","2010-06-20","ثانية 3","ثانية",3,"نصف داخلي"]
[null,null,163,"مضميط عبد الرحمان","مضميط","عبد الرحمان","2010-02-14","ثانية 3","ثانية",3,"نصف داخلي"]
[null,null,164,"بدراني عبد الباسط","بدراني","عبد الباسط","2010-04-04","ثانية 3","ثانية",3,"نصف داخلي"]
[null,null,165,"شبيشب رياض سيف الدين","شبيشب","رياض سيف الدين","2010-09-25","ثانية 3","ثانية",3,"نصف داخلي"]
[null,null,166,"بعيط حسين محمد الامين","بعيط","حسين محمد الامين","2010-07-01","ثانية 3","ثانية",3,"نصف داخلي"]
[null,null,167,"كعيفص بلقاسم","كعيفص","بلقاسم","2009-01-23","ثانية 3","ثانية",3,"نصف داخلي"]
[null,null,168,"شنافي امينة","شنافي","امينة","2010-09-13","ثانية 3","ثانية",3,"نصف داخلي"]
[null,null,169,"بومقواس أمال","بومقواس","أمال","2010-12-09","ثانية 3","ثانية",3,"نصف داخلي"]
[null,null,170,"سهلي خالد عبد الرزاق","سهلي","خالد عبد الرزاق","2009-07-13","ثانية 3","ثانية",3,"خارجي"]
[null,null,171,"شنافي مسعودة","شنافي","مسعودة","2007-06-17","ثانية 3","ثانية",3,"نصف داخلي"]
[null,null,172,"ماحي بن يوسف","ماحي","بن يوسف","2009-05-05","ثانية 3","ثانية",3,"نصف داخلي"]
[null,null,173,"ماحي محمد","ماحي","محمد","2008-12-16","ثانية 3","ثانية",3,"خارجي"]
[null,null,174,"شنافي هنادي","شنافي","هنادي","2010-01-02","ثانية 3","ثانية",3,"نصف داخلي"]
[null,null,175,"طيبي هديل","طيبي","هديل","2010-10-09","ثانية 3","ثانية",3,"نصف داخلي"]
[null,null,176,"شبيشب وصال","شبيشب","وصال","2009-01-20","ثالثة 1","ثالثة",1,"نصف داخلي"]
[null,null,177,"شنافي فضيلة","شنافي","فضيلة","2009-07-04","ثالثة 1","ثالثة",1,"نصف داخلي"]
[null,null,178,"بدراني بشرى","بدراني","بشرى","2009-06-10","ثالثة 1","ثالثة",1,"نصف داخلي"]
[null,null,179,"جبالي ندى هويام","جبالي","ندى هويام","2009-03-10","ثالثة 1","ثالثة",1,"نصف داخلي"]
[null,null,180,"بن يوسف فاطنة","بن يوسف","فاطنة","2009-03-03","ثالثة 1","ثالثة",1,"نصف داخلي"]
[null,null,181,"سهلي كوثر","سهلي","كوثر","2009-07-17","ثالثة 1","ثالثة",1,"نصف داخلي"]
[null,null,182,"بومقواس ايمان هيبة الرحمان","بومقواس","ايمان هيبة الرحمان","2009-09-05","ثالثة 1","ثالثة",1,"نصف داخلي"]
[null,null,183,"جبالي آية","جبالي","آية","2009-04-05","ثالثة 1","ثالثة",1,"نصف داخلي"]
[null,null,184,"شنافي ابتسام نور اليقين","شنافي","ابتسام نور اليقين","2009-09-05","ثالثة 1","ثالثة",1,"نصف داخلي"]
[null,null,185,"بدراني حنان","بدراني","حنان","2009-09-30","ثالثة 1","ثالثة",1,"نصف داخلي"]
[null,null,186,"سعداوي بشرى","سعداوي","بشرى","2009-12-06","ثالثة 1","ثالثة",1,"نصف داخلي"]
[null,null,187,"خيش شهرزاد","خيش","شهرزاد","2009-12-20","ثالثة 1","ثالثة",1,"نصف داخلي"]
[null,null,188,"دهكل إيناس","دهكل","إيناس","2009-12-08","ثالثة 1","ثالثة",1,"نصف داخلي"]
[null,null,189,"طيبي فاطمة الزهراء","طيبي","فاطمة الزهراء","2010-03-27","ثالثة 1","ثالثة",1,"نصف داخلي"]
[null,null,190,"أمحمدي آية نور اليقين","أمحمدي","آية نور اليقين","2009-08-17","ثالثة 1","ثالثة",1,"نصف داخلي"]
[null,null,191,"بكي فاطيمة","بكي","فاطيمة","2008-08-06","ثالثة 1","ثالثة",1,"نصف داخلي"]
[null,null,192,"بدراني آية","بدراني","آية","2009-03-17","ثالثة 1","ثالثة",1,"نصف داخلي"]
[null,null,193,"خملولي شناف","خملولي","شناف","2008-04-01","ثالثة 1","ثالثة",1,"نصف داخلي"]
[null,null,194,{"$f":"E221&\" \"&F221","v":"حساني محمد عبد الهادي"},"حساني","محمد عبد الهادي","2009-07-14",{"$f":"I221&\" \"&J221","v":"ثالثة 1"},"ثالثة",1,"نصف داخلي"]
[null,null,195,"شنافي جميلة","شنافي","جميلة","2008-12-10","ثالثة 1","ثالثة",1,"نصف داخلي"]
[null,null,196,"شنافي شناف","شنافي","شناف","2009-01-16","ثالثة 1","ثالثة",1,"نصف داخلي"]
[null,null,197,"سماعيني محمد طه","سماعيني","محمد طه","2009-05-23","ثالثة 1","ثالثة",1,"نصف داخلي"]
[null,null,198,"بوبكري صورية","بوبكري","صورية","2007-04-04","ثالثة 1","ثالثة",1,"خارجي"]
[null,null,199,"بدراني تقي الدين","بدراني","تقي الدين","2009-03-17","ثالثة 1","ثالثة",1,"نصف داخلي"]
[null,null,200,"سماعيني نور الدين","سماعيني","نور الدين","2009-08-20","ثالثة 1","ثالثة",1,"نصف داخلي"]
[null,null,201,"سهلي عبد الجبار","سهلي","عبد الجبار","2009-02-03","ثالثة 1","ثالثة",1,"نصف داخلي"]
[null,null,202,"شنافي ابراهيم","شنافي","ابراهيم","2007-08-25","ثالثة 1","ثالثة",1,"نصف داخلي"]
[null,null,203,"شبيشب مسعود","شبيشب","مسعود","2008-06-06","ثالثة 1","ثالثة",1,"نصف داخلي"]
[null,null,204,"سماعيني محمد الامين","سماعيني","محمد الامين","2007-05-02","ثالثة 1","ثالثة",1,"خارجي"]
[null,null,205,"بدراني سيد احمد بن يوسف","بدراني","سيد احمد بن يوسف","2008-06-15","ثالثة 1","ثالثة",1,"نصف داخلي"]
[null,null,206,"سماعيني محمد شيخ علي","سماعيني","محمد شيخ علي","2008-01-30","ثالثة 1","ثالثة",1,"نصف داخلي"]
[null,null,207,"طيفوري عائشة","طيفوري","عائشة","2009-07-05","ثالثة 2","ثالثة",2,"نصف داخلي"]
[null,null,208,"شنافي عثمان","شنافي","عثمان","2009-09-23","ثالثة 2","ثالثة",2,"نصف داخلي"]
[null,null,209,"شنافي لطفي قدور","شنافي","لطفي قدور","2009-06-20","ثالثة 2","ثالثة",2,"نصف داخلي"]
[null,null,210,"شنافي الحسين","شنافي","الحسين","2007-08-04","ثالثة 2","ثالثة",2,"نصف داخلي"]
[null,null,211,"أمحمدي نصر الله","أمحمدي","نصر الله","2006-09-25","ثالثة 2","ثالثة",2,"نصف داخلي"]
[null,null,212,"شنافي محمد بن يوسف","شنافي","محمد بن يوسف","2009-08-27","ثالثة 2","ثالثة",2,"نصف داخلي"]
[null,null,213,"سماعيني محمد العيد","سماعيني","محمد العيد","2009-11-28","ثالثة 2","ثالثة",2,"نصف داخلي"]
[null,null,214,"بن يوسف ابراهيم","بن يوسف","ابراهيم","2009-11-19","ثالثة 2","ثالثة",2,"نصف داخلي"]
[null,null,215,"بومقواس مصطفى","بومقواس","مصطفى","2009-10-27","ثالثة 2","ثالثة",2,"نصف داخلي"]
[null,null,216,"بدراني عبد الرحمان","بدراني","عبد الرحمان","2009-10-01","ثالثة 2","ثالثة",2,"نصف داخلي"]
[null,null,217,"سعداوي لخضر سايحي","سعداوي","لخضر سايحي","2008-12-01","ثالثة 2","ثالثة",2,"نصف داخلي"]
[null,null,218,"حساني عبد القادر","حساني","عبد القادر","2009-04-27","ثالثة 2","ثالثة",2,"نصف داخلي"]
[null,null,219,"نقاز ابتهال","نقاز","ابتهال","2009-09-10","ثالثة 2","ثالثة",2,"نصف داخلي"]
[null,null,220,"بحاج عفاف","بحاج","عفاف","2009-02-22","ثالثة 2","ثالثة",2,"نصف داخلي"]
[null,null,221,"بدراني رفيق","بدراني","رفيق","2005-05-06","ثالثة 2","ثالثة",2,"نصف داخلي"]
[null,null,222,"شنافي لطيفة","شنافي","لطيفة","2009-12-23","ثالثة 2","ثالثة",2,"نصف داخلي"]
[null,null,223,"سعداوي سندس","سعداوي","سندس","2008-08-16","ثالثة 2","ثالثة",2,"خارجي"]
[null,null,224,"سهلي حورية","سهلي","حورية","2009-06-09","ثالثة 2","ثالثة",2,"نصف داخلي"]
[null,null,225,"قرمان اية احسان","قرمان","اية احسان","2009-05-20","ثالثة 2","ثالثة",2,"نصف داخلي"]
[null,null,226,"شنافي بسملة","شنافي","بسملة","2009-05-12","ثالثة 2","ثالثة",2,"نصف داخلي"]
[null,null,227,"سهلي خديجة","سهلي","خديجة","2009-03-20","ثالثة 2","ثالثة",2,"نصف داخلي"]
[null,null,228,"قرمان هاجر","قرمان","هاجر","2009-01-26","ثالثة 2","ثالثة",2,"نصف داخلي"]
[null,null,229,"بدراني خديجة","بدراني","خديجة","2009-12-01","ثالثة 2","ثالثة",2,"نصف داخلي"]
[null,null,230,"سماعيني رؤية","سماعيني","رؤية","2009-10-14","ثالثة 2","ثالثة",2,"نصف داخلي"]
[null,null,231,"سهلي خديجة هديل","سهلي","خديجة هديل","2009-06-13","ثالثة 2","ثالثة",2,"نصف داخلي"]
[null,null,232,"بدراني خديجة","بدراني","خديجة","2009-03-08","ثالثة 2","ثالثة",2,"نصف داخلي"]
[null,null,233,"بدراني سرين","بدراني","سرين","2009-09-08","ثالثة 2","ثالثة",2,"نصف داخلي"]
[null,null,234,"ماحي فاطمة الزهراء","ماحي","فاطمة الزهراء","2009-06-24","ثالثة 2","ثالثة",2,"نصف داخلي"]
[null,null,235,"شنافي حنان","شنافي","حنان","2009-08-14","ثالثة 2","ثالثة",2,"نصف داخلي"]
[null,null,236,"براهيمي حورية رحاب","براهيمي","حورية رحاب","2009-05-03","ثالثة 2","ثالثة",2,"نصف داخلي"]
[null,null,237,"مضميط شيماء","مضميط","شيماء","2009-01-27","ثالثة 2","ثالثة",2,"نصف داخلي"]
[null,null,238,"شنافي ياسمين","شنافي","ياسمين","2009-06-05","ثالثة 2","ثالثة",2,"نصف داخلي"]
[null,null,239,"أولاد حمادي طاهر","أولاد حمادي","طاهر","2004-10-30","رابعة 1","رابعة",1,"خارجي"]
[null,null,240,"زرارقة عبد الرزاق","زرارقة","عبد الرزاق","2008-03-21","رابعة 1","رابعة",1,"نصف داخلي"]
[null,null,241,"بوبكري وليد","بوبكري","وليد","2008-07-22","رابعة 1","رابعة",1,"نصف داخلي"]
[null,null,242,"ماحي السعيد","ماحي","السعيد","2005-12-07","رابعة 1","رابعة",1,"نصف داخلي"]
[null,null,243,"حساني لطفي","حساني","لطفي","2005-01-29","رابعة 1","رابعة",1,"خارجي"]
[null,null,244,"سعداوي فيصل","سعداوي","فيصل","2006-02-23","رابعة 1","رابعة",1,"نصف داخلي"]
[null,null,245,"شنافي هشام","شنافي","هشام","2006-04-02","رابعة 1","رابعة",1,"نصف داخلي"]
[null,null,246,"سماعيني عبد الرحيم المخطار","سماعيني","عبد الرحيم المخطار","2006-11-04","رابعة 1","رابعة",1,"نصف داخلي"]
[null,null,247,"سهلي بلقاسم","سهلي","بلقاسم","2006-07-12","رابعة 1","رابعة",1,"خارجي"]
[null,null,248,"شنافي محمد","شنافي","محمد","2006-11-21","رابعة 1","رابعة",1,"نصف داخلي"]
[null,null,249,"سهلي محمد","سهلي","محمد","2008-12-02","رابعة 1","رابعة",1,"نصف داخلي"]
[null,null,250,"شنافي شناف","شنافي","شناف","2008-05-04","رابعة 1","رابعة",1,"نصف داخلي"]
[null,null,251,"بن الصحراوي فرح","بن الصحراوي","فرح","2009-03-14","رابعة 1","رابعة",1,"نصف داخلي"]
[null,null,252,"بكي شيماء","بكي","شيماء","2008-02-28","رابعة 1","رابعة",1,"نصف داخلي"]
[null,null,253,"خيش اية احسان","خيش","اية احسان","2008-07-23","رابعة 1","رابعة",1,"نصف داخلي"]
[null,null,254,"بكي نزيهة","بكي","نزيهة","2008-02-28","رابعة 1","رابعة",1,"نصف داخلي"]
[null,null,255,"قرمان سهام","قرمان","سهام","2005-11-02","رابعة 1","رابعة",1,"نصف داخلي"]
[null,null,256,"سعداوي سويعد","سعداوي","سويعد","2008-07-09","رابعة 1","رابعة",1,"نصف داخلي"]
[null,null,257,"سماعيني هجيرة","سماعيني","هجيرة","2008-02-10","رابعة 1","رابعة",1,"نصف داخلي"]
[null,null,258,{"$f":"E285&\" \"&F285","v":"امحمدي نهاد"},"امحمدي","نهاد","2008-09-18",{"$f":"I285&\" \"&J285","v":"رابعة 1"},"رابعة",1,"نصف داخلي"]
[null,null,259,"فتيتح عائشة","فتيتح","عائشة","2008-03-31","رابعة 1","رابعة",1,"نصف داخلي"]
[null,null,260,"بوهني فاطمة الزهراء","بوهني","فاطمة الزهراء","2008-11-02","رابعة 1","رابعة",1,"نصف داخلي"]
[null,null,261,"شنافي إيمان","شنافي","إيمان","2007-02-09","رابعة 1","رابعة",1,"نصف داخلي"]
[null,null,262,"شنافي اطوار","شنافي","اطوار","2006-10-24","رابعة 1","رابعة",1,"خارجي"]
[null,null,263,"بلدي بشرى","بلدي","بشرى","2008-05-23","رابعة 1","رابعة",1,"نصف داخلي"]
[null,null,264,"سهلي فاطمة الزهرة","سهلي","فاطمة الزهرة","2008-04-26","رابعة 1","رابعة",1,"نصف داخلي"]
[null,null,265,"مخطاري بشرى","مخطاري","بشرى","2008-03-10","رابعة 2","رابعة",2,"نصف داخلي"]
[null,null,266,"مخلوفي عبد الاله","مخلوفي","عبد الاله","2006-12-10","رابعة 2","رابعة",2,"نصف داخلي"]
[null,null,267,"أمحمدي محمد الأمين","أمحمدي","محمد الأمين","2007-12-13","رابعة 2","رابعة",2,"نصف داخلي"]
[null,null,268,"سهلي أسماء","سهلي","أسماء","2008-06-29","رابعة 2","رابعة",2,"نصف داخلي"]
[null,null,269,"ذيب صلاح الدين","ذيب","صلاح الدين","2005-03-03","رابعة 2","رابعة",2,"خارجي"]
[null,null,270,"بدراني محمد ياسين","بدراني","محمد ياسين","2006-09-04","رابعة 2","رابعة",2,"نصف داخلي"]
[null,null,271,"شنافي ام الخير","شنافي","ام الخير","2008-05-22","رابعة 2","رابعة",2,"نصف داخلي"]
[null,null,272,"سماعيني رحاب نور الياقين","سماعيني","رحاب نور الياقين","2008-08-10","رابعة 2","رابعة",2,"نصف داخلي"]
[null,null,273,"سعداوي زكرياء","سعداوي","زكرياء","2005-12-26","رابعة 2","رابعة",2,"نصف داخلي"]
[null,null,274,"سماعيني علي","سماعيني","علي","2005-12-02","رابعة 2","رابعة",2,"نصف داخلي"]
[null,null,275,"سعداوي شيماء","سعداوي","شيماء","2007-12-19","رابعة 2","رابعة",2,"نصف داخلي"]
[null,null,276,"سهلي نوية","سهلي","نوية","2007-10-31","رابعة 2","رابعة",2,"نصف داخلي"]
[null,null,277,"سهلي رقية","سهلي","رقية","2008-02-06","رابعة 2","رابعة",2,"نصف داخلي"]
[null,null,278,"بدراني هديل فاطمة الزهراء","بدراني","هديل فاطمة الزهراء","2008-01-05","رابعة 2","رابعة",2,"نصف داخلي"]
[null,null,279,"سهلي آمنة","سهلي","آمنة","2008-09-28","رابعة 2","رابعة",2,"نصف داخلي"]
[null,null,280,"محمدي ايمان نور اليقين","محمدي","ايمان نور اليقين","2008-04-30","رابعة 2","رابعة",2,"نصف داخلي"]
[null,null,281,"حساني انيسة","حساني","انيسة","2008-03-02","رابعة 2","رابعة",2,"نصف داخلي"]
[null,null,282,"مخطاري فتيحة","مخطاري","فتيحة","2004-12-03","رابعة 2","رابعة",2,"خارجي"]
[null,null,283,"اولاد حمادي نعيمة","اولاد حمادي","نعيمة","2008-06-19","رابعة 2","رابعة",2,"نصف داخلي"]
[null,null,284,"ثعلابي حبيب سيف الدين","ثعلابي","حبيب سيف الدين","2008-05-28","رابعة 2","رابعة",2,"نصف داخلي"]
[null,null,285,"سعداوي طاهر","سعداوي","طاهر","2008-05-18","رابعة 2","رابعة",2,"نصف داخلي"]
[null,null,286,"سماعيني محمد الامين","سماعيني","محمد الامين","2008-05-24","رابعة 2","رابعة",2,"نصف داخلي"]
[null,null,287,"بعيط لخضر","بعيط","لخضر","2008-04-12","رابعة 2","رابعة",2,"نصف داخلي"]
[null,null,288,"شنافي محمد","شنافي","محمد","2008-03-15","رابعة 2","رابعة",2,"نصف داخلي"]
[null,null,289,"امحمدي كريم","امحمدي","كريم","2008-04-04","رابعة 2","رابعة",2,"نصف داخلي"]
[null,null,290,"بعيط عزالدين","بعيط","عزالدين","2007-01-30","رابعة 2","رابعة",2,"نصف داخلي"]
[null,null,291,"نوي محمد","نوي","محمد","2007-09-04","رابعة 2","رابعة",2,"خارجي"]
[null,null,292,"حساني كوثر","حساني","كوثر","2005-02-04","رابعة 2","رابعة",2,"خارجي"]